Workbook

Sheet Contents Navigator
B3: Generic LRAMVA Work Forms
B5: File Name | C5: Description
B6: 1. LRAMVA Summary | C6: Table 1 provides a summary of the LRAMVA balances and carrying charges associated with the LRAMVA claim. The balances are populated from entries into other tabs throughout this work form.
B8: 2. CDM Allocation | C8: Tables 2, 3 and 4 include the CDM savings and allocation by rate class that were included in the load forecast.
B10: 3. Distribution Rates | C10: Tables 5 and 6 include a historical account of distribution rates that were used to calculate lost revenues.
B12: 4. 2011-14 LRAM | C12: Tables 7, 8, 9 and 10 includes 2011-2014 LRAMVA work forms. These should only be used if the LDC has not applied for approval of these amounts.
B14: 5. 2015 LRAM | C14: Table 11-a includes a template workform for calculating 2015 lost revenues based on legacy and new programs.
B15: 5-b. 2016 LRAM | C15: Table 11-b includes a template workform for calculating 2016 lost revenues based on legacy and new programs.
B17: 5-c. 2017 LRAM | C17: Table 11-c includes a template workform for calculating 2017 lost revenues based on legacy and new programs.
B19: 5-d. 2018 LRAM | C19: Table 11-d includes a template workform for calculating 2018 lost revenues based on legacy and new programs. | E19: Included for completeness. However, these sheets do not require filling out for 2017 cost of service applications
B21: 5-e. 2019 LRAM | C21: Table 11-e includes a template workform for calculating 2019 lost revenues based on legacy and new programs.
B23: 5-f. 2020 LRAM | C23: Table 11-f includes a template workform for calculating 2020 lost revenues based on legacy and new programs.
B25: 6. Persistence Rates | C25: Tables 12 and 13 includes the 2011-2014 persistence factors and 2015-2020 persistance factors.
B27: 7. Carrying Charges | C27: Tables 19 and 20 includes the carrying charges related to the LRAMVA claim that is being made.

Sheet Input Output Flow Chart
B3: General Note on the LRAMVA Model The LRAMVA model consolidates information that LDCs are already required to file with the OEB. The model has been created to provide LDCs with a consistent format to display CDM impacts, the CDM component of the load forecast and ultimately, any variance between actual CDM savings and the CDM component of the load forecast. The majority of the information required in the LRAMVA work form will be provided to LDCs from the IESO as part of the Final CDM Results each year.
C9: Inputs | I9: Outputs
B11: Tab 2 | C11: CDM savings allocated by rate class | F11: -----------------------> | H11: Tab 1 | I11: Forecast revenues lost
B12: Tab 4, 5 | C12: CDM savings and LRAMVA amounts by program | F12: -----------------------> | I12: Actual revenues lost
B13: Tab 7 | C13: Carrying charges by rate class | F13: -----------------------> | I13: Carrying charges
B15: Tab 4, 5 | H15: Tab 4, 6 | I15: Program LRAM amounts ($) from current and prior year savings
C16: IESO CDM Savings Results (kWh, kW saved)
C17: x
C18: CDM Savings allocated (%) by class
C19: x
C20: Average distribution rates
B23: Tab 6 | C23: Persistence rates
C24: x
B25: Tab 4, 5 | C25: Prior year kwh or kW savings

Sheet 1. LRAMVA Summary
B3: LRAMVA Summary
B5: This is a summary sheet that contains the final LRAMVA balances with links from Tabs 2, 4, 5 and 7.
C8: File Number | D8: EB-2016-0091
C9: Exhibit | F9: Amount of LRAM claimed in the past | H9: =176092+104916 -> 281008
C10: Schedule | F10: Years of LRAM Claimed | H10: (2011 to 2012)
C11: Tab | F11: Last Cost of Service Application (File No.) | H11: EB-2012-0146
C12: Page
C14: Legend | D14: User Inputs (Green) | F14: Amount of LRAMVA to claim | H14: =K38 -> 449429.678
D15: Auto Populated Cells (White) | F15: Recovery Period of LRAMVA Claim | H15: 1
B19: Table 1. Annual and Total LRAMVA by Rate Class
B21: Description | C21: Residential | D21: General Service <50 kW | E21: General Service 50 - 4,999 kW | F21: Co-Generation 1,000 - 4,999 kW | G21: Sentinel Lighting | H21: Street Lighting | I21: Unmetered Scattered Load | J21: Large User | K21: Total
B22: 2011 Forecast | C22: =-'2. CDM Allocation'!C133 -> 0 | D22: =-'2. CDM Allocation'!D133 -> 0 | E22: =-'2. CDM Allocation'!E133 -> 0 | F22: =-'2. CDM Allocation'!F133 -> 0 | G22: =-'2. CDM Allocation'!G133 -> 0 | H22: =-'2. CDM Allocation'!H133 -> 0 | I22: =-'2. CDM Allocation'!I133 -> 0 | J22: =-'2. CDM Allocation'!J133 -> 0 | K22: =SUM(C22:J22) -> 0
B23: 2011 Actuals | C23: ='4. 2011-14 LRAM'!H75 -> 56535.63775 | D23: ='4. 2011-14 LRAM'!I75 -> 15994.34585 | E23: ='4. 2011-14 LRAM'!J75 -> 47886.03792 | F23: ='4. 2011-14 LRAM'!K75 -> 0 | G23: ='4. 2011-14 LRAM'!L75 -> 0 | H23: ='4. 2011-14 LRAM'!M75 -> 0 | I23: ='4. 2011-14 LRAM'!N75 -> 0 | J23: ='4. 2011-14 LRAM'!O75 -> 0 | K23: =SUM(C23:J23) -> 120416.0215
B24: Amount Cleared | C24: =-C23 -> -56535.63775 | D24: =-D23 -> -15994.34585 | E24: -47886.03792 | F24: 0 | G24: 0 | H24: 0 | I24: 0 | J24: 0 | K24: =SUM(C24:J24) -> -120416.0215
B25: 2012 Forecast | C25: =-'2. CDM Allocation'!C134 -> 0 | D25: =-'2. CDM Allocation'!D134 -> 0 | E25: =-'2. CDM Allocation'!E134 -> 0 | F25: =-'2. CDM Allocation'!F134 -> 0 | G25: =-'2. CDM Allocation'!G134 -> 0 | H25: =-'2. CDM Allocation'!H134 -> 0 | I25: =-'2. CDM Allocation'!I134 -> 0 | J25: =-'2. CDM Allocation'!J134 -> 0 | K25: =SUM(C25:J25) -> 0
B26: 2012 Actuals | C26: ='4. 2011-14 LRAM'!H160 -> 98847.44967 | D26: ='4. 2011-14 LRAM'!I160 -> 27413.53908 | E26: ='4. 2011-14 LRAM'!J160 -> 76924.96797 | F26: ='4. 2011-14 LRAM'!K160 -> 0 | G26: ='4. 2011-14 LRAM'!L160 -> 0 | H26: ='4. 2011-14 LRAM'!M160 -> 0 | I26: ='4. 2011-14 LRAM'!N160 -> 0 | J26: ='4. 2011-14 LRAM'!O160 -> 0 | K26: 203185.9567
B27: Amount Cleared | C27: =-C26 -> -98847.44967 | D27: =-D26 -> -27413.53908 | E27: -76924.96797 | F27: 0 | G27: 0 | H27: 0 | I27: 0 | J27: 0 | K27: -203185.9567
B28: 2013 Forecast | C28: =-'2. CDM Allocation'!C135 -> -222944.8137 | D28: =-'2. CDM Allocation'!D135 -> -51955.3536 | E28: =-'2. CDM Allocation'!E135 -> -117614.0248 | F28: =-'2. CDM Allocation'!F135 -> -11113.80053 | G28: =-'2. CDM Allocation'!G135 -> -296.2166667 | H28: =-'2. CDM Allocation'!H135 -> -6824.471 | I28: =-'2. CDM Allocation'!I135 -> -1004.409267 | J28: =-'2. CDM Allocation'!J135 -> -10981.0269 | K28: -422734.1164
B29: 2013 Actuals | C29: ='4. 2011-14 LRAM'!H241 -> 149000.5899 | D29: ='4. 2011-14 LRAM'!I241 -> 68809.3803 | E29: ='4. 2011-14 LRAM'!J241 -> 148065.0398 | F29: ='4. 2011-14 LRAM'!K241 -> 0 | G29: ='4. 2011-14 LRAM'!L241 -> 0 | H29: ='4. 2011-14 LRAM'!M241 -> 0 | I29: ='4. 2011-14 LRAM'!N241 -> 0 | J29: ='4. 2011-14 LRAM'!O241 -> 0 | K29: 365875.01
B30: Amount Cleared | C30: 0 | D30: 0 | E30: 0 | F30: 0 | G30: 0 | H30: 0 | I30: 0 | J30: 0 | K30: 0
B31: 2014 Forecast | C31: =-'2. CDM Allocation'!C136 -> -232875.5403 | D31: =-'2. CDM Allocation'!D136 -> -54300.56053 | E31: =-'2. CDM Allocation'!E136 -> -135367.5227 | F31: =-'2. CDM Allocation'!F136 -> -11468.2048 | G31: =-'2. CDM Allocation'!G136 -> -309.3048 | H31: =-'2. CDM Allocation'!H136 -> -7248.268 | I31: =-'2. CDM Allocation'!I136 -> -1138.1843 | J31: =-'2. CDM Allocation'!J136 -> -10864.3367 | K31: -453571.9221
B32: 2014 Actuals | C32: ='4. 2011-14 LRAM'!H323 -> 255600.0644 | D32: ='4. 2011-14 LRAM'!I323 -> 90902.57856 | E32: ='4. 2011-14 LRAM'!J323 -> 192303.157 | F32: ='4. 2011-14 LRAM'!K323 -> 0 | G32: ='4. 2011-14 LRAM'!L323 -> 0 | H32: ='4. 2011-14 LRAM'!M323 -> 0 | I32: ='4. 2011-14 LRAM'!N323 -> 0 | J32: ='4. 2011-14 LRAM'!O323 -> 0 | K32: 538805.8
B33: Amount Cleared | C33: 0 | D33: 0 | E33: 0 | F33: 0 | G33: 0 | H33: 0 | I33: 0 | J33: 0 | K33: 0
B34: 2015 Forecast | C34: =-'2. CDM Allocation'!C137 -> -235854.7583 | D34: =-'2. CDM Allocation'!D137 -> -55022.16267 | E34: =-'2. CDM Allocation'!E137 -> -137376.0064 | F34: =-'2. CDM Allocation'!F137 -> -11638.2864 | G34: =-'2. CDM Allocation'!G137 -> -313.8921333 | H34: =-'2. CDM Allocation'!H137 -> -7355.766 | I34: =-'2. CDM Allocation'!I137 -> -1157.9216 | J34: =-'2. CDM Allocation'!J137 -> -11025.3418 | K34: -459744.1353
B35: 2015 Actuals | C35: ='5. 2015 LRAM'!H124 -> 378419.2996 | D35: ='5. 2015 LRAM'!I124 -> 279232.036 | E35: ='5. 2015 LRAM'!J124 -> 214870.8423 | F35: ='5. 2015 LRAM'!K124 -> 0 | G35: ='5. 2015 LRAM'!L124 -> 0 | H35: ='5. 2015 LRAM'!M124 -> 0 | I35: ='5. 2015 LRAM'!N124 -> 0 | J35: ='5. 2015 LRAM'!O124 -> 0 | K35: 872522.1778
B36: Amount Cleared | C36: 0 | D36: 0 | E36: 0 | F36: 0 | G36: 0 | H36: 0 | I36: 0 | J36: 0 | K36: 0
B37: Carrying Charges | C37: ='7. Carrying Charges'!I88*0+'7. Carrying Charges'!I118 -> 26.6088523 | D37: ='7. Carrying Charges'!J88*0+'7. Carrying Charges'!J118 -> 6465.48538 | E37: ='7. Carrying Charges'!K88*0+'7. Carrying Charges'!K118 -> 4893.421738 | F37: ='7. Carrying Charges'!L88*0+'7. Carrying Charges'!L118 -> -1146.280633 | G37: ='7. Carrying Charges'!M88*0+'7. Carrying Charges'!M118 -> -30.74639753 | H37: ='7. Carrying Charges'!N88*0+'7. Carrying Charges'!N118 -> -714.8892825 | I37: ='7. Carrying Charges'!O88*0+'7. Carrying Charges'!O118 -> -109.0856356 | J37: ='7. Carrying Charges'!P88*0+'7. Carrying Charges'!P118 -> -1107.649841 | K37: 8276.864181
B38: Total LRAMVA Balance | C38: =SUM(C22:C37) -> 91371.45038 | D38: =SUM(D22:D37) -> 284131.4034 | E38: 169774.907 | F38: -35366.57237 | G38: =SUM(G22:G37) -> -950.1599975 | H38: =SUM(H22:H37) -> -22143.39428 | I38: =SUM(I22:I37) -> -3409.600802 | J38: =SUM(J22:J37) -> -33978.35524 | K38: =SUM(K22:K37) -> 449429.678

Sheet 2. CDM Allocation
B2: CDM Savings Target Allocation by Rate Class
B4: Instruction | C4: Please update the template as needed or replace this spreadsheet with an existing templates that estimated savings in CDM forecast.
C5: An example template is provided below and can be filled in if it is applicable to the LDC. The LDC may re-populate CDM savings by rate class for historical years based on past year's approved cost of service application, or relevant information from Appendix 2-I.
C6: Alternatively, LDCs may want to link this spreadsheet to their CDM savings allocation (e.g. appended as another tab in this workbook) to fill in Tables 2, 3 and 4 below.
B8: Legend | C8: User Inputs (Green)
C9: Auto Populated Cells (White)
B11: Table 2. Amount used for CDM Threshold for LRAMVA
B13: Forecast Year | C13: kWh | D13: kW | E13: kWh (check)
B14: 2011 | C14: 21134911 | D14: =K44 -> -62262 | E14: =K40 -> -45191286
B15: 2012 | C15: 33090805 | D15: =K57 -> -62262 | E15: =K53 -> -45191286
B16: 2013 | C16: 45191286 | D16: =K70 -> -62262 | E16: =K66 -> -45191286
B17: 2014 | C17: 57222998 | D17: =K83 -> -62262 | E17: =K79 -> -45191286
B18: 2015 | C18: 35386333.33 | D18: =K96 -> -62262 | E18: =K92 -> -45191286
B19: 2016 | C19: 65172666.67 | D19: =K109 -> -62262 | E19: =K105 -> -45191286
B20: 2017 | C20: 94959000 | D20: =K122 -> -62262 | E20: =K118 -> -45191286
B22: Table 3. Allocation of CDM Savings (Energy and Demand Billed) by Rate Class in Approved Load Forecast
B24: Forecast Year | C24: ='1. LRAMVA Summary'!C21 -> Residential | D24: ='1. LRAMVA Summary'!D21 -> General Service <50 kW | E24: ='1. LRAMVA Summary'!E21 -> General Service 50 - 4,999 kW | F24: ='1. LRAMVA Summary'!F21 -> Co-Generation 1,000 - 4,999 kW | G24: ='1. LRAMVA Summary'!G21 -> Sentinel Lighting | H24: ='1. LRAMVA Summary'!H21 -> Street Lighting | I24: ='1. LRAMVA Summary'!I21 -> Unmetered Scattered Load | J24: ='1. LRAMVA Summary'!J21 -> Large User
C25: kWh | D25: kWh | E25: kW | F25: kW | G25: kW | H25: kW | I25: kWh
B26: 2011
B27: 2012
B28: 2013 | C28: =-C66 -> 14896090 | D28: =-D66 -> 5412016 | E28: =-E70 -> 53512 | F28: =-F70 -> 2704 | G28: =-G70 -> 28 | H28: 885 | I28: =-I66 -> 65791 | J28: =-J70 -> 5133
B29: 2014 | C29: =-C79 -> 14896090 | D29: =-D79 -> 5412016 | E29: =-E83 -> 53512 | F29: =-F83 -> 2704 | G29: =-G83 -> 28 | H29: 885 | I29: =-I79 -> 65791 | J29: =-J83 -> 5133
B30: 2015 | C30: =-C92 -> 14896090 | D30: =-D92 -> 5412016 | E30: =-E96 -> 53512 | F30: =-F96 -> 2704 | G30: =-G96 -> 28 | H30: 885 | I30: 65791 | J30: =-J96 -> 5133
B31: 2016 | C31: =-C105 -> 14896090 | D31: =-D105 -> 5412016 | E31: =-E109 -> 53512 | F31: =-F109 -> 2704 | G31: =-G109 -> 28 | H31: 885 | I31: 65791 | J31: =-J109 -> 5133
B32: 2017 | C32: =-C118 -> 14896090 | D32: =-D118 -> 5412016 | E32: =-E122 -> 53512 | F32: =-F122 -> 2704 | G32: =-G122 -> 28 | H32: 885 | I32: 65791 | J32: =-J122 -> 5133
B34: Tables 3A: CDM Adjustment as Approved in Cost of Service Application
B36: 2011 | C36: =$C$24 -> Residential | D36: =$D$24 -> General Service <50 kW | E36: =$E$24 -> General Service 50 - 4,999 kW | F36: =$F$24 -> Co-Generation 1,000 - 4,999 kW | G36: =$G$24 -> Sentinel Lighting | H36: =$H$24 -> Street Lighting | I36: =$I$24 -> Unmetered Scattered Load | J36: =$J$24 -> Large User | K36: Total | L36: =L24 -> 0 | M36: 0 | N36: 0
B37: kWh
B38: Weather Normal Billed kWh (2013) | C38: 1095015630 | D38: 402348879 | E38: 1583563103 | F38: 40933291 | G38: 781653 | H38: 24117946 | I38: 4973433 | J38: 197784305 | K38: =SUM(C38:J38) -> 3349518240 | L38: =3349518240-K38 -> 0
B39: % of Billed | C39: =C38/$K$38 -> 0.326917351 | D39: =D38/$K$38 -> 0.1201214175 | E39: 0.4727733929 | F39: 0.01222065027 | G39: 0.0002333628134 | H39: 0.007200422351 | I39: 0.001484820396 | J39: =J38/$K$38 -> 0.05904858276 | K39: =SUM(C39:J39) -> 1
B40: CDM Allocation | C40: -14896090 | D40: -5412016 | E40: -21361865 | F40: -552808 | G40: -10286 | H40: -315677 | I40: -65791 | J40: -2576753 | K40: =SUM(C40:J40) -> -45191286 | L40: =-45191286-K40 -> 0
B41: Adjusted Billed kWh with CDM Applied | C41: =C38+C40 -> 1080119540 | D41: =D38+D40 -> 396936863 | E41: 1562201238 | F41: 40380483 | G41: 771367 | H41: 23802269 | I41: 4907642 | J41: =J38+J40 -> 195207552 | K41: =SUM(C41:I41) -> 3109119402
B42: kW
B43: Weather Normal Billed kW (2013) | E43: 3966826 | F43: 200246 | G43: 2132 | H43: 67651 | J43: 393986 | K43: =SUM(C43:J43) -> 4630841 | L43: =4630841-K43 -> 0
B44: CDM kW Reduction | E44: -53512 | F44: -2704 | G44: -28 | H44: -885 | J44: -5133 | K44: =SUM(C44:J44) -> -62262 | L44: =-62262-K44 -> 0
B45: Adjusted Billed kWh with CDM Applied | E45: =E43+E44 -> 3913314 | F45: =F43+F44 -> 197542 | G45: 2104 | H45: 66766 | J45: =J43+J44 -> 388853 | K45: =SUM(C45:I45) -> 4179726
B46: kWh to kW Ratio | E46: =E43/E41 -> 0.002539254165 | F46: =F43/F41 -> 0.004958979812 | G46: 0.002763924306 | H46: 0.002842208026 | J46: =J43/J41 -> 0.002018292817
B49: 2012 | C49: =$C$24 -> Residential | D49: =$D$24 -> General Service <50 kW | E49: =$E$24 -> General Service 50 - 4,999 kW | F49: =$F$24 -> Co-Generation 1,000 - 4,999 kW | G49: =$G$24 -> Sentinel Lighting | H49: =$H$24 -> Street Lighting | I49: =$I$24 -> Unmetered Scattered Load | J49: =$J$24 -> Large User | K49: Total
B50: kWh
B51: Weather Normal Billed kWh (2013) | C51: 1095015630 | D51: 402348879 | E51: 1583563103 | F51: 40933291 | G51: 781653 | H51: 24117946 | I51: 4973433 | J51: 197784305 | K51: =SUM(C51:J51) -> 3349518240 | L51: =3349518240-K51 -> 0
B52: % of Billed | C52: =C51/$K$51 -> 0.326917351 | D52: =D51/$K$51 -> 0.1201214175 | E52: 0.4727733929 | F52: 0.01222065027 | G52: 0.0002333628134 | H52: 0.007200422351 | I52: 0.001484820396 | J52: 0.05904858276 | K52: =SUM(C52:J52) -> 1
B53: CDM Allocation | C53: -14896090 | D53: -5412016 | E53: -21361865 | F53: -552808 | G53: -10286 | H53: -315677 | I53: -65791 | J53: -2576753 | K53: =SUM(C53:J53) -> -45191286 | L53: =-45191286-K53 -> 0
B54: Adjusted Billed kWh with CDM Applied | C54: =C51+C53 -> 1080119540 | D54: =D51+D53 -> 396936863 | E54: 1562201238 | F54: 40380483 | G54: 771367 | H54: 23802269 | I54: 4907642 | J54: 195207552 | K54: =SUM(C54:I54) -> 3109119402
B55: kW
B56: Weather Normal Billed kW (2013) | E56: 3966826 | F56: 200246 | G56: 2132 | H56: 67651 | J56: 393986 | K56: =SUM(C56:J56) -> 4630841 | L56: =4630841-K56 -> 0
B57: CDM kW Reduction | E57: -53512 | F57: -2704 | G57: -28 | H57: -885 | J57: -5133 | K57: =SUM(C57:J57) -> -62262 | L57: =-62262-K57 -> 0
B58: Adjusted Billed kWh with CDM Applied | E58: =E56+E57 -> 3913314 | F58: =F56+F57 -> 197542 | G58: 2104 | H58: 66766 | J58: =J56+J57 -> 388853 | K58: =SUM(C58:I58) -> 4179726
B59: kWh to kW Ratio | E59: =E56/E54 -> 0.002539254165 | F59: =F56/F54 -> 0.004958979812 | G59: 0.002763924306 | H59: 0.002842208026 | J59: =J56/J54 -> 0.002018292817
B62: 2013 | C62: =$C$24 -> Residential | D62: =$D$24 -> General Service <50 kW | E62: =$E$24 -> General Service 50 - 4,999 kW | F62: =$F$24 -> Co-Generation 1,000 - 4,999 kW | G62: =$G$24 -> Sentinel Lighting | H62: =$H$24 -> Street Lighting | I62: =$I$24 -> Unmetered Scattered Load | J62: =$J$24 -> Large User | K62: Total
B63: kWh
B64: Weather Normal Billed kWh (2013) | C64: 1095015630 | D64: 402348879 | E64: 1583563103 | F64: 40933291 | G64: 781653 | H64: 24117946 | I64: 4973433 | J64: 197784305 | K64: =SUM(C64:J64) -> 3349518240 | L64: =3349518240-K64 -> 0
B65: % of Billed | C65: =C64/$K$64 -> 0.326917351 | D65: =D64/$K$64 -> 0.1201214175 | E65: 0.4727733929 | F65: 0.01222065027 | G65: 0.0002333628134 | H65: 0.007200422351 | I65: 0.001484820396 | J65: 0.05904858276 | K65: =SUM(C65:J65) -> 1
B66: CDM Allocation | C66: -14896090 | D66: -5412016 | E66: -21361865 | F66: -552808 | G66: -10286 | H66: -315677 | I66: -65791 | J66: -2576753 | K66: =SUM(C66:J66) -> -45191286 | L66: =-45191286-K66 -> 0
B67: Adjusted Billed kWh with CDM Applied | C67: =C64+C66 -> 1080119540 | D67: =D64+D66 -> 396936863 | E67: 1562201238 | F67: 40380483 | G67: 771367 | H67: 23802269 | I67: 4907642 | J67: 195207552 | K67: =SUM(C67:I67) -> 3109119402
B68: kW
B69: Weather Normal Billed kW (2013) | E69: 3966826 | F69: 200246 | G69: 2132 | H69: 67651 | J69: 393986 | K69: =SUM(C69:J69) -> 4630841 | L69: =4630841-K69 -> 0
B70: CDM kW Reduction | E70: -53512 | F70: -2704 | G70: -28 | H70: -885 | J70: -5133 | K70: =SUM(C70:J70) -> -62262 | L70: =-62262-K70 -> 0
B71: Adjusted Billed kWh with CDM Applied | E71: =E69+E70 -> 3913314 | F71: =F69+F70 -> 197542 | G71: 2104 | H71: 66766 | J71: =J69+J70 -> 388853 | K71: =SUM(C71:I71) -> 4179726
B72: kWh to kW Ratio | E72: =E69/E67 -> 0.002539254165 | F72: =F69/F67 -> 0.004958979812 | G72: 0.002763924306 | H72: 0.002842208026 | J72: =J69/J67 -> 0.002018292817
B75: 2014 | C75: =$C$24 -> Residential | D75: =$D$24 -> General Service <50 kW | E75: =$E$24 -> General Service 50 - 4,999 kW | F75: =$F$24 -> Co-Generation 1,000 - 4,999 kW | G75: =$G$24 -> Sentinel Lighting | H75: =$H$24 -> Street Lighting | I75: =$I$24 -> Unmetered Scattered Load | J75: =$J$24 -> Large User | K75: Total
B76: kWh
B77: Weather Normal Billed kWh (2013) | C77: 1095015630 | D77: 402348879 | E77: 1583563103 | F77: 40933291 | G77: 781653 | H77: 24117946 | I77: 4973433 | J77: 197784305 | K77: =SUM(C77:J77) -> 3349518240 | L77: =3349518240-K77 -> 0
B78: % of Billed | C78: =C77/$K$77 -> 0.326917351 | D78: =D77/$K$77 -> 0.1201214175 | E78: 0.4727733929 | F78: 0.01222065027 | G78: 0.0002333628134 | H78: 0.007200422351 | I78: 0.001484820396 | J78: 0.05904858276 | K78: =SUM(C78:J78) -> 1
B79: CDM Allocation | C79: -14896090 | D79: -5412016 | E79: -21361865 | F79: -552808 | G79: -10286 | H79: -315677 | I79: -65791 | J79: -2576753 | K79: =SUM(C79:J79) -> -45191286 | L79: =-45191286-K79 -> 0
B80: Adjusted Billed kWh with CDM Applied | C80: =C77+C79 -> 1080119540 | D80: =D77+D79 -> 396936863 | E80: 1562201238 | F80: 40380483 | G80: 771367 | H80: 23802269 | I80: 4907642 | J80: 195207552 | K80: =SUM(C80:I80) -> 3109119402
B81: kW
B82: Weather Normal Billed kW (2013) | E82: 3966826 | F82: 200246 | G82: 2132 | H82: 67651 | J82: 393986 | K82: =SUM(C82:J82) -> 4630841 | L82: =4630841-K82 -> 0
B83: CDM kW Reduction | E83: -53512 | F83: -2704 | G83: -28 | H83: -885 | J83: -5133 | K83: =SUM(C83:J83) -> -62262 | L83: =-62262-K83 -> 0
B84: Adjusted Billed kWh with CDM Applied | E84: =E82+E83 -> 3913314 | F84: =F82+F83 -> 197542 | G84: 2104 | H84: 66766 | J84: =J82+J83 -> 388853 | K84: =SUM(C84:I84) -> 4179726
B85: kWh to kW Ratio | E85: =E82/E80 -> 0.002539254165 | F85: =F82/F80 -> 0.004958979812 | G85: 0.002763924306 | H85: 0.002842208026 | J85: =J82/J80 -> 0.002018292817
B88: 2015 | C88: =$C$24 -> Residential | D88: =$D$24 -> General Service <50 kW | E88: =$E$24 -> General Service 50 - 4,999 kW | F88: =$F$24 -> Co-Generation 1,000 - 4,999 kW | G88: =$G$24 -> Sentinel Lighting | H88: =$H$24 -> Street Lighting | I88: =$I$24 -> Unmetered Scattered Load | J88: =$J$24 -> Large User | K88: Total
B89: kWh
B90: Weather Normal Billed kWh (2013) | C90: 1095015630 | D90: 402348879 | E90: 1583563103 | F90: 40933291 | G90: 781653 | H90: 24117946 | I90: 4973433 | J90: 197784305 | K90: =SUM(C90:J90) -> 3349518240 | L90: =3349518240-K90 -> 0
B91: % of Billed | C91: =C90/$K$90 -> 0.326917351 | D91: =D90/$K$90 -> 0.1201214175 | E91: 0.4727733929 | F91: 0.01222065027 | G91: 0.0002333628134 | H91: 0.007200422351 | I91: 0.001484820396 | J91: 0.05904858276 | K91: =SUM(C91:J91) -> 1
B92: CDM Allocation | C92: -14896090 | D92: -5412016 | E92: -21361865 | F92: -552808 | G92: -10286 | H92: -315677 | I92: -65791 | J92: -2576753 | K92: =SUM(C92:J92) -> -45191286 | L92: =-45191286-K92 -> 0
B93: Adjusted Billed kWh with CDM Applied | C93: =C90+C92 -> 1080119540 | D93: =D90+D92 -> 396936863 | E93: 1562201238 | F93: 40380483 | G93: 771367 | H93: 23802269 | I93: 4907642 | J93: 195207552 | K93: =SUM(C93:I93) -> 3109119402
B94: kW
B95: Weather Normal Billed kW (2013) | E95: 3966826 | F95: 200246 | G95: 2132 | H95: 67651 | J95: 393986 | K95: =SUM(C95:J95) -> 4630841 | L95: =4630841-K95 -> 0
B96: CDM kW Reduction | E96: -53512 | F96: -2704 | G96: -28 | H96: -885 | J96: -5133 | K96: =SUM(C96:J96) -> -62262 | L96: =-62262-K96 -> 0
B97: Adjusted Billed kWh with CDM Applied | E97: =E95+E96 -> 3913314 | F97: =F95+F96 -> 197542 | G97: 2104 | H97: 66766 | J97: =J95+J96 -> 388853 | K97: =SUM(C97:I97) -> 4179726
B98: kWh to kW Ratio | E98: =E95/E93 -> 0.002539254165 | F98: =F95/F93 -> 0.004958979812 | G98: 0.002763924306 | H98: 0.002842208026 | J98: =J95/J93 -> 0.002018292817
B101: 2016 | C101: =$C$24 -> Residential | D101: =$D$24 -> General Service <50 kW | E101: =$E$24 -> General Service 50 - 4,999 kW | F101: =$F$24 -> Co-Generation 1,000 - 4,999 kW | G101: =$G$24 -> Sentinel Lighting | H101: =$H$24 -> Street Lighting | I101: =$I$24 -> Unmetered Scattered Load | J101: =$J$24 -> Large User | K101: Total
B102: kWh
B103: Weather Normal Billed kWh (2013) | C103: 1095015630 | D103: 402348879 | E103: 1583563103 | F103: 40933291 | G103: 781653 | H103: 24117946 | I103: 4973433 | J103: 197784305 | K103: =SUM(C103:J103) -> 3349518240 | L103: =3349518240-K103 -> 0
B104: % of Billed | C104: =C103/$K$103 -> 0.326917351 | D104: =D103/$K$103 -> 0.1201214175 | E104: 0.4727733929 | F104: 0.01222065027 | G104: 0.0002333628134 | H104: 0.007200422351 | I104: 0.001484820396 | J104: 0.05904858276 | K104: =SUM(C104:J104) -> 1
B105: CDM Allocation | C105: -14896090 | D105: -5412016 | E105: -21361865 | F105: -552808 | G105: -10286 | H105: -315677 | I105: -65791 | J105: -2576753 | K105: =SUM(C105:J105) -> -45191286 | L105: =-45191286-K105 -> 0
B106: Adjusted Billed kWh with CDM Applied | C106: =C103+C105 -> 1080119540 | D106: =D103+D105 -> 396936863 | E106: 1562201238 | F106: 40380483 | G106: 771367 | H106: 23802269 | I106: 4907642 | J106: 195207552 | K106: =SUM(C106:I106) -> 3109119402
B107: kW
B108: Weather Normal Billed kW (2013) | E108: 3966826 | F108: 200246 | G108: 2132 | H108: 67651 | J108: 393986 | K108: =SUM(C108:J108) -> 4630841 | L108: =4630841-K108 -> 0
B109: CDM kW Reduction | E109: -53512 | F109: -2704 | G109: -28 | H109: -885 | J109: -5133 | K109: =SUM(C109:J109) -> -62262 | L109: =-62262-K109 -> 0
B110: Adjusted Billed kWh with CDM Applied | E110: =E108+E109 -> 3913314 | F110: =F108+F109 -> 197542 | G110: 2104 | H110: 66766 | J110: =J108+J109 -> 388853 | K110: =SUM(C110:I110) -> 4179726
B111: kWh to kW Ratio | E111: =E108/E106 -> 0.002539254165 | F111: =F108/F106 -> 0.004958979812 | G111: 0.002763924306 | H111: 0.002842208026 | J111: =J108/J106 -> 0.002018292817
B114: 2017 | C114: =$C$24 -> Residential | D114: =$D$24 -> General Service <50 kW | E114: =$E$24 -> General Service 50 - 4,999 kW | F114: =$F$24 -> Co-Generation 1,000 - 4,999 kW | G114: =$G$24 -> Sentinel Lighting | H114: =$H$24 -> Street Lighting | I114: =$I$24 -> Unmetered Scattered Load | J114: =$J$24 -> Large User | K114: Total
B115: kWh
B116: Weather Normal Billed kWh (2013) | C116: 1095015630 | D116: 402348879 | E116: 1583563103 | F116: 40933291 | G116: 781653 | H116: 24117946 | I116: 4973433 | J116: 197784305 | K116: =SUM(C116:J116) -> 3349518240 | L116: =3349518240-K116 -> 0
B117: % of Billed | C117: =C116/$K$116 -> 0.326917351 | D117: =D116/$K$116 -> 0.1201214175 | E117: 0.4727733929 | F117: 0.01222065027 | G117: 0.0002333628134 | H117: 0.007200422351 | I117: 0.001484820396 | J117: 0.05904858276 | K117: =SUM(C117:J117) -> 1
B118: CDM Allocation | C118: -14896090 | D118: -5412016 | E118: -21361865 | F118: -552808 | G118: -10286 | H118: -315677 | I118: -65791 | J118: -2576753 | K118: =SUM(C118:J118) -> -45191286 | L118: =-45191286-K118 -> 0
B119: Adjusted Billed kWh with CDM Applied | C119: =C116+C118 -> 1080119540 | D119: =D116+D118 -> 396936863 | E119: 1562201238 | F119: 40380483 | G119: 771367 | H119: 23802269 | I119: 4907642 | J119: 195207552 | K119: =SUM(C119:I119) -> 3109119402
B120: kW
B121: Weather Normal Billed kW (2013) | E121: 3966826 | F121: 200246 | G121: 2132 | H121: 67651 | J121: 393986 | K121: =SUM(C121:J121) -> 4630841 | L121: =4630841-K121 -> 0
B122: CDM kW Reduction | E122: -53512 | F122: -2704 | G122: -28 | H122: -885 | J122: -5133 | K122: =SUM(C122:J122) -> -62262 | L122: =-62262-K122 -> 0
B123: Adjusted Billed kWh with CDM Applied | E123: =E121+E122 -> 3913314 | F123: =F121+F122 -> 197542 | G123: 2104 | H123: 66766 | J123: =J121+J122 -> 388853 | K123: =SUM(C123:I123) -> 4179726
B124: kWh to kW Ratio | E124: =E121/E119 -> 0.002539254165 | F124: =F121/F119 -> 0.004958979812 | G124: 0.002763924306 | H124: 0.002842208026 | J124: =J121/J119 -> 0.002018292817
B129: Table 4. Forecast Lost Revenue Amounts by Rate Class
B131: Forecast Year | C131: =C24 -> Residential | D131: General Service <50 kW | E131: General Service 50 - 4,999 kW | F131: Co-Generation 1,000 - 4,999 kW | G131: Sentinel Lighting | H131: Street Lighting | I131: Unmetered Scattered Load | J131: Large User | K131: Total
C132: $ | D132: $ | E132: $ | F132: $ | G132: $ | H132: $ | I132: $ | J132: $ | K132: $
B133: 2011 | C133: =C26*'3. Distribution Rates'!E33 -> 0 | D133: =D26*'3. Distribution Rates'!E34 -> 0 | E133: =E26*'3. Distribution Rates'!E35 -> 0 | F133: =F26*'3. Distribution Rates'!E36 -> 0 | G133: =G26*'3. Distribution Rates'!E37 -> 0 | H133: =H26*'3. Distribution Rates'!E38 -> 0 | I133: =I26*'3. Distribution Rates'!E39 -> 0 | J133: =J26*'3. Distribution Rates'!E40 -> 0 | K133: =SUM(C133:J133) -> 0
B134: 2012 | C134: =C27*'3. Distribution Rates'!F33 -> 0 | D134: =D27*'3. Distribution Rates'!F34 -> 0 | E134: =E27*'3. Distribution Rates'!F35 -> 0 | F134: =F27*'3. Distribution Rates'!F36 -> 0 | G134: =G27*'3. Distribution Rates'!F37 -> 0 | H134: =H27*'3. Distribution Rates'!F38 -> 0 | I134: =I27*'3. Distribution Rates'!F39 -> 0 | J134: =J27*'3. Distribution Rates'!F40 -> 0 | K134: 0
B135: 2013 | C135: =C28*'3. Distribution Rates'!G33 -> 222944.8137 | D135: =D28*'3. Distribution Rates'!G34 -> 51955.3536 | E135: =E28*'3. Distribution Rates'!G35 -> 117614.0248 | F135: =F28*'3. Distribution Rates'!G36 -> 11113.80053 | G135: =G28*'3. Distribution Rates'!G37 -> 296.2166667 | H135: =H28*'3. Distribution Rates'!G38 -> 6824.471 | I135: =I28*'3. Distribution Rates'!G39 -> 1004.409267 | J135: =J28*'3. Distribution Rates'!G40 -> 10981.0269 | K135: 422734.1164
B136: 2014 | C136: =C29*'3. Distribution Rates'!H33 -> 232875.5403 | D136: =D29*'3. Distribution Rates'!H34 -> 54300.56053 | E136: =E29*'3. Distribution Rates'!H35 -> 135367.5227 | F136: =F29*'3. Distribution Rates'!H36 -> 11468.2048 | G136: =G29*'3. Distribution Rates'!H37 -> 309.3048 | H136: =H29*'3. Distribution Rates'!H38 -> 7248.268 | I136: =I29*'3. Distribution Rates'!H39 -> 1138.1843 | J136: =J29*'3. Distribution Rates'!H40 -> 10864.3367 | K136: 453571.9221
B137: 2015 | C137: =C30*'3. Distribution Rates'!I33 -> 235854.7583 | D137: =D30*'3. Distribution Rates'!I34 -> 55022.16267 | E137: =E30*'3. Distribution Rates'!I35 -> 137376.0064 | F137: =F30*'3. Distribution Rates'!I36 -> 11638.2864 | G137: =G30*'3. Distribution Rates'!I37 -> 313.8921333 | H137: =H30*'3. Distribution Rates'!I38 -> 7355.766 | I137: =I30*'3. Distribution Rates'!I39 -> 1157.9216 | J137: =J30*'3. Distribution Rates'!I40 -> 11025.3418 | K137: 459744.1353
B138: 2016 | C138: =C31*'3. Distribution Rates'!J33 -> 199111.0697 | D138: =D31*'3. Distribution Rates'!J34 -> 55924.16533 | E138: =E31*'3. Distribution Rates'!J35 -> 139882.1517 | F138: =F31*'3. Distribution Rates'!J36 -> 11848.83787 | G138: =G31*'3. Distribution Rates'!J37 -> 319.6918667 | H138: =H31*'3. Distribution Rates'!J38 -> 7491.466 | I138: =I31*'3. Distribution Rates'!J39 -> 1177.6589 | J138: =J31*'3. Distribution Rates'!J40 -> 11227.9242 | K138: 426982.9656
B139: 2017 | C139: =C32*'3. Distribution Rates'!K33 -> 180242.689 | D139: =D32*'3. Distribution Rates'!K34 -> 56284.9664 | E139: =E32*'3. Distribution Rates'!K35 -> 140806.1256 | F139: =F32*'3. Distribution Rates'!K36 -> 11926.2624 | G139: =G32*'3. Distribution Rates'!K37 -> 321.8404 | H139: =H32*'3. Distribution Rates'!K38 -> 7541.7045 | I139: =I32*'3. Distribution Rates'!K39 -> 1184.238 | J139: =J32*'3. Distribution Rates'!K40 -> 11302.866 | K139: 409610.6923

Sheet 3. Distribution Rates
B3: Distribution Rates
B5: Instruction | C5: Please update Table 5 with the approved distribution rates for the utility's respective rate classes. The applicable rates to estimate lost revenues will autopopulate in Table 6 and be used in the LRAM Work Sheets (Tab 4 and Tab 5) for the applicable year in which LRAM is claimed.
C6: LDCs to update the rate classes as appropriate below depending on the utility's customer mix.
B7: Legend | C7: User Inputs (Green)
C8: Auto Populated Cells (White)
B12: Table 5. Distribution Volumetric Rate by Billing Period
B14: Decision & Orders for Approved Volumetric Rates: | D14: EB-2009-0235 | E14: EB-2010-0097 | F14: EB-2011-0181 | G14: EB-2012-0146 | H14: EB-2013-0150 | I14: EB-2014-0092 | J14: EB-2015-0087 | K14: EB-2016-0091
B16: Rate Class | C16: Billing Unit | D16: May 1, 2010 to Apr 30, 2011 | E16: May 1, 2011 to Apr 30, 2012 | F16: May 1, 2012 to Apr 30, 2013 | G16: May 1, 2013 to Apr 30, 2014 | H16: May 1, 2014 to Apr 30, 2015 | I16: May 1, 2015 to Apr 30, 2016 | J16: May 1, 2016 to Apr 30, 2017 | K16: May 1, 2017 to Apr 30, 2018
B17: Rate Year | D17: 2010 | E17: 2011 | F17: 2012 | G17: 2013 | H17: 2014 | I17: 2015 | J17: 2016 | K17: 2017
B18: Pro-ratio of Rates (months) - Period 1 | D18: 4 | E18: 4 | F18: 4 | G18: 4 | H18: 4 | I18: 4 | J18: 4 | K18: 4
B19: Pro-ratio of Rates (months) - Period 2 | D19: =12-D18 -> 8 | E19: =12-E18 -> 8 | F19: =12-F18 -> 8 | G19: 8 | H19: 8 | I19: 8 | J19: 8 | K19: 8
B20: ='2. CDM Allocation'!C24 -> Residential | C20: ='2. CDM Allocation'!C25 -> kWh | D20: =0.0142-0.0002 -> 0.014 | E20: =0.0142-0.0003 -> 0.0139 | F20: =0.0143-0.0004 -> 0.0139 | G20: 0.0155 | H20: 0.0157 | I20: 0.0159 | J20: 0.0121 | K20: 0.0121
B21: ='2. CDM Allocation'!D24 -> General Service <50 kW | C21: ='2. CDM Allocation'!D25 -> kWh | D21: =0.0091-0.0001 -> 0.009 | E21: =0.0091-0.0002 -> 0.0089 | F21: =0.0092-0.0002 -> 0.009 | G21: 0.0099 | H21: 0.0101 | I21: 0.0102 | J21: 0.0104 | K21: 0.0104
B22: ='2. CDM Allocation'!E24 -> General Service 50 - 4,999 kW | C22: ='2. CDM Allocation'!E25 -> kW | D22: =1.6052-0.0171 -> 1.5881 | E22: =1.6081-0.0259 -> 1.5822 | F22: =1.6223-0.0362 -> 1.5861 | G22: 2.5038 | H22: 2.5426 | I22: 2.5795 | J22: 2.6313 | K22: 2.6313
B23: ='2. CDM Allocation'!F24 -> Co-Generation 1,000 - 4,999 kW | C23: ='2. CDM Allocation'!F25 -> kW | D23: =3.9642-0.0337 -> 3.9305 | E23: =3.9713-0.051 -> 3.9203 | F23: =4.0062-0.0714 -> 3.9348 | G23: 4.1978 | H23: 4.2629 | I23: 4.3247 | J23: 4.4106 | K23: 4.4106
B24: ='2. CDM Allocation'!G24 -> Sentinel Lighting | C24: ='2. CDM Allocation'!G25 -> kW | D24: =10.0297-0.1253 -> 9.9044 | E24: =10.0478-0.1898 -> 9.858 | F24: =10.1362-0.2659 -> 9.8703 | G24: 10.9336 | H24: 11.1031 | I24: 11.2641 | J24: 11.4943 | K24: 11.4943
B25: ='2. CDM Allocation'!H24 -> Street Lighting | C25: ='2. CDM Allocation'!H25 -> kW | D25: =7.0355-0.0897 -> 6.9458 | E25: =7.0482-0.1353 -> 6.9129 | F25: =7.1102-0.1892 -> 6.921 | G25: 8.1064 | H25: 8.232 | I25: 8.3514 | J25: 8.5217 | K25: 8.5217
B26: ='2. CDM Allocation'!I24 -> Unmetered Scattered Load | C26: ='2. CDM Allocation'!I25 -> kWh | D26: =0.0117-0.0001 -> 0.0116 | E26: =0.0117-0.0001 -> 0.0116 | F26: =0.0118-0.0002 -> 0.0116 | G26: 0.0171 | H26: 0.0174 | I26: 0.0177 | J26: 0.018 | K26: 0.018
B27: ='2. CDM Allocation'!J24 -> Large User | C27: ='2. CDM Allocation'!H25 -> kW | D27: =2.2552-0.0241 -> 2.2311 | E27: =2.2593-0.0365 -> 2.2228 | F27: =2.2792-0.0511 -> 2.2281 | G27: 2.0949 | H27: 2.1274 | I27: 2.1582 | J27: 2.202 | K27: 2.202
B30: Table 6. Summary Table: Average Distribution Volumetric Rates by Year for LRAM Calculation
B32: Rate Class | C32: Billing Unit | E32: 2011 | F32: 2012 | G32: 2013 | H32: 2014 | I32: 2015 | J32: 2016 | K32: 2017
B33: =B20 -> Residential | C33: =C20 -> kWh | E33: =SUM(D20*$E$18+E20*$E$19)/12 -> 0.01393333333 | F33: =SUM(E20*$F$18+F20*$F$19)/12 -> 0.0139 | G33: =SUM(F20*$G$18+G20*$G$19)/12 -> 0.01496666667 | H33: =SUM(G20*$H$18+H20*$H$19)/12 -> 0.01563333333 | I33: =SUM(H20*$I$18+I20*$I$19)/12 -> 0.01583333333 | J33: =SUM(I20*$J$18+J20*$J$19)/12 -> 0.01336666667 | K33: =SUM(J20*$K$18+K20*$K$19)/12 -> 0.0121
B34: =B21 -> General Service <50 kW | C34: kWh | E34: 0.008933333333 | F34: 0.008966666667 | G34: =SUM(F21*$G$18+G21*$G$19)/12 -> 0.0096 | H34: 0.01003333333 | I34: 0.01016666667 | J34: 0.01033333333 | K34: =SUM(J21*$K$18+K21*$K$19)/12 -> 0.0104
B35: General Service 50 - 4,999 kW | C35: kW | E35: 1.584166667 | F35: 1.5848 | G35: 2.1979 | H35: 2.529666667 | I35: 2.5672 | J35: 2.614033333 | K35: 2.6313
B36: Co-Generation 1,000 - 4,999 kW | C36: kW | E36: 3.9237 | F36: 3.929966667 | G36: 4.110133333 | H36: 4.2412 | I36: 4.3041 | J36: 4.381966667 | K36: 4.4106
B37: Sentinel Lighting | C37: kW | E37: 9.873466667 | F37: 9.8662 | G37: 10.57916667 | H37: 11.0466 | I37: 11.21043333 | J37: 11.41756667 | K37: 11.4943
B38: Street Lighting | C38: kW | E38: 6.923866667 | F38: 6.9183 | G38: 7.711266667 | H38: 8.190133333 | I38: 8.3116 | J38: 8.464933333 | K38: 8.5217
B39: Unmetered Scattered Load | C39: kWh | E39: 0.0116 | F39: 0.0116 | G39: 0.01526666667 | H39: 0.0173 | I39: 0.0176 | J39: 0.0179 | K39: 0.018
B40: Large User | C40: kW | E40: 2.225566667 | F40: 2.226333333 | G40: 2.1393 | H40: 2.116566667 | I40: 2.147933333 | J40: 2.1874 | K40: 2.202

Sheet 4. 2011-14 LRAM
B3: 2011-2014 Lost Revenues Work Form
C5: Instruction | D5: The following LRAM work forms apply to LDCs that need to recover lost revenues from the 2011-2014 period.
D6: This workbook contains links from Tab 3 (Distribution Rates) and Tab 6 (Persistence Rates).
D7: Demand Response (DR3) Savings should generally not be included with the LRAMVA calculation, unless suported by empirical evidence
D8: Please see revised LRAM policy related to peak demand savings, issued by the OEB in EB-2016-0182.
D10: LDC to adjust the rate allocations by class (columns h to n). Please insert IESO verified savings for applicable programs (columns f to g).
D11: Adjustments will apply to the year that LRAM is claimed.
C12: Legend
D13: User Inputs (Green)
D14: Auto Populated Cells (White)
B17: Table 7. 2011 Lost Revenues Work Form
B19: # | C19: Initiative | D19: Results Status | E19: Months of Demand Savings | F19: Net Incremental Peak Demand Savings (kW) | G19: Net Incremental Energy Savings (kWh) | H19: Rate Allocation for LRAMVA
F20: 2011 kW Saved | G20: 2011 kWh Saved | H20: ='1. LRAMVA Summary'!C21 -> Residential | I20: ='1. LRAMVA Summary'!D21 -> General Service <50 kW | J20: ='1. LRAMVA Summary'!E21 -> General Service 50 - 4,999 kW | K20: ='1. LRAMVA Summary'!F21 -> Co-Generation 1,000 - 4,999 kW | L20: ='1. LRAMVA Summary'!G21 -> Sentinel Lighting | M20: ='1. LRAMVA Summary'!H21 -> Street Lighting | N20: ='1. LRAMVA Summary'!I21 -> Unmetered Scattered Load | O20: ='1. LRAMVA Summary'!J21 -> Large User | P20: ='1. LRAMVA Summary'!K21 -> Total
A21: 2011 | C21: Consumer Program
B22: 1 | C22: Appliance Retirement | D22: Verified | F22: 166.5871068 | G22: 1002610.103 | H22: 1 | P22: =SUM(H22:O22) -> 1
B23: 2 | C23: Appliance Exchange | D23: Verified | F23: 12.3476497 | G23: 15909.72669 | H23: 1 | P23: =SUM(H23:O23) -> 1
B24: 3 | C24: HVAC Incentives | D24: Verified | F24: 1052.053576 | G24: 1901868.19 | H24: 1 | P24: 1
B25: 4 | C25: Conservation Instant Coupon Booklet | D25: Verified | F25: 31.7706784 | G25: 512644.0571 | H25: 1 | P25: 1
B26: 5 | C26: Bi-Annual Retailer Event | D26: Verified | F26: 45.91825679 | G26: 802520.9051 | H26: 1 | P26: 1
B27: 6 | C27: Retailer Co-op | D27: Verified | F27: 0 | G27: 0 | H27: 1 | P27: 1
B28: 7 | C28: Residential Demand Response | D28: Verified | F28: 0 | G28: 0 | H28: 1 | P28: 1
B29: 8 | C29: Residential New Construction | D29: Verified | F29: 0 | G29: 0 | H29: 1 | P29: 1
C30: Adjustments to 2011 results (if any) | D30: True-up | H30: 1 | P30: 1
C31: =+C24 -> HVAC Incentives | F31: -136.9967797 | G31: -245123.9489 | H31: 1 | P31: 1
C32: =+C25 -> Conservation Instant Coupon Booklet | F32: 0 | G32: 7528 | H32: 1 | P32: 1
C33: =+C26 -> Bi-Annual Retailer Event | F33: 2.945581115 | G33: 59624.62337 | H33: 1 | P33: 1
C34: Business Program
B35: 9 | C35: Retrofit | D35: Verified | E35: 12 | F35: 1034 | G35: 5260353 | I35: 0.082 | J35: 0.918 | P35: =SUM(H35:O35) -> 1
B36: 10 | C36: Direct Install Lighting | D36: Verified | E36: 12 | F36: 55.9296868 | G36: 145929.318 | I36: 1 | J36: 0 | P36: 1
B37: 11 | C37: Building Commissioning | D37: Verified | E37: 3 | F37: 0 | G37: 0 | I37: 1 | J37: 0 | P37: 1
B38: 12 | C38: New Construction | D38: Verified | E38: 12 | F38: 0 | G38: 0 | I38: 0.082 | J38: 0.918 | P38: 1
B39: 13 | C39: Energy Audit | D39: Verified | E39: 12 | F39: 0 | G39: 0 | I39: 1 | J39: 0 | P39: 1
B40: 14 | C40: Commercial Demand Response (part of residential program) | D40: Verified | E40: 0 | F40: 0 | G40: 0 | I40: 1 | J40: 0 | P40: 1
B41: 15 | C41: Demand Response 3 | D41: Verified | E41: 0 | F41: 487 | G41: 19012 | I41: 1 | J41: 0 | P41: 1
C42: Adjustments to 2011 results (if any) | D42: True-up | I42: 1 | J42: 0 | P42: 1
C43: =+C35 -> Retrofit | E43: 12 | F43: 56 | G43: 297630 | I43: 0.082 | J43: 0.918 | P43: 1
C44: =+C36 -> Direct Install Lighting | E44: 12 | F44: 9.131988785 | G44: 23307.59518 | I44: 1 | J44: 0 | P44: 1
C45: =+C39 -> Energy Audit | E45: 12 | F45: 49 | G45: 237585 | I45: 1 | J45: 0 | P45: 1
C46: Industrial Program
B47: 16 | C47: Process & System Upgrades | D47: Verified | E47: 12 | F47: 0 | G47: 0 | I47: 0 | J47: 1 | P47: =SUM(H47:O47) -> 1
B48: 17 | C48: Monitoring & Targeting | D48: Verified | E48: 12 | F48: 0 | G48: 0 | I48: 0 | J48: 1 | P48: 1
B49: 18 | C49: Energy Manager | D49: Verified | E49: 12 | F49: 0 | G49: 0 | I49: 0 | J49: 1 | P49: 1
B50: 19 | C50: Retrofit | D50: Verified | E50: 12 | F50: 128 | G50: 756174 | I50: 0.082 | J50: 0.918 | P50: 1
B51: 20 | C51: Demand Response 3 | D51: Verified | E51: 0 | F51: 2137 | G51: 125454 | I51: 0 | J51: 1 | P51: 1
C52: Adjustments to 2011 results (if any) | D52: True-up | I52: 0 | J52: 1 | P52: 1
I53: 0 | J53: 1 | P53: 1
I54: 0 | J54: 1 | P54: 1
C55: Home Assistance Program
B56: 21 | C56: Home Assistance Program | D56: Verified | H56: 1 | P56: =SUM(H56:O56) -> 1
C57: Adjustments to 2011 results (if any) | D57: True-up
C60: Pre-2011 Programs completed in 2011
B61: 22 | C61: Electricity Retrofit Incentive Program | D61: Verified | E61: 12 | F61: 1359 | G61: 9726531 | I61: 0.082 | J61: 0.918 | P61: =SUM(H61:O61) -> 1
B62: 23 | C62: High Performance New Construction | D62: Verified | E62: 12 | F62: 169 | G62: 865905 | I62: 0.082 | J62: 0.918 | P62: 1
B63: 24 | C63: Toronto Comprehensive | D63: Verified | F63: 0 | G63: 0 | P63: 0
B64: 25 | C64: Multifamily Energy Efficiency Rebates | D64: Verified | F64: 0 | G64: 0 | P64: 0
C65: Adjustments to 2011 results (if any) | D65: True-up | P65: 0
C66: =+C62 -> High Performance New Construction | E66: 12 | F66: -2 | G66: -33545 | I66: 0.082 | J66: 0.918 | P66: 1
P67: 0
P68: 0
C69: Total kWh | F69: =SUM(F22:F68) -> 6656.687745 | G69: =SUM(G22:G68) -> 21481917.57 | H69: =SUM($G$22*$H$22,$G$23*$H$23,$G$24*$H$24,$G$25*$H$25,$G$26*$H$26,$G$27*$H$27,$G$28*$H$28,$G$29*$H$29,$G$30*$H$30,$G$31*$H$31,$G$32*$H$32,$G$33*$H$33,$G$34*$H$34,$G$35*$H$35,$G$36*$H$36,$G$37*$H$37,$G$38*$H$38,$G$39*$H$39,$G$40*$H$40,$G$41*$H$41,$G$42*$H$42,$G$43*$H$43,$G$44*$H$44,$G$45*$H$45,$G$46*$H$46,$G$47*$H$47,$G$48*$H$48,$G$49*$H$49,$G$50*$H$50,$G$51*$H$51,$G$52*$H$52,$G$53*$H$53,$G$54*$H$54,$G$55*$H$55,$G$56*$H$56,$G$57*$H$57,$G$58*$H$58,$G$59*$H$59,$G$60*$H$60,$G$61*$H$61,$G$62*$H$62,$G$63*$H$63,$G$64*$H$64,$G$65*$H$65,$G$66*$H$66,$G$67*$H$67,$G$68*$H$68,) -> 4057581.656 | I69: =SUM($G$22*$I$22,$G$23*$I$23,$G$24*$I$24,$G$25*$I$25,$G$26*$I$26,$G$27*$I$27,$G$28*$I$28,$G$29*$I$29,$G$30*$I$30,$G$31*$I$31,$G$32*$I$32,$G$33*$I$33,$G$34*$I$34,$G$35*$I$35,$G$36*$I$36,$G$37*$I$37,$G$38*$I$38,$G$39*$I$39,$G$40*$I$40,$G$41*$I$41,$G$42*$I$42,$G$43*$I$43,$G$44*$I$44,$G$45*$I$45,$G$46*$I$46,$G$47*$I$47,$G$48*$I$48,$G$49*$I$49,$G$50*$I$50,$G$51*$I$51,$G$52*$I$52,$G$53*$I$53,$G$54*$I$54,$G$55*$I$55,$G$56*$I$56,$G$57*$I$57,$G$58*$I$58,$G$59*$I$59,$G$60*$I$60,$G$61*$I$61,$G$62*$I$62,$G$63*$I$63,$G$64*$I$64,$G$65*$I$65,$G$66*$I$66,$G$67*$I$67,$G$68*$I$68,) -> 1809423.849 | P69: =SUM(H69:O69) -> 5867005.506
C70: Total kWh (excludes DR) | F70: =SUM(F22:F68)-F28-F41-F51 -> 4032.687745 | G70: =SUM(G22:G68)-G28-G41-G51 -> 21337451.57 | H70: =H69-(G28*H28) -> 4057581.656 | I70: =I69-SUM(G40*I40,G41*I41) -> 1790411.849
C71: Total GS > 50 kW | J71: =SUM($E$22*$F$22*$J$22,$E$23*$F$23*$J$23,$E$24*$F$24*$J$24,$E$25*$F$25*$J$25,$E$26*$F$26*$J$26,$E$27*$F$27*$J$27,$E$28*$F$28*$J$28,$E$29*$F$29*$J$29,$E$30*$F$30*$J$30,$E$31*$F$31*$J$31,$E$32*$F$32*$J$32,$E$33*$F$33*$J$33,$E$34*$F$34*$J$34,$E$35*$F$35*$J$35,$E$36*$F$36*$J$36,$E$37*$F$37*$J$37,$E$38*$F$38*$J$38,$E$39*$F$39*$J$39,$E$40*$F$40*$J$40,$E$41*$F$41*$J$41,$E$42*$F$42*$J$42,$E$43*$F$43*$J$43,$E$44*$F$44*$J$44,$E$45*$F$45*$J$45,$E$46*$F$46*$J$46,$E$47*$F$47*$J$47,$E$48*$F$48*$J$48,$E$49*$F$49*$J$49,$E$50*$F$50*$J$50,$E$51*$F$51*$J$51,$E$52*$F$52*$J$52,$E$53*$F$53*$J$53,$E$54*$F$54*$J$54,$E$55*$F$55*$J$55,$E$56*$F$56*$J$56,$E$57*$F$57*$J$57,$E$58*$F$58*$J$58,$E$59*$F$59*$J$59,$E$60*$F$60*$J$60,$E$61*$F$61*$J$61,$E$62*$F$62*$J$62,$E$63*$F$63*$J$63,$E$64*$F$64*$J$64,$E$65*$F$65*$J$65,$E$66*$F$66*$J$66,$E$67*$F$67*$J$67,$E$68*$F$68*$J$68,$E$69*$F$69*$J$69,$E$70*$F$70*$J$70,) -> 30227.904 | K71: =SUM($E$35*$F$35*K35,$E$36*$F$36*K36,$E$37*$F$37*K37,$E$38*$F$38*K38,$E$39*$F$39*K39,$E$47*$F$47*K47,$E$48*$F$48*K48,$E$49*$F$49*K49,$E$50*$F$50*K50,$F$61*K61,$F$62*K62,$F$63*K63,$F$64*K64) -> 0 | P71: =SUM(H71:O71) -> 30227.904
C72: Total GS > 50 kW (excludes Building Commissioning) | J72: =J71-($E$37*$F$37*J37) -> 30227.904 | K72: =K71-($E$37*$F$37*K37) -> 0
F73: =6678-23+2-F69 -> 0.312255165 | G73: =21134911+336008+10998-G69 -> -0.5696630254
C74: Distribution Rate in 2011 | H74: ='3. Distribution Rates'!E33 -> 0.01393333333 | I74: ='3. Distribution Rates'!E34 -> 0.008933333333 | J74: ='3. Distribution Rates'!E35 -> 1.584166667 | K74: ='3. Distribution Rates'!E36 -> 3.9237 | L74: ='3. Distribution Rates'!E37 -> 9.873466667 | M74: ='3. Distribution Rates'!E38 -> 6.923866667 | N74: ='3. Distribution Rates'!E39 -> 0.0116
C75: Lost Revenue in 2011 | H75: =H69*H74 -> 56535.63775 | I75: =I69*0+I70*I74 -> 15994.34585 | J75: =J71*J74 -> 47886.03792 | K75: =K71*K74 -> 0 | L75: =L71*L74 -> 0 | M75: =M71*M74 -> 0 | N75: =N69*N74 -> 0 | P75: =SUM(H75:O75) -> 120416.0215
C76: 2011 Savings Persisting in 2012 | H76: =H70*'6. Persistence Rates'!$E$25 -> 4038351.412 | I76: =I70*'6. Persistence Rates'!$E$25 -> 1781926.485 | J76: =J72*'6. Persistence Rates'!Q25 -> 18497.6726 | K76: =K72*'6. Persistence Rates'!Q25 -> 0 | L76: =L71*'6. Persistence Rates'!Q25 -> 0 | M76: =M71*'6. Persistence Rates'!Q25 -> 0 | N76: =N69*'6. Persistence Rates'!E25 -> 0
C77: 2011 Savings Persisting in 2013 | H77: =H70*'6. Persistence Rates'!$F$25 -> 4038351.412 | I77: =I70*'6. Persistence Rates'!$F$25 -> 1781926.485 | J77: =J72*'6. Persistence Rates'!R25 -> 18497.6726 | K77: =K72*'6. Persistence Rates'!R25 -> 0 | L77: =L71*'6. Persistence Rates'!R25 -> 0 | M77: =M71*'6. Persistence Rates'!R25 -> 0 | N77: =N69*'6. Persistence Rates'!F25 -> 0
C78: 2011 Savings Persisting in 2014 | H78: =$H$70*'6. Persistence Rates'!$G$25 -> 4019121.167 | I78: =$I$70*'6. Persistence Rates'!$G$25 -> 1773441.121 | J78: =$J$72*'6. Persistence Rates'!$S$25 -> 18046.50985 | K78: =$K$72*'6. Persistence Rates'!$S$25 -> 0 | L78: =$L$71*'6. Persistence Rates'!$S$25 -> 0 | M78: =$M$71*'6. Persistence Rates'!$S$25 -> 0 | N78: =$N$69*'6. Persistence Rates'!$G$25 -> 0
C79: 2011 Savings Persisting in 2015 | H79: =$H$70*'6. Persistence Rates'!$H$25 -> 4019121.167 | I79: =$I$70*'6. Persistence Rates'!$H$25 -> 1773441.121 | J79: =$J$72*'6. Persistence Rates'!$T$25 -> 18046.50985 | K79: =$K$72*'6. Persistence Rates'!$T$25 -> 0 | L79: =$L$71*'6. Persistence Rates'!$T$25 -> 0 | M79: =$M$71*'6. Persistence Rates'!$T$25 -> 0 | N79: =$N$69*'6. Persistence Rates'!$H$25 -> 0
C80: 2011 Savings Persisting in 2016 | H80: =$H$70*'6. Persistence Rates'!$I$25 -> 4019121.167 | I80: =$I$70*'6. Persistence Rates'!$I$25 -> 1773441.121 | J80: =$J$72*'6. Persistence Rates'!$U$25 -> 18046.50985 | K80: =$K$72*'6. Persistence Rates'!$U$25 -> 0 | L80: =$L$71*'6. Persistence Rates'!$U$25 -> 0 | M80: =$M$71*'6. Persistence Rates'!$U$25 -> 0 | N80: =$N$69*'6. Persistence Rates'!$I$25 -> 0
C81: 2011 Savings Persisting in 2017 | H81: =$H$70*'6. Persistence Rates'!$J$25 -> 4019121.167 | I81: =$I$70*'6. Persistence Rates'!$J$25 -> 1773441.121 | J81: =$J$72*'6. Persistence Rates'!$V$25 -> 18046.50985 | K81: =$K$72*'6. Persistence Rates'!$V$25 -> 0 | L81: =$L$71*'6. Persistence Rates'!$V$25 -> 0 | M81: =$M$71*'6. Persistence Rates'!$V$25 -> 0 | N81: =$N$69*'6. Persistence Rates'!$J$25 -> 0
C82: 2011 Savings Persisting in 2018 | H82: =$H$70*'6. Persistence Rates'!$K$25 -> 4019121.167 | I82: =$I$70*'6. Persistence Rates'!$K$25 -> 1773441.121 | J82: =$J$72*'6. Persistence Rates'!$W$25 -> 18046.50985 | K82: =$K$72*'6. Persistence Rates'!$W$25 -> 0 | L82: =$L$71*'6. Persistence Rates'!$W$25 -> 0 | M82: =$M$71*'6. Persistence Rates'!$W$25 -> 0 | N82: =$N$69*'6. Persistence Rates'!$K$25 -> 0
C83: 2011 Savings Persisting in 2019 | H83: =$H$70*'6. Persistence Rates'!$L$25 -> 4019121.167 | I83: =$I$70*'6. Persistence Rates'!$L$25 -> 1773441.121 | J83: =$J$72*'6. Persistence Rates'!$X$25 -> 18046.50985 | K83: =$K$72*'6. Persistence Rates'!$X$25 -> 0 | L83: =$L$71*'6. Persistence Rates'!$X$25 -> 0 | M83: =$M$71*'6. Persistence Rates'!$X$25 -> 0 | N83: =$N$69*'6. Persistence Rates'!$L$25 -> 0
C84: 2011 Savings Persisting in 2020 | H84: =$H$70*'6. Persistence Rates'!$M$25 -> 4019121.167 | I84: =$I$70*'6. Persistence Rates'!$M$25 -> 1773441.121 | J84: =$J$72*'6. Persistence Rates'!$Y$25 -> 18046.50985 | K84: =$K$72*'6. Persistence Rates'!$Y$25 -> 0 | L84: =$L$71*'6. Persistence Rates'!$Y$25 -> 0 | M84: =$M$71*'6. Persistence Rates'!$Y$25 -> 0 | N84: =$N$69*'6. Persistence Rates'!$M$25 -> 0
B87: Table 8. 2012 Lost Revenues Work Form
B89: # | C89: Initiative | D89: Results Status | E89: Months of Demand Savings | F89: Net Incremental Peak Demand Savings (kW) | G89: Net Incremental Energy Savings (kWh) | H89: Rate Allocation for LRAMVA
F90: 2012 kW Saved | G90: 2012 kWh Saved | H90: Residential | I90: General Service <50 kW | J90: General Service 50 - 999 kW | K90: General Service 1,000 - 4,999 kW | L90: Sentinel Lighting | M90: Street Lighting | N90: Unmetered Scattered Load | O90: Other | P90: Total
C91: Consumer Program
B92: 1 | C92: Appliance Retirement | D92: Verified | F92: 178.8497181 | G92: 855872.5708 | H92: 1 | P92: =SUM(H92:O92) -> 1
B93: 2 | C93: Appliance Exchange | D93: Verified | F93: 9.683820012 | G93: 17215.24994 | H93: 1 | P93: =SUM(H93:O93) -> 1
B94: 3 | C94: HVAC Incentives | D94: Verified | F94: 651.5825216 | G94: 1100981.434 | H94: 1 | P94: 1
B95: 4 | C95: Conservation Instant Coupon Booklet | D95: Verified | F95: 6.292250337 | G95: 38182.47287 | H95: 1 | P95: 1
B96: 5 | C96: Bi-Annual Retailer Event | D96: Verified | F96: 40.41578467 | G96: 731361.1753 | H96: 1 | P96: 1
B97: 6 | C97: Retailer Co-op | D97: Verified | F97: 0 | G97: 0 | H97: 1 | P97: 1
B98: 7 | C98: Residential Demand Response (switch/pstat) | D98: Verified | F98: 0 | G98: 0 | H98: 1 | P98: 1
B99: 8 | C99: Residential Demand Response (IHD) | D99: Verified | H99: 1 | P99: 1
B100: 9 | C100: Residential New Construction | D100: Verified | F100: 0 | G100: 0 | H100: 1 | P100: 1
C101: Adjustments to 2012 results (if any) | D101: True-up | H101: 1
C102: HVAC Incentives | F102: 7 | G102: 13782 | H102: 1 | P102: =SUM(H102:O102) -> 1
C103: =+C95 -> Conservation Instant Coupon Booklet | G103: 0 | H103: 1 | P103: =SUM(H103:O103) -> 1
C104: =+C96 -> Bi-Annual Retailer Event | G104: 0 | H104: 1
C105: =+C97 -> Retailer Co-op | H105: 1
C106: Business Program
B107: 10 | C107: Retrofit | D107: Verified | E107: 12 | F107: 2148 | G107: 10433795 | I107: 0.082 | J107: 0.918 | P107: =SUM(H107:O107) -> 1
B108: 11 | C108: Direct Install Lighting | D108: Verified | E108: 12 | F108: 60.5978779 | G108: 228413.925 | I108: 1 | J108: 0 | P108: =SUM(H108:O108) -> 1
B109: 12 | C109: Building Commissioning | D109: Verified | E109: 3 | F109: 0 | G109: 0 | I109: 1 | J109: 0 | P109: =SUM(H109:O109) -> 1
B110: 13 | C110: New Construction | D110: Verified | E110: 12 | F110: 4.84414 | G110: 19535.32 | I110: 0.082 | J110: 0.918 | P110: 1
B111: 14 | C111: Energy Audit | D111: Verified | E111: 12 | F111: 0 | G111: 0 | I111: 1 | J111: 0 | P111: 1
B112: 15 | C112: Small Commercial Demand Response (switch/pstat)* | D112: Verified | E112: 0 | F112: 0 | G112: 0 | I112: 1 | J112: 0 | P112: 1
B113: 16 | C113: Small Commercial Demand Response (IHD) | D113: Verified | E113: 0 | I113: 1 | J113: 0 | P113: 1
B114: 17 | C114: Demand Response 3 | D114: Verified | E114: 0 | F114: 533 | G114: 7751 | I114: 1 | J114: 0 | P114: 1
C115: Adjustments to 2012 results (if any) | D115: True-up | I115: 1 | J115: 0 | P115: 1
C116: =+C107 -> Retrofit | E116: 12 | F116: 269 | G116: 1433256 | I116: 0.082 | J116: 0.918 | P116: 1
C117: =+C108 -> Direct Install Lighting | E117: 12 | F117: 6 | G117: 23807 | I117: 1 | J117: 0 | P117: 1
C118: =+C111 -> Energy Audit | E118: 12 | F118: 5 | G118: 26030 | I118: 1 | J118: 0 | P118: 1
C119: Industrial Program
B120: 18 | C120: Process & System Upgrades | D120: Verified | E120: 12 | F120: 0 | G120: 0 | J120: 1 | P120: =SUM(H120:O120) -> 1
B121: 19 | C121: Monitoring & Targeting | D121: Verified | E121: 12 | F121: 0 | G121: 0 | J121: 1 | P121: 1
B122: 20 | C122: Energy Manager | D122: Verified | E122: 12 | F122: 1 | G122: 30445 | J122: 1 | P122: 1
B123: 21 | C123: Retrofit | D123: Verified | E123: 12 | F123: 0 | G123: 0 | J123: 1 | P123: 1
B124: 22 | C124: Demand Response 3 | D124: Verified | E124: 0 | F124: 994 | G124: 23964 | J124: 1 | P124: 1
C125: Adjustments to 2012 results (if any) | D125: True-up | J125: 1 | P125: 1
C126: =+C122 -> Energy Manager | E126: 12 | F126: 192 | G126: 1149812 | J126: 1 | P126: 1
J127: 1 | P127: 1
J128: 1 | P128: 1
C129: Home Assistance Program
B130: 23 | C130: Home Assistance Program | D130: Verified | F130: 28.95836774 | G130: 304467 | H130: 1 | P130: =SUM(H130:O130) -> 1
C131: Adjustments to 2012 results (if any) | D131: True-up
C132: Home Assistance Program | F132: 1 | G132: 11114 | H132: 1 | P132: =SUM(H132:O132) -> 1
C134: Pre-2011 Programs completed in 2011
B135: 24 | C135: Electricity Retrofit Incentive Program | D135: Verified | F135: 0 | G135: 0 | I135: 0.082 | J135: 0.918 | P135: =SUM(H135:O135) -> 1
B136: 25 | C136: High Performance New Construction | D136: Verified | E136: 12 | F136: 95 | G136: 273104 | I136: 0.082 | J136: 0.918 | P136: 1
B137: 26 | C137: Toronto Comprehensive | D137: Verified | F137: 0 | G137: 0 | J137: 0 | P137: 0
B138: 27 | C138: Multifamily Energy Efficiency Rebates | D138: Verified | F138: 0 | G138: 0 | J138: 0 | P138: 0
B139: 28 | C139: LDC Custom Programs | D139: Verified | F139: 0 | G139: 0 | J139: 0 | P139: 0
C140: Adjustments to 2012 results (if any) | D140: True-up
C141: High Performance New Construction | F141: 0 | G141: 0 | I141: 0.082 | J141: 0.918 | P141: 1
C144: Other
B145: 29 | C145: Program Enabled Savings | D145: Verified | P145: =SUM(H145:O145) -> 0
B146: 30 | C146: Time-of-Use Savings | D146: Verified | P146: 0
C147: Adjustments to 2012 results (if any) | D147: True-up
C150: kWh 2012 | G150: =SUM(G92:G101,G107:G114,G120:G124,G130,G135:G139) -> 14065088.15
C151: kWh 2012 Adjustments | G151: =SUM(G102:G105,G115:G118,G125:G128,G131:G133,G140:G143,G147:G149) -> 2657801
C152: Total kWh | F152: =SUM(F92:F149) -> 5232.22448 | G152: =SUM(G92:G149) -> 16722889.15 | H152: =SUM($G$92*$H$92,$G$93*$H$93,$G$94*$H$94,$G$95*$H$95,$G$96*$H$96,$G$97*$H$97,$G$98*$H$98,$G$99*$H$99,$G$100*$H$100,$G$101*$H$101,$G$102*$H$102,$G$103*$H$103,$G$104*$H$104,$G$105*$H$105,$G$106*$H$106,$G$107*$H$107,$G$108*$H$108,$G$109*$H$109,$G$110*$H$110,$G$111*$H$111,$G$112*$H$112,$G$113*$H$113,$G$114*$H$114,$G$115*$H$115,$G$116*$H$116,$G$117*$H$117,$G$118*$H$118,$G$119*$H$119,$G$120*$H$120,$G$121*$H$121,$G$122*$H$122,$G$123*$H$123,$G$124*$H$124,$G$125*$H$125,$G$126*$H$126,$G$127*$H$127,$G$128*$H$128,$G$129*$H$129,$G$130*$H$130,$G$131*$H$131,$G$132*$H$132,$G$133*$H$133,$G$134*$H$134,$G$135*$H$135,$G$136*$H$136,$G$137*$H$137,$G$138*$H$138,$G$139*$H$139,$G$140*$H$140,$G$141*$H$141,$G$142*$H$142,$G$143*$H$143,$G$144*$H$144,$G$145*$H$145,$G$146*$H$146,$G$147*$H$147,$G$148*$H$148,$G$149*$H$149,) -> 3072975.903 | I152: =SUM($G$92*$I$92,$G$93*$I$93,$G$94*$I$94,$G$95*$I$95,$G$96*$I$96,$G$97*$I$97,$G$98*$I$98,$G$99*$I$99,$G$100*$I$100,$G$101*$I$101,$G$102*$I$102,$G$103*$I$103,$G$104*$I$104,$G$105*$I$105,$G$106*$I$106,$G$107*$I$107,$G$108*$I$108,$G$109*$I$109,$G$110*$I$110,$G$111*$I$111,$G$112*$I$112,$G$113*$I$113,$G$114*$I$114,$G$115*$I$115,$G$116*$I$116,$G$117*$I$117,$G$118*$I$118,$G$119*$I$119,$G$120*$I$120,$G$121*$I$121,$G$122*$I$122,$G$123*$I$123,$G$124*$I$124,$G$125*$I$125,$G$126*$I$126,$G$127*$I$127,$G$128*$I$128,$G$129*$I$129,$G$130*$I$130,$G$131*$I$131,$G$132*$I$132,$G$133*$I$133,$G$134*$I$134,$G$135*$I$135,$G$136*$I$136,$G$137*$I$137,$G$138*$I$138,$G$139*$I$139,$G$140*$I$140,$G$141*$I$141,$G$142*$I$142,$G$143*$I$143,$G$144*$I$144,$G$145*$I$145,$G$146*$I$146,$G$147*$I$147,$G$148*$I$148,$G$149*$I$149,) -> 1283096.531 | P152: =SUM(H152:O152) -> 4356072.434
C153: Total kWh (excludes DR) | H153: =H152-SUM(G98*H98,G99*H99) -> 3072975.903 | I153: =I152-SUM(G112*I112,G113*I113,G114*I114) -> 1275345.531
C154: Total GS > 50 kW | J154: =SUM($E$92*$F$92*$J$92,$E$93*$F$93*$J$93,$E$94*$F$94*$J$94,$E$95*$F$95*$J$95,$E$96*$F$96*$J$96,$E$97*$F$97*$J$97,$E$98*$F$98*$J$98,$E$99*$F$99*$J$99,$E$100*$F$100*$J$100,$E$101*$F$101*$J$101,$E$102*$F$102*$J$102,$E$103*$F$103*$J$103,$E$104*$F$104*$J$104,$E$105*$F$105*$J$105,$E$106*$F$106*$J$106,$E$107*$F$107*$J$107,$E$108*$F$108*$J$108,$E$109*$F$109*$J$109,$E$110*$F$110*$J$110,$E$111*$F$111*$J$111,$E$112*$F$112*$J$112,$E$113*$F$113*$J$113,$E$114*$F$114*$J$114,$E$115*$F$115*$J$115,$E$116*$F$116*$J$116,$E$117*$F$117*$J$117,$E$118*$F$118*$J$118,$E$119*$F$119*$J$119,$E$120*$F$120*$J$120,$E$121*$F$121*$J$121,$E$122*$F$122*$J$122,$E$123*$F$123*$J$123,$E$124*$F$124*$J$124,$E$125*$F$125*$J$125,$E$126*$F$126*$J$126,$E$127*$F$127*$J$127,$E$128*$F$128*$J$128,$E$129*$F$129*$J$129,$E$130*$F$130*$J$130,$E$131*$F$131*$J$131,$E$132*$F$132*$J$132,$E$133*$F$133*$J$133,$E$134*$F$134*$J$134,$E$135*$F$135*$J$135,$E$136*$F$136*$J$136,$E$137*$F$137*$J$137,$E$138*$F$138*$J$138,$E$139*$F$139*$J$139,$E$140*$F$140*$J$140,$E$141*$F$141*$J$141,$E$142*$F$142*$J$142,$E$143*$F$143*$J$143,$E$144*$F$144*$J$144,$E$145*$F$145*$J$145,$E$146*$F$146*$J$146,$E$147*$F$147*$J$147,$E$148*$F$148*$J$148,$E$149*$F$149*$J$149,$E$152*$F$152*$J$152,$E$153*$F$153*$J$153,) -> 30041.55505 | K154: =SUM($F$107*K107*$E$107,$E$108*$F$108*K108,$E$109*$F$109*K109,$E$110*$F$110*K110,$E$111*$F$111*K111,$F$135*K135,$F$136*K136,$E$120*$F$120*K120,$E$121*$F$121*K121,$E$122*$F$122*K122,$E$123*$F$123*K123,$F$137*K137,$F$138*K138,$F$139*K139) -> 0 | P154: =SUM(H154:O154) -> 30041.55505
C155: Total GS > 50 kW (excludes Building Commissioning) | J155: =J154-($E$109*$F$109*J109) -> 30041.55505 | K155: =K154-($E$109*$F$109*K109) -> 0
F156: =3225+1528+482-F152 -> 2.775519691 | G156: =14033373+31715+2657801-G152 -> -0.1478935257
C157: Distribution Rate in 2012 | H157: ='3. Distribution Rates'!F33 -> 0.0139 | I157: ='3. Distribution Rates'!F34 -> 0.008966666667 | J157: ='3. Distribution Rates'!F35 -> 1.5848 | K157: ='3. Distribution Rates'!F36 -> 3.929966667 | L157: ='3. Distribution Rates'!F37 -> 9.8662 | M157: ='3. Distribution Rates'!F38 -> 6.9183 | N157: ='3. Distribution Rates'!F39 -> 0.0116
C158: Lost Revenue in 2012 from 2011 programs | H158: ='4. 2011-14 LRAM'!H76*H157 -> 56133.08462 | I158: ='4. 2011-14 LRAM'!I76*I157 -> 15977.94082 | J158: ='4. 2011-14 LRAM'!J76*J157 -> 29315.11153 | K158: ='4. 2011-14 LRAM'!K76*K157 -> 0 | L158: ='4. 2011-14 LRAM'!L76*L157 -> 0 | M158: ='4. 2011-14 LRAM'!M76*M157 -> 0 | N158: ='4. 2011-14 LRAM'!N76*N157 -> 0 | P158: =SUM(H158:O158) -> 101426.137
C159: Lost Revenue in 2012 from 2012 programs | H159: =H152*H157 -> 42714.36505 | I159: =I152*0+I153*I157 -> 11435.59826 | J159: =J154*J157 -> 47609.85644 | K159: =K154*K157 -> 0 | L159: =L154*L157 -> 0 | M159: =M154*M157 -> 0 | N159: =N152*N157 -> 0 | P159: =SUM(H159:O159) -> 101759.8198
C160: Total Lost Revenue in 2012 | H160: =SUM(H158:H159) -> 98847.44967 | I160: =SUM(I158:I159) -> 27413.53908 | J160: =SUM(J158:J159) -> 76924.96797 | K160: =SUM(K158:K159) -> 0 | L160: 0 | M160: 0 | N160: =SUM(N158:N159) -> 0 | P160: =SUM(P158:P159) -> 203185.9567
C161: 2012 Savings Persisting in 2013 | H161: =H153*'6. Persistence Rates'!$F$26 -> 3008955.572 | I161: =I153*'6. Persistence Rates'!$F$26 -> 1248775.833 | J161: =J155*'6. Persistence Rates'!$R$26 -> 19814.64269 | K161: =K155*'6. Persistence Rates'!$R$26 -> 0 | L161: =L154*'6. Persistence Rates'!$R$26 -> 0 | M161: =M154*'6. Persistence Rates'!$R$26 -> 0 | N161: =N152*'6. Persistence Rates'!F26 -> 0
C162: 2012 Savings Persisting in 2014 | H162: =$H$153*'6. Persistence Rates'!$G$26 -> 2966275.351 | I162: =$I$153*'6. Persistence Rates'!$G$26 -> 1231062.7 | J162: =$J$155*'6. Persistence Rates'!$S$26 -> 19814.64269 | K162: =$K$155*'6. Persistence Rates'!$S$26 -> 0 | L162: =$L$154*'6. Persistence Rates'!$S$26 -> 0 | M162: =$M$154*'6. Persistence Rates'!$S$26 -> 0 | N162: =$N$152*'6. Persistence Rates'!$G$26 -> 0
C163: 2012 Savings Persisting in 2015 | H163: =$H$153*'6. Persistence Rates'!$H$26 -> 2966275.351 | I163: =$I$153*'6. Persistence Rates'!$H$26 -> 1231062.7 | J163: =$J$155*'6. Persistence Rates'!$T$26 -> 19814.64269 | K163: =$K$155*'6. Persistence Rates'!$T$26 -> 0 | L163: =$L$154*'6. Persistence Rates'!$T$26 -> 0 | M163: =$M$154*'6. Persistence Rates'!$T$26 -> 0 | N163: =$N$152*'6. Persistence Rates'!$H$26 -> 0
C164: 2012 Savings Persisting in 2016 | H164: =$H$153*'6. Persistence Rates'!$I$26 -> 2966275.351 | I164: =$I$153*'6. Persistence Rates'!$I$26 -> 1231062.7 | J164: =$J$155*'6. Persistence Rates'!$U$26 -> 19814.64269 | K164: =$K$155*'6. Persistence Rates'!$U$26 -> 0 | L164: =$L$154*'6. Persistence Rates'!$U$26 -> 0 | M164: =$M$154*'6. Persistence Rates'!$U$26 -> 0 | N164: =$N$152*'6. Persistence Rates'!$I$26 -> 0
C165: 2012 Savings Persisting in 2017 | H165: =$H$153*'6. Persistence Rates'!$J$26 -> 2966275.351 | I165: =$I$153*'6. Persistence Rates'!$J$26 -> 1231062.7 | J165: =$J$155*'6. Persistence Rates'!$V$26 -> 19814.64269 | K165: =$K$155*'6. Persistence Rates'!$V$26 -> 0 | L165: =$L$154*'6. Persistence Rates'!$V$26 -> 0 | M165: =$M$154*'6. Persistence Rates'!$V$26 -> 0 | N165: =$N$152*'6. Persistence Rates'!$J$26 -> 0
C166: 2012 Savings Persisting in 2018 | H166: =$H$153*'6. Persistence Rates'!$K$26 -> 2966275.351 | I166: =$I$153*'6. Persistence Rates'!$K$26 -> 1231062.7 | J166: =$J$155*'6. Persistence Rates'!$W$26 -> 19814.64269 | K166: =$K$155*'6. Persistence Rates'!$W$26 -> 0 | L166: =$L$154*'6. Persistence Rates'!$W$26 -> 0 | M166: =$M$154*'6. Persistence Rates'!$W$26 -> 0 | N166: =$N$152*'6. Persistence Rates'!$K$26 -> 0
C167: 2012 Savings Persisting in 2019 | H167: =$H$153*'6. Persistence Rates'!$L$26 -> 2966275.351 | I167: =$I$153*'6. Persistence Rates'!$L$26 -> 1231062.7 | J167: =$J$155*'6. Persistence Rates'!$X$26 -> 19814.64269 | K167: =$K$155*'6. Persistence Rates'!$X$26 -> 0 | L167: =$L$154*'6. Persistence Rates'!$X$26 -> 0 | M167: =$M$154*'6. Persistence Rates'!$X$26 -> 0 | N167: =$N$152*'6. Persistence Rates'!$L$26 -> 0
C168: 2012 Savings Persisting in 2020 | H168: =$H$153*'6. Persistence Rates'!$M$26 -> 2966275.351 | I168: =$I$153*'6. Persistence Rates'!$M$26 -> 1231062.7 | J168: =$J$155*'6. Persistence Rates'!$Y$26 -> 19814.64269 | K168: =$K$155*'6. Persistence Rates'!$Y$26 -> 0 | L168: =$L$154*'6. Persistence Rates'!$Y$26 -> 0 | M168: =$M$154*'6. Persistence Rates'!$Y$26 -> 0 | N168: =$N$152*'6. Persistence Rates'!$M$26 -> 0
B171: Table 9. 2013 Lost Revenues Work Form
B173: # | C173: Initiative | D173: Results Status | E173: Months of Demand Savings | F173: Net Incremental Peak Demand Savings (kW) | G173: Net Incremental Energy Savings (kWh) | H173: Rate Allocation for LRAMVA
F174: 2013 kW Saved | G174: 2013 kWh Saved | H174: Residential | I174: General Service <50 kW | J174: General Service 50 - 999 kW | K174: General Service 1,000 - 4,999 kW | L174: Sentinel Lighting | M174: Street Lighting | N174: Unmetered Scattered Load | O174: Other | P174: Total
A175: 2013 | C175: Consumer Program
B176: 1 | C176: Appliance Retirement | D176: Verified | F176: 175 | G176: 711246 | H176: 1 | P176: =SUM(H176:O176) -> 1
B177: 2 | C177: Appliance Exchange | D177: Verified | F177: 22 | G177: 39900 | H177: 1 | P177: =SUM(H177:O177) -> 1
B178: 3 | C178: HVAC Incentives | D178: Verified | F178: 591 | G178: 993659 | H178: 1 | P178: 1
B179: 4 | C179: Conservation Instant Coupon Booklet | D179: Verified | F179: 14 | G179: 210480 | H179: 1 | P179: 1
B180: 5 | C180: Bi-Annual Retailer Event | D180: Verified | F180: 32 | G180: 469152 | H180: 1 | P180: 1
B181: 6 | C181: Retailer Co-op | D181: Verified | H181: 1 | P181: 1
B182: 7 | C182: Residential Demand Response (switch/pstat) | D182: Verified | H182: 1 | P182: 1
B183: 8 | C183: Residential Demand Response (IHD) | D183: Verified | H183: 1 | P183: 1
B184: 9 | C184: Residential New Construction | D184: Verified | H184: 1 | P184: 1
C185: Adjustments to 2013 results (if any) | D185: True-up | H185: 1
C186: HVAC Incentives | F186: 31 | G186: 55844 | H186: 1
C187: Conservation Instant Coupon Booklet | G187: 644 | H187: 1
H188: 1
C189: Business Program
B190: 10 | C190: Retrofit | D190: Verified | E190: 12 | F190: 1823 | G190: 8544440 | I190: 0.082 | J190: 0.918 | P190: =SUM(H190:O190) -> 1
B191: 11 | C191: Direct Install Lighting | D191: Verified | E191: 12 | F191: 167 | G191: 628090 | I191: 1 | J191: 0 | P191: 1
B192: 12 | C192: Building Commissioning | D192: Verified | E192: 3 | I192: 1 | J192: 0 | P192: 1
B193: 13 | C193: New Construction | D193: Verified | E193: 12 | F193: 6 | G193: 9176 | I193: 0.082 | J193: 0.918 | P193: 1
B194: 14 | C194: Energy Audit | D194: Verified | E194: 12 | F194: 150 | G194: 823663 | I194: 1 | J194: 0 | P194: 1
B195: 15 | C195: Small Commercial Demand Response (switch/pstat)* | D195: Verified | E195: 0 | I195: 1 | J195: 0 | P195: 1
B196: 16 | C196: Small Commercial Demand Response (IHD) | D196: Verified | E196: 0 | I196: 1 | J196: 0 | P196: 1
B197: 17 | C197: Demand Response 3 | D197: Verified | E197: 0 | F197: 547 | G197: 8163 | I197: 1 | J197: 0 | P197: 1
C198: Adjustments to 2013 results (if any) | D198: True-up
C199: Retrofit | E199: 12 | F199: 376 | G199: 1579036 | I199: 0.082 | J199: 0.918 | P199: 1
C200: Direct Install Lighting | E200: 12 | F200: 3 | G200: 11414 | I200: 1 | P200: 1
C201: Energy Audit | E201: 12 | F201: 335 | G201: 1842897 | I201: 1 | P201: 1
C202: Industrial Program
B203: 18 | C203: Process & System Upgrades | D203: Verified | E203: 12 | J203: 1 | P203: =SUM(H203:O203) -> 1
B204: 19 | C204: Monitoring & Targeting | D204: Verified | E204: 12 | G204: 0 | J204: 1 | P204: 1
B205: 20 | C205: Energy Manager | D205: Verified | E205: 12 | F205: 273 | G205: 2171119 | J205: 1 | P205: 1
B206: 21 | C206: Retrofit | D206: Verified | E206: 12 | J206: 1 | P206: 1
B207: 22 | C207: Demand Response 3 | D207: Verified | E207: 0 | F207: 1905 | G207: 43378 | J207: 1 | P207: 1
C208: Adjustments to 2013 results (if any) | D208: True-up | J208: 1
C209: Process & System Upgrades | E209: 12 | F209: 59 | G209: 624036 | J209: 1 | P209: =SUM(H209:O209) -> 1
C210: Energy Manager | E210: 12 | F210: 65 | G210: =1430392*0+368314 -> 368314 | J210: 1 | P210: 1
J211: 1
C212: Home Assistance Program
B213: 23 | C213: Home Assistance Program | D213: Verified | F213: 42 | G213: 427264 | H213: 1 | P213: =SUM(H213:O213) -> 1
C214: Adjustments to 2013 results (if any) | D214: True-up
C215: Home Assistance Program | G215: 0
C217: Pre-2011 Programs completed in 2011
B218: 24 | C218: Electricity Retrofit Incentive Program | D218: Verified | J218: 0 | P218: =SUM(H218:O218) -> 0
B219: 25 | C219: High Performance New Construction | D219: Verified | J219: 0 | P219: 0
B220: 26 | C220: Toronto Comprehensive | D220: Verified | J220: 0 | P220: 0
B221: 27 | C221: Multifamily Energy Efficiency Rebates | D221: Verified | J221: 0 | P221: 0
... 94 more rows

Sheet 5. 2015 LRAM
B2: 2015 Lost Revenues Work Form
C4: Instruction | E4: LDCs can apply for disposition of LRAMVA amounts at any time, but at a minimum, must do so as part of a Cost of Service application.
E5: Lost revenues for the period prior to rebasing should be included within the LDCs load forecast on a go forward basis, negating the need for perpetual LRAMVA claims related to persisting savings from historic programs.
E6: LDC to adjust the rate allocations by class (columns h to n). Please insert IESO verified savings for applicable programs (columns f to g).
E7: Adjustments will apply to the year that LRAM is claimed.
E8: This workbook contains links from Tab 3 (Distribution Rates) and Tab 6 (Persistence Rates).
C11: Legend | E11: User Inputs (Green)
E12: Auto Populated Cells (White)
B14: Table11-a. 2015 LRAM Work Form
B15: # | C15: Initiative | D15: Results Status | E15: Months of Demand Savings | F15: Net Incremental Energy Savings (kWh) | G15: Net Incremental Peak Demand Savings (kW) | H15: Rate Allocation for LRAMVA
F16: 2015 kWh saved | G16: 2015 kW saved | H16: ='2. CDM Allocation'!C24 -> Residential | I16: ='2. CDM Allocation'!D24 -> General Service <50 kW | J16: ='2. CDM Allocation'!E24 -> General Service 50 - 4,999 kW | K16: ='2. CDM Allocation'!F24 -> Co-Generation 1,000 - 4,999 kW | L16: ='2. CDM Allocation'!G24 -> Sentinel Lighting | M16: ='2. CDM Allocation'!H24 -> Street Lighting | N16: ='2. CDM Allocation'!I24 -> Unmetered Scattered Load | O16: ='2. CDM Allocation'!J24 -> Large User | P16: Total
B17: 2011-2014+2015 Extension Legacy Framework Programs
B18: Residential Program
B19: 1 | C19: Coupon Initiative | D19: Verified | F19: 36 | G19: 553646 | H19: 1 | P19: =SUM(H19:O19) -> 1
B20: 2 | C20: Bi-Annual Retailer Event Initiative | D20: Verified | F20: 69 | G20: 927828 | H20: 1 | P20: =SUM(H20:O20) -> 1
B21: 3 | C21: Appliance Retirement Initiative | D21: Verified | F21: 198 | G21: 1086356 | H21: 1 | P21: 1
B22: 4 | C22: Appliance Exchange Initiative | D22: Verified | H22: 1 | P22: 1
B23: 5 | C23: HVAC Incentives Initaitive | D23: Verified | F23: 514 | G23: 969515 | H23: 1 | P23: 1
B24: 6 | C24: Residential New Construction and Major Renovation Initiative | D24: Verified | G24: 0 | H24: 1 | P24: 1
B25: Adjustments to 2015 results (if any) | D25: True-up | H25: 1
H26: 1
H27: 1
H28: 1
B29: Commercial & Institutional Program
B30: 7 | C30: Energy Audit Initiative | D30: Verified | E30: 12 | F30: 30 | G30: 142541 | I30: 1 | J30: 0 | P30: 1
B31: 8 | C31: Efficiency: Equipment Replacement Incentive Initiative | D31: Verified | E31: 12 | F31: 2064 | G31: 16903061 | I31: 1 | J31: 0 | P31: 1
B32: 9 | C32: Direct Install Lighting and Water Heating Initiative | D32: Verified | E32: 12 | F32: 304 | G32: 1271626 | I32: 1 | J32: 0 | P32: 1
B33: 10 | C33: New Construction and Major Renovation Initiative | D33: Verified | E33: 12 | G33: 0 | I33: 1 | J33: 0 | P33: 1
B34: 11 | C34: Existing Building Commissioning Incentive Initiative | D34: Verified | E34: 3 | G34: 0 | I34: 1 | J34: 0 | P34: 1
B35: Adjustments to 2015 results (if any) | D35: True-up | I35: 1
I36: 1
I37: 1
I38: 1
B39: Industrial Program
B40: 12 | C40: Process and Systems Upgrades Initiatives - Project Incentive Initiative | D40: Verified | E40: 12 | F40: 192 | G40: 1686160 | J40: 1 | P40: 1
B41: 13 | C41: Process and Systems Upgrades Initiatives - Monitoring and Targeting Initiative | D41: Verified | E41: 12 | G41: 1125000 | J41: 1 | P41: 1
B42: 14 | C42: Process and Systems Upgrades Initiatives - Energy Manager Initiative | D42: Verified | E42: 12 | F42: 313 | G42: 2241334 | J42: 1 | P42: 1
B43: Adjustments to 2015 results (if any) | D43: True-up | J43: 1
J44: 1
J45: 1
J46: 1
B47: Low Income Program
B48: 15 | C48: Low Income Initiative | D48: Verified | F48: 117 | G48: 905582 | H48: 1 | P48: 1
B49: Adjustments to 2015 results (if any) | D49: True-up | P49: 0
P50: 0
P52: 0
B53: Pilots
B54: 16 | C54: Loblaws Pilot | D54: Verified | P54: 0
B55: 17 | C55: Social Benchmarking Pliot | D55: Verified | P55: 0
B56: 18 | C56: Conservation Fund Pilot - SEG | D56: Verified | P56: 0
B57: 19 | C57: Conservation Fund Pilot - EnerNOC | D57: Verified | P57: 0
B58: Adjustments to 2015 results (if any) | D58: True-up | P58: 0
B62: 2015-2020 Conservation First Framework Programs
B64: Residential Province-Wide Programs
B65: 21 | C65: Save on Energy Coupon Program | D65: Verified | F65: 154 | G65: 2402517 | H65: 1 | P65: 1
B66: 22 | C66: Save on Energy Heating and Cooling Program | D66: Verified | F66: 245 | G66: 469163 | H66: 1 | P66: 1
B67: 23 | C67: Save on Energy New Construction Program | D67: Verified | G67: 0 | H67: 1 | P67: 1
B68: 24 | C68: Save on Energy Home Assistance Program | D68: Verified | F68: 30 | G68: 235875 | H68: 1 | P68: 1
B69: Adjustments to 2015 results (if any) | D69: True-up | H69: 1
H70: 1
H71: 1
H72: 1
B73: Non-Residential Province-Wide Programs
B74: 25 | C74: Save on Energy Audit Funding Program | D74: Verified | E74: 12 | I74: 1 | J74: 0 | P74: 1
B75: 26 | C75: Save on Energy Retrofit Program | D75: Verified | E75: 12 | F75: 147 | G75: 1075128 | I75: 0.082 | J75: 0.918 | P75: 1
B76: 27 | C76: Save on Energy Small Business Lighting Program | D76: Verified | E76: 12 | I76: 1 | J76: 0 | P76: 1
B77: 28 | C77: Save on Energy High Performance New Construction Program | D77: Verified | E77: 12 | I77: 1 | J77: 0 | P77: 1
B78: 29 | C78: Save on Energy Existing Building Commissioning Program | D78: Verified | E78: 3 | I78: 1 | J78: 0 | P78: 1
B79: 30 | C79: Save on Energy Process & Systems Upgrades Program | D79: Verified | E79: 12 | I79: 1 | J79: 0 | P79: 1
B80: 31 | C80: Save on Energy Monitoring & Targeting Program | D80: Verified | E80: 12 | I80: 1 | J80: 0 | P80: 1
B81: 32 | C81: Save on Energy Energy Manager Program | D81: Verified | E81: 12 | I81: 1 | J81: 0 | P81: 1
B82: Adjustments to 2015 results (if any) | D82: True-up
B86: Local & Regional Programs
B87: 33 | C87: Business Refrigeration Local Program | D87: Verified | E87: 12 | P87: =SUM(H87:O87) -> 0
B88: 34 | C88: First Nation Conservation Local Program | D88: Verified | P88: 0
B89: 35 | C89: Social Benchmarking Local Program | D89: Verified | P89: 0
B90: Adjustments to 2015 results (if any) | D90: True-up
B94: Pilot Programs
B95: 36 | C95: Enersource Hydro Mississauga Inc. - Performance-Based Conservation Pilot Program - Conservation Fund | D95: Verified | P95: 0
B96: 37 | C96: EnWin Utilities Ltd. - Building Optimization Pilot | D96: Verified | P96: 0
B97: 38 | C97: EnWin Utilities Ltd. - Re-Invest Pilot | D97: Verified | P97: 0
B98: 39 | C98: Horizon Utilities Corporation - ECM Furnace Motor Pilot | D98: Verified | P98: 0
B99: 40 | C99: Horizon Utilities Corporation - Social Benchmarking Pilot | D99: Verified | P99: 0
B100: 41 | C100: Hydro Ottawa Limited - Conservation Voltage Regulation (CVR) Leveraging AMI Data Pilot | D100: Verified | P100: 0
B101: 42 | C101: Hydro Ottawa Limited - Residential Demand Response Wi-Fi Thermostat Pilot | D101: Verified | P101: 0
B102: 43 | C102: Kitchener-Wilmot Hydro Inc. - Pilot - DCKV | D102: Verified | P102: 0
B103: 44 | C103: Niagara-on-the-Lake Hydro Inc. - Direct Install Energy Efficiency Measures for the Agricultural Sector | D103: Verified | P103: 0
B104: 45 | C104: Oakville Hydro Electricity Distribution Inc. - Direct Install - Hydronic | D104: Verified | P104: 0
B105: 46 | C105: Oakville Hydro Electricity Distribution Inc. - Direct Install - RTU Controls | D105: Verified | P105: 0
B106: 47 | C106: Toronto Hydro-Electric System Limited - Direct Install - Hydronic (Pilot Savings) | D106: Verified | P106: 0
B107: 48 | C107: Toronto Hydro-Electric System Limited - Direct Install - RTU Controls (Pilot Savings) | D107: Verified | P107: 0
B108: 49 | C108: Toronto Hydro-Electric System Limited - PFP - Large (Pilot Savings) | D108: Verified | P108: 0
B109: Adjustments to 2015 results (if any) | D109: True-up
C113: Total kWh | F113: =SUM(F19:F28,F30:F38,F40:F46,F48:F52,F54:F61,F65:F72,F74:F85,F87:F93,F95:F112) -> 4413 | G113: =SUM(G19:G28,G30:G38,G40:G46,G48:G52,G54:G61,G65:G72,G74:G85,G87:G93,G95:G112) -> 31995332 | H113: =SUM($G$19*$H$19,$G$20*$H$20,$G$21*$H$21,$G$22*$H$22,$G$23*$H$23,$G$24*$H$24,$G$25*$H$25,$G$26*$H$26,$G$27*$H$27,$G$28*$H$28,$G$29*$H$29,$G$30*$H$30,$G$31*$H$31,$G$32*$H$32,$G$33*$H$33,$G$34*$H$34,$G$35*$H$35,$G$36*$H$36,$G$37*$H$37,$G$38*$H$38,$G$39*$H$39,$G$40*$H$40,$G$41*$H$41,$G$42*$H$42,$G$43*$H$43,$G$44*$H$44,$G$45*$H$45,$G$46*$H$46,$G$47*$H$47,$G$48*$H$48,$G$49*$H$49,$G$50*$H$50,$G$51*$H$51,$G$52*$H$52,$G$53*$H$53,$G$54*$H$54,$G$55*$H$55,$G$56*$H$56,$G$57*$H$57,$G$58*$H$58,$G$59*$H$59,$G$60*$H$60,$G$61*$H$61,$G$62*$H$62,$G$63*$H$63,$G$64*$H$64,$G$65*$H$65,$G$66*$H$66,$G$67*$H$67,$G$68*$H$68,$G$69*$H$69,$G$70*$H$70,$G$71*$H$71,$G$72*$H$72,$G$73*$H$73,$G$74*$H$74,$G$75*$H$75,$G$76*$H$76,$G$77*$H$77,$G$78*$H$78,$G$79*$H$79,$G$80*$H$80,$G$81*$H$81,$G$82*$H$82,$G$83*$H$83,$G$84*$H$84,$G$85*$H$85,$G$86*$H$86,$G$87*$H$87,$G$88*$H$88,$G$89*$H$89,$G$90*$H$90,$G$91*$H$91,$G$92*$H$92,$G$93*$H$93,$G$94*$H$94,$G$95*$H$95,$G$96*$H$96,$G$97*$H$97,$G$98*$H$98,$G$99*$H$99,$G$100*$H$100,$G$101*$H$101,$G$102*$H$102,$G$103*$H$103,$G$104*$H$104,$G$105*$H$105,$G$106*$H$106,$G$107*$H$107,$G$108*$H$108,$G$109*$H$109,$G$110*$H$110,$G$111*$H$111,$G$112*$H$112,) -> 7550482 | I113: =SUM($G$19*$I$19,$G$20*$I$20,$G$21*$I$21,$G$22*$I$22,$G$23*$I$23,$G$24*$I$24,$G$25*$I$25,$G$26*$I$26,$G$27*$I$27,$G$28*$I$28,$G$29*$I$29,$G$30*$I$30,$G$31*$I$31,$G$32*$I$32,$G$33*$I$33,$G$34*$I$34,$G$35*$I$35,$G$36*$I$36,$G$37*$I$37,$G$38*$I$38,$G$39*$I$39,$G$40*$I$40,$G$41*$I$41,$G$42*$I$42,$G$43*$I$43,$G$44*$I$44,$G$45*$I$45,$G$46*$I$46,$G$47*$I$47,$G$48*$I$48,$G$49*$I$49,$G$50*$I$50,$G$51*$I$51,$G$52*$I$52,$G$53*$I$53,$G$54*$I$54,$G$55*$I$55,$G$56*$I$56,$G$57*$I$57,$G$58*$I$58,$G$59*$I$59,$G$60*$I$60,$G$61*$I$61,$G$62*$I$62,$G$63*$I$63,$G$64*$I$64,$G$65*$I$65,$G$66*$I$66,$G$67*$I$67,$G$68*$I$68,$G$69*$I$69,$G$70*$I$70,$G$71*$I$71,$G$72*$I$72,$G$73*$I$73,$G$74*$I$74,$G$75*$I$75,$G$76*$I$76,$G$77*$I$77,$G$78*$I$78,$G$79*$I$79,$G$80*$I$80,$G$81*$I$81,$G$82*$I$82,$G$83*$I$83,$G$84*$I$84,$G$85*$I$85,$G$86*$I$86,$G$87*$I$87,$G$88*$I$88,$G$89*$I$89,$G$90*$I$90,$G$91*$I$91,$G$92*$I$92,$G$93*$I$93,$G$94*$I$94,$G$95*$I$95,$G$96*$I$96,$G$97*$I$97,$G$98*$I$98,$G$99*$I$99,$G$100*$I$100,$G$101*$I$101,$G$102*$I$102,$G$103*$I$103,$G$104*$I$104,$G$105*$I$105,$G$106*$I$106,$G$107*$I$107,$G$108*$I$108,$G$109*$I$109,$G$110*$I$110,$G$111*$I$111,$G$112*$I$112,) -> 18405388.5 | P113: =SUM(H113:O113) -> 25955870.5
C114: Total GS > 50 kW | J114: =SUM($E$19*$F$19*$J$19,$E$20*$F$20*$J$20,$E$21*$F$21*$J$21,$E$22*$F$22*$J$22,$E$23*$F$23*$J$23,$E$24*$F$24*$J$24,$E$25*$F$25*$J$25,$E$26*$F$26*$J$26,$E$27*$F$27*$J$27,$E$28*$F$28*$J$28,$E$29*$F$29*$J$29,$E$30*$F$30*$J$30,$E$31*$F$31*$J$31,$E$32*$F$32*$J$32,$E$33*$F$33*$J$33,$E$34*$F$34*$J$34,$E$35*$F$35*$J$35,$E$36*$F$36*$J$36,$E$37*$F$37*$J$37,$E$38*$F$38*$J$38,$E$39*$F$39*$J$39,$E$40*$F$40*$J$40,$E$41*$F$41*$J$41,$E$42*$F$42*$J$42,$E$43*$F$43*$J$43,$E$44*$F$44*$J$44,$E$45*$F$45*$J$45,$E$46*$F$46*$J$46,$E$47*$F$47*$J$47,$E$48*$F$48*$J$48,$E$49*$F$49*$J$49,$E$50*$F$50*$J$50,$E$51*$F$51*$J$51,$E$52*$F$52*$J$52,$E$53*$F$53*$J$53,$E$54*$F$54*$J$54,$E$55*$F$55*$J$55,$E$56*$F$56*$J$56,$E$57*$F$57*$J$57,$E$58*$F$58*$J$58,$E$59*$F$59*$J$59,$E$60*$F$60*$J$60,$E$61*$F$61*$J$61,$E$62*$F$62*$J$62,$E$63*$F$63*$J$63,$E$64*$F$64*$J$64,$E$65*$F$65*$J$65,$E$66*$F$66*$J$66,$E$67*$F$67*$J$67,$E$68*$F$68*$J$68,$E$69*$F$69*$J$69,$E$70*$F$70*$J$70,$E$71*$F$71*$J$71,$E$72*$F$72*$J$72,$E$73*$F$73*$J$73,$E$74*$F$74*$J$74,$E$75*$F$75*$J$75,$E$76*$F$76*$J$76,$E$77*$F$77*$J$77,$E$78*$F$78*$J$78,$E$79*$F$79*$J$79,$E$80*$F$80*$J$80,$E$81*$F$81*$J$81,$E$82*$F$82*$J$82,$E$83*$F$83*$J$83,$E$84*$F$84*$J$84,$E$85*$F$85*$J$85,$E$86*$F$86*$J$86,$E$87*$F$87*$J$87,$E$88*$F$88*$J$88,$E$89*$F$89*$J$89,$E$90*$F$90*$J$90,$E$91*$F$91*$J$91,$E$92*$F$92*$J$92,$E$93*$F$93*$J$93,$E$94*$F$94*$J$94,$E$95*$F$95*$J$95,$E$96*$F$96*$J$96,$E$97*$F$97*$J$97,$E$98*$F$98*$J$98,$E$99*$F$99*$J$99,$E$100*$F$100*$J$100,$E$101*$F$101*$J$101,$E$102*$F$102*$J$102,$E$103*$F$103*$J$103,$E$104*$F$104*$J$104,$E$105*$F$105*$J$105,$E$106*$F$106*$J$106,$E$107*$F$107*$J$107,$E$108*$F$108*$J$108,$E$109*$F$109*$J$109,$E$110*$F$110*$J$110,$E$111*$F$111*$J$111,$E$112*$F$112*$J$112,$E$113*$F$113*$J$113,) -> 7679.352 | K114: =SUM($E$30*$F$30*K30,$E$31*$F$31*K31,$E$32*$F$32*K32,$E$33*$F$33*K33,$E$34*$F$34*K34,$E$40*$F$40*K40,$E$41*$F$41*K41,$E$42*$F$42*K42,$E$74*$F$74*K74,$E$75*$F$75*K75,$E$76*$F$76*K76,$E$77*$F$77*K77,$E$78*$F$78*K78,$E$79*$F$79*K79,$E$80*$F$80*K80,$E$81*$F$81*K81) -> 0 | P114: =SUM(H114:O114) -> 7679.352
C115: Total GS > 50 kW (excludes Building Commissioning) | J115: =J114-SUM($E$34*$F$34*J34,$E$78*$F$78*J78) -> 7679.352 | K115: =K114-SUM($E$34*$F$34*K34,$E$78*$F$78*K78) -> 0
F116: =4413-F113 -> 0 | G116: =31995332-G113 -> 0
C118: Distribution Rate in 2015 | H118: ='3. Distribution Rates'!I33 -> 0.01583333333 | I118: ='3. Distribution Rates'!I34 -> 0.01016666667 | J118: ='3. Distribution Rates'!I35 -> 2.5672 | K118: ='3. Distribution Rates'!I36 -> 4.3041 | L118: ='3. Distribution Rates'!I37 -> 11.21043333 | M118: ='3. Distribution Rates'!I38 -> 8.3116 | N118: ='3. Distribution Rates'!I39 -> 0.0176
C119: Lost Revenue in 2015 from 2011 programs | H119: ='4. 2011-14 LRAM'!H$79*H118 -> 63636.08514 | I119: ='4. 2011-14 LRAM'!I$79*I118 -> 18029.98473 | J119: ='4. 2011-14 LRAM'!J$79*J118 -> 46329.00009 | K119: ='4. 2011-14 LRAM'!K$79*K118 -> 0 | L119: ='4. 2011-14 LRAM'!L$79*L118 -> 0 | M119: ='4. 2011-14 LRAM'!M$79*M118 -> 0 | N119: ='4. 2011-14 LRAM'!N$79*N118 -> 0 | P119: =SUM(H119:O119) -> 127995.07
C120: Lost Revenue in 2015 from 2012 programs | H120: ='4. 2011-14 LRAM'!H$163*H118 -> 46966.02639 | I120: ='4. 2011-14 LRAM'!I$163*I118 -> 12515.80412 | J120: ='4. 2011-14 LRAM'!J$163*J118 -> 50868.15071 | K120: ='4. 2011-14 LRAM'!K$163*K118 -> 0 | L120: ='4. 2011-14 LRAM'!L$163*L118 -> 0 | M120: ='4. 2011-14 LRAM'!M$163*M118 -> 0 | N120: ='4. 2011-14 LRAM'!N$163*N118 -> 0 | P120: =SUM(H120:O120) -> 110349.9812
C121: Lost Revenue in 2015 from 2013 programs | H121: ='4. 2011-14 LRAM'!H$243*H118 -> 39051.94723 | I121: ='4. 2011-14 LRAM'!I$243*I118 -> 35670.21047 | J121: ='4. 2011-14 LRAM'!J$243*J118 -> 39190.38265 | K121: ='4. 2011-14 LRAM'!K$243*K118 -> 0 | L121: ='4. 2011-14 LRAM'!L$243*L118 -> 0 | M121: ='4. 2011-14 LRAM'!M$243*M118 -> 0 | N121: ='4. 2011-14 LRAM'!N$243*N118 -> 0 | P121: =SUM(H121:O121) -> 113912.5403
C122: Lost Revenue in 2015 from 2014 programs | H122: ='4. 2011-14 LRAM'!H$324*H118 -> 109215.9425 | I122: ='4. 2011-14 LRAM'!I$324*I118 -> 25894.58692 | J122: ='4. 2011-14 LRAM'!J$324*J118 -> 58768.87638 | K122: ='4. 2011-14 LRAM'!K$324*K118 -> 0 | L122: ='4. 2011-14 LRAM'!L$324*L118 -> 0 | M122: ='4. 2011-14 LRAM'!M$324*M118 -> 0 | N122: ='4. 2011-14 LRAM'!N$324*N118 -> 0 | P122: =SUM(H122:O122) -> 193879.4058
C123: Lost Revenue in 2015 from 2015 programs | H123: =H113*H118 -> 119549.2983 | I123: =I113*I118 -> 187121.4497 | J123: =J114*J118 -> 19714.43245 | K123: =K114*K118 -> 0 | L123: =L114*L118 -> 0 | M123: =M114*M118 -> 0 | N123: =N113*N118 -> 0 | P123: =SUM(H123:O123) -> 326385.1805
C124: Total Lost Revenue in 2015 | H124: =SUM(H119:H123) -> 378419.2996 | I124: =SUM(I119:I123) -> 279232.036 | J124: =SUM(J119:J123) -> 214870.8423 | K124: 0 | L124: 0 | M124: 0 | N124: 0 | P124: =SUM(P119:P123) -> 872522.1778
C126: 2015 Savings Persisting in 2016 | H126: =$H$113*'6. Persistence Rates'!$E$44 -> 7943647.331 | I126: =I113*'6. Persistence Rates'!$E$44 -> 19363785.68 | J126: =$J$115*'6. Persistence Rates'!$R$44 -> 6937.283198 | K126: =$K$115*'6. Persistence Rates'!$R$44 -> 0 | L126: =$L$114*'6. Persistence Rates'!$R$44 -> 0 | M126: =$M$114*'6. Persistence Rates'!$R$44 -> 0 | N126: =$N$113*'6. Persistence Rates'!$E$44 -> 0
C127: 2015 Savings Persisting in 2017 | H127: =H113*'6. Persistence Rates'!F$44 -> 7791464.826 | I127: =I113*'6. Persistence Rates'!F$44 -> 18992818.88 | J127: =$J$115*'6. Persistence Rates'!$S$44 -> 7880.063943 | K127: =$K$115*'6. Persistence Rates'!$S$44 -> 0 | L127: =$L$114*'6. Persistence Rates'!$S$44 -> 0 | M127: =$M$114*'6. Persistence Rates'!$S$44 -> 0 | N127: =$N$113*'6. Persistence Rates'!$F$44 -> 0
C128: 2015 Savings Persisting in 2018 | H128: =H113*'6. Persistence Rates'!G$44 -> 7747815.727 | I128: =I113*'6. Persistence Rates'!G$44 -> 18886417.91 | J128: =$J$115*'6. Persistence Rates'!$T$44 -> 7880.063943 | K128: =$K$115*'6. Persistence Rates'!$T$44 -> 0 | L128: =$L$114*'6. Persistence Rates'!$T$44 -> 0 | M128: =$M$114*'6. Persistence Rates'!$T$44 -> 0 | N128: =$N$113*'6. Persistence Rates'!$G$44 -> 0
C129: 2015 Savings Persisting in 2019 | H129: =H113*'6. Persistence Rates'!H$44 -> 7652245.692 | I129: =I113*'6. Persistence Rates'!H$44 -> 18653452.17 | J129: =$J$115*'6. Persistence Rates'!$U$44 -> 7880.063943 | K129: =$K$115*'6. Persistence Rates'!$U$44 -> 0 | L129: =$L$114*'6. Persistence Rates'!$U$44 -> 0 | M129: =$M$114*'6. Persistence Rates'!$U$44 -> 0 | N129: =$N$113*'6. Persistence Rates'!$H$44 -> 0
C130: 2015 Savings Persisting in 2020 | H130: =H113*'6. Persistence Rates'!I$44 -> 7431084.757 | I130: =I113*'6. Persistence Rates'!I$44 -> 18114340.5 | J130: =$J$115*'6. Persistence Rates'!$V$44 -> 7880.063943 | K130: =$K$115*'6. Persistence Rates'!$V$44 -> 0 | L130: =$L$114*'6. Persistence Rates'!$V$44 -> 0 | M130: =$M$114*'6. Persistence Rates'!$V$44 -> 0 | N130: =$N$113*'6. Persistence Rates'!$I$44 -> 0

Sheet 5-b. 2016 LRAM (hidden)
B2: 2016 Lost Revenues Work Form
C4: Instruction | E4: LDCs are only eligible to apply for lost revenues until they have rebased. Lost revenues for the period prior to rebasing should be included within the LDCs load forecast on a go forward basis.
E5: LDC to adjust the rate allocations by class (columns h to n). Please insert IESO verified savings for applicable programs (columns f to g).
E6: Adjustments will apply to the year that LRAM is claimed.
E7: This workbook contains links from Tab 3 (Distribution Rates) and Tab 5 (Persistence Rates).
C9: Legend | E9: User Inputs (Green)
E10: Auto Populated Cells (White)
B12: Table1-b. 2016 LRAM Work Form
B13: # | C13: Initiative | D13: Results Status | E13: Months of Demand Savings | F13: Net Incremental Energy Savings (kWh) | G13: Net Incremental Peak Demand Savings (kW) | H13: Rate Allocation for LRAMVA
F14: 2015 kWh saved | G14: 2015 kW saved | H14: Residential | I14: General Service <50 kW | J14: General Service 50 - 999 kW | K14: General Service 1,000 - 4,999 kW | L14: Sentinel Lighting | M14: Street Lighting | N14: Unmetered Scattered Load | O14: Other | P14: Total
B15: 2011-2014+2015 Extension Legacy Framework Programs
B16: Residential Program
B17: 1 | C17: Coupon Initiative | D17: Verified | H17: 1 | P17: =SUM(H17:O17) -> 1
B18: 2 | C18: Bi-Annual Retailer Event Initiative | D18: Verified | H18: 1 | P18: =SUM(H18:O18) -> 1
B19: 3 | C19: Appliance Retirement Initiative | D19: Verified | H19: 1 | P19: 1
B20: 4 | C20: Appliance Exchange Initiative | D20: Verified | H20: 1 | P20: 1
B21: 5 | C21: HVAC Incentives Initaitive | D21: Verified | H21: 1 | P21: 1
B22: 6 | C22: Residential New Construction and Major Renovation Initiative | D22: Verified | H22: 1 | P22: 1
B23: Adjustments to 2016 results (if any) | D23: True-up | P23: 0
P24: 0
P25: 0
P26: 0
B27: Commercial & Institutional Program
B28: 7 | C28: Energy Audit Initiative | D28: Verified | E28: 12 | G28: 50 | I28: 0.2 | J28: 0.5 | K28: 0.3 | P28: 1
B29: 8 | C29: Efficiency: Equipment Replacement Incentive Initiative | D29: Verified | E29: 12 | I29: 0.8 | J29: 0.2 | P29: 1
B30: 9 | C30: Direct Install Lighting and Water Heating Initiative | D30: Verified | E30: 12 | I30: 0.5 | J30: 0.5 | P30: 1
B31: 10 | C31: New Construction and Major Renovation Initiative | D31: Verified | E31: 12 | I31: 1 | P31: 1
B32: 11 | C32: Existing Building Commissioning Incentive Initiative | D32: Verified | E32: 3 | J32: 0.9 | K32: 0.1 | P32: 1
B33: Adjustments to 2016 results (if any) | D33: True-up | P33: 0
P34: 0
P35: 0
P36: 0
B37: Industrial Program
B38: 12 | C38: Process and Systems Upgrades Initiatives - Project Incentive Initiative | D38: Verified | E38: 12 | J38: 1 | P38: 1
B39: 13 | C39: Process and Systems Upgrades Initiatives - Monitoring and Targeting Initiative | D39: Verified | E39: 12 | J39: 1 | P39: 1
B40: 14 | C40: Process and Systems Upgrades Initiatives - Energy Manager Initiative | D40: Verified | E40: 12 | J40: 1 | P40: 1
B41: Adjustments to 2016 results (if any) | D41: True-up | P41: 0
P42: 0
P43: 0
P44: 0
B45: Low Income Program
B46: 15 | C46: Low Income Initiative | D46: Verified | H46: 1 | P46: 1
B47: Adjustments to 2016 results (if any) | D47: True-up | P47: 0
P48: 0
P50: 0
B51: Pilots
B52: 16 | C52: Loblaws Pilot | D52: Verified | P52: 0
B53: 17 | C53: Social Benchmarking Pliot | D53: Verified | P53: 0
B54: 18 | C54: Conservation Fund Pilot - SEG | D54: Verified | P54: 0
B55: 19 | C55: Conservation Fund Pilot - EnerNOC | D55: Verified | P55: 0
B56: Adjustments to 2016 results (if any) | D56: True-up | P56: 0
B60: 2015-2020 Conservation First Framework Programs
B62: Residential Province-Wide Programs
B63: 21 | C63: Save on Energy Coupon Program | D63: Verified | H63: 1 | P63: 1
B64: 22 | C64: Save on Energy Heating and Cooling Program | D64: Verified | H64: 1 | P64: 1
B65: 23 | C65: Save on Energy New Construction Program | D65: Verified | H65: 1 | P65: 1
B66: 24 | C66: Save on Energy Home Assistance Program | D66: Verified | H66: 1 | P66: 1
B67: Adjustments to 2016 results (if any) | D67: True-up
P70: 0
B71: Non-Residential Province-Wide Programs
B72: 25 | C72: Save on Energy Audit Funding Program | D72: Verified | I72: 1 | P72: 1
B73: 26 | C73: Save on Energy Retrofit Program | D73: Verified | I73: 1 | P73: 1
B74: 27 | C74: Save on Energy Small Business Lighting Program | D74: Verified | I74: 0.8 | J74: 0.2 | P74: 1
B75: 28 | C75: Save on Energy High Performance New Construction Program | D75: Verified | P75: 0
B76: 29 | C76: Save on Energy Existing Building Commissioning Program | D76: Verified | P76: 0
B77: 30 | C77: Save on Energy Process & Systems Upgrades Program | D77: Verified | P77: 0
B78: 31 | C78: Save on Energy Monitoring & Targeting Program | D78: Verified | P78: 0
B79: 32 | C79: Save on Energy Energy Manager Program | D79: Verified | P79: 0
B80: Adjustments to 2016 results (if any) | D80: True-up
P83: =SUM(H83:O83) -> 0
B84: Local & Regional Programs
B85: 33 | C85: Business Refrigeration Local Program | D85: Verified | P85: 0
B86: 34 | C86: First Nation Conservation Local Program | D86: Verified | P86: 0
B87: 35 | C87: Social Benchmarking Local Program | D87: Verified | P87: 0
B88: Adjustments to 2016 results (if any) | D88: True-up
P91: 0
B92: Pilot Programs
B93: 36 | C93: Enersource Hydro Mississauga Inc. - Performance-Based Conservation Pilot Program - Conservation Fund | D93: Verified | P93: 0
B94: 37 | C94: EnWin Utilities Ltd. - Building Optimization Pilot | D94: Verified | P94: 0
B95: 38 | C95: EnWin Utilities Ltd. - Re-Invest Pilot | D95: Verified | P95: 0
B96: 39 | C96: Horizon Utilities Corporation - ECM Furnace Motor Pilot | D96: Verified | P96: 0
B97: 40 | C97: Horizon Utilities Corporation - Social Benchmarking Pilot | D97: Verified | P97: 0
B98: 41 | C98: Hydro Ottawa Limited - Conservation Voltage Regulation (CVR) Leveraging AMI Data Pilot | D98: Verified | P98: 0
B99: 42 | C99: Hydro Ottawa Limited - Residential Demand Response Wi-Fi Thermostat Pilot | D99: Verified | P99: 0
B100: 43 | C100: Kitchener-Wilmot Hydro Inc. - Pilot - DCKV | D100: Verified | P100: 0
B101: 44 | C101: Niagara-on-the-Lake Hydro Inc. - Direct Install Energy Efficiency Measures for the Agricultural Sector | D101: Verified | P101: 0
B102: 45 | C102: Oakville Hydro Electricity Distribution Inc. - Direct Install - Hydronic | D102: Verified | P102: 0
B103: 46 | C103: Oakville Hydro Electricity Distribution Inc. - Direct Install - RTU Controls | D103: Verified | P103: 0
B104: 47 | C104: Toronto Hydro-Electric System Limited - Direct Install - Hydronic (Pilot Savings) | D104: Verified | P104: 0
B105: 48 | C105: Toronto Hydro-Electric System Limited - Direct Install - RTU Controls (Pilot Savings) | D105: Verified | P105: 0
B106: 49 | C106: Toronto Hydro-Electric System Limited - PFP - Large (Pilot Savings) | D106: Verified | P106: 0
B107: Adjustments to 2016 results (if any) | D107: True-up
C111: Total kWh | H111: =SUM(F17*H17,F18*H18,F19*H19,F20*H20,F21*H21,F22*H22,F46*H46,F63*H63,F64*H64,F65*H65,F66*H66) -> 0 | I111: =SUM(F28*I28,F29*I29,F30*I30,F31*I31,F32*I32,F72*I72,F73*I73,F74*I74,F75*I75,F76*I76,F77*I77,F78*I78,F79*I79,F85*I85,F86*I86,F87*I87) -> 0 | P111: =SUM(H111:O111) -> 0
C112: Total GS > 50 kW | J112: =SUM(E28*G28*J28,E29*G29*J29,E30*G30*J30,E31*G31,J31*E32*G32*J32,E38*G38*J38,E39*G39*J39,E40*G40*J40) -> 300 | K112: =SUM(E28*G28*K28,E29*G29*K29,E30*G30*K30,E31*G31*K31,E32*G32*K32,E38*G38*K38,E39*G39*K39,E40*G40*K40) -> 180 | P112: =SUM(H112:O112) -> 480
C113: Total GS > 50 kW excluding Building Commissioning | J113: =J112-(E32*G32*J32) -> 300 | K113: =K112-(E32*G32*K32) -> 180
C116: Distribution Rate in 2016 | H116: ='3. Distribution Rates'!$J33 -> 0.01336666667 | I116: ='3. Distribution Rates'!J34 -> 0.01033333333 | J116: ='3. Distribution Rates'!J35 -> 2.614033333 | K116: ='3. Distribution Rates'!J36 -> 4.381966667 | L116: ='3. Distribution Rates'!J37 -> 11.41756667 | M116: ='3. Distribution Rates'!J38 -> 8.464933333 | N116: ='3. Distribution Rates'!J39 -> 0.0179
C117: Lost Revenue in 2016 from 2011 programs | P117: =SUM(H117:O117) -> 0
C118: Lost Revenue in 2016 from 2012 programs | P118: =SUM(H118:O118) -> 0
C119: Lost Revenue in 2016 from 2013 programs | P119: =SUM(H119:O119) -> 0
C120: Lost Revenue in 2016 from 2014 programs | P120: =SUM(H120:O120) -> 0
C121: Lost Revenue in 2016 from 2015 programs | H121: ='5. 2015 LRAM'!H126*H116 -> 106180.086 | I121: ='5. 2015 LRAM'!I126*I116 -> 200092.452 | J121: ='5. 2015 LRAM'!J126*J116 -> 18134.28952 | K121: ='5. 2015 LRAM'!K126*K116 -> 0 | L121: ='5. 2015 LRAM'!L126*L116 -> 0 | M121: ='5. 2015 LRAM'!M126*M116 -> 0 | N121: ='5. 2015 LRAM'!N126*N116 -> 0 | P121: =SUM(H121:O121) -> 324406.8275
C122: Lost Revenue in 2016 from 2016 programs | H122: =H111*H116 -> 0 | I122: =I111*I116 -> 0 | J122: =J112*J116 -> 784.21 | K122: =K112*K116 -> 788.754 | L122: =L112*L116 -> 0 | M122: =M112*M116 -> 0 | N122: =N111*N116 -> 0 | P122: 1572.964
C123: Total Lost Revenue in 2016 | H123: =SUM(H117:H122) -> 106180.086 | I123: 200092.452 | J123: 18918.49952 | K123: 788.754 | L123: 0 | M123: 0 | N123: 0 | P123: =SUM(P117:P122) -> 325979.7915
C125: 2016 Savings Persisting in 2017 | H125: =H111*'6. Persistence Rates'!$F$45 -> 0 | I125: =I111*'6. Persistence Rates'!$F$45 -> 0 | J125: =J112*'6. Persistence Rates'!S$45 -> 340.7701711 | K125: =K112*'6. Persistence Rates'!$S$45 -> 204.4621027 | L125: =L112*'6. Persistence Rates'!$R$44 -> 0 | M125: =M112*'6. Persistence Rates'!$R$44 -> 0 | N125: =N111*'6. Persistence Rates'!$F$45 -> 0
C126: 2016 Savings Persisting in 2018 | H126: =H111*'6. Persistence Rates'!$G$45 -> 0 | I126: =I111*'6. Persistence Rates'!$G$45 -> 0 | J126: =$J$113*'6. Persistence Rates'!$T$45 -> 340.7701711 | K126: =$K$113*'6. Persistence Rates'!$T$45 -> 204.4621027
C127: 2016 Savings Persisting in 2019 | H127: =H111*'6. Persistence Rates'!$H$45 -> 0 | I127: =I111*'6. Persistence Rates'!$H$45 -> 0 | J127: =$J$113*'6. Persistence Rates'!$U$45 -> 340.7701711 | K127: =$K$113*'6. Persistence Rates'!$U$45 -> 204.4621027
C128: 2016 Savings Persisting in 2020 | H128: =H111*'6. Persistence Rates'!$I$45 -> 0 | I128: =I111*'6. Persistence Rates'!$I$45 -> 0 | J128: =$J$113*'6. Persistence Rates'!$V$45 -> 340.7701711 | K128: =$K$113*'6. Persistence Rates'!$V$45 -> 204.4621027

Sheet 5-c. 2017 LRAM (hidden)
B2: 2017 Lost Revenues Work Form
C4: Instruction | E4: LDCs are only eligible to apply for lost revenues until they have rebased. Lost revenues for the period prior to rebasing should be included within the LDCs load forecast on a go forward basis.
E5: LDC to adjust the rate allocations by class (columns h to n). Please insert IESO verified savings for applicable programs (columns f to g).
E6: Adjustments will apply to the year that LRAM is claimed.
E7: This workbook contains links from Tab 3 (Distribution Rates) and Tab 5 (Persistence Rates).
C9: Legend | E9: User Inputs (Green)
E10: Auto Populated Cells (White)
B12: Table 11-c. 2017 LRAM Work Form
B13: # | C13: Initiative | D13: Results Status | E13: Months of Demand Savings | F13: Net Incremental Energy Savings (kWh) | G13: Net Incremental Peak Demand Savings (kW) | H13: Rate Allocation for LRAMVA
F14: 2015 kWh saved | G14: 2015 kW saved | H14: Residential | I14: General Service <50 kW | J14: General Service 50 - 999 kW | K14: General Service 1,000 - 4,999 kW | L14: Sentinel Lighting | M14: Street Lighting | N14: Unmetered Scattered Load | O14: Other | P14: Total
B15: 2011-2014+2015 Extension Legacy Framework Programs
B16: Residential Program
B17: 1 | C17: Coupon Initiative | D17: Verified | H17: 1 | P17: =SUM(H17:O17) -> 1
B18: 2 | C18: Bi-Annual Retailer Event Initiative | D18: Verified | H18: 1 | P18: =SUM(H18:O18) -> 1
B19: 3 | C19: Appliance Retirement Initiative | D19: Verified | H19: 1 | P19: 1
B20: 4 | C20: Appliance Exchange Initiative | D20: Verified | H20: 1 | P20: 1
B21: 5 | C21: HVAC Incentives Initaitive | D21: Verified | H21: 1 | P21: 1
B22: 6 | C22: Residential New Construction and Major Renovation Initiative | D22: Verified | H22: 1 | P22: 1
B23: Adjustments to 2017 results (if any) | D23: True-up | P23: 0
P24: 0
P25: 0
P26: 0
B27: Commercial & Institutional Program
B28: 7 | C28: Energy Audit Initiative | D28: Verified | E28: 12 | G28: 50 | I28: 0.2 | J28: 0.5 | K28: 0.3 | P28: 1
B29: 8 | C29: Efficiency: Equipment Replacement Incentive Initiative | D29: Verified | E29: 12 | I29: 0.8 | J29: 0.2 | P29: 1
B30: 9 | C30: Direct Install Lighting and Water Heating Initiative | D30: Verified | E30: 12 | I30: 0.5 | J30: 0.5 | P30: 1
B31: 10 | C31: New Construction and Major Renovation Initiative | D31: Verified | E31: 12 | I31: 1 | P31: 1
B32: 11 | C32: Existing Building Commissioning Incentive Initiative | D32: Verified | E32: 3 | J32: 1 | P32: 1
B33: Adjustments to 2017 results (if any) | D33: True-up | P33: 0
P34: 0
P35: 0
P36: 0
B37: Industrial Program
B38: Industrial Program | P38: 0
B39: 12 | C39: Process and Systems Upgrades Initiatives - Project Incentive Initiative | D39: Verified | E39: 12 | J39: 1 | P39: 1
B40: 13 | C40: Process and Systems Upgrades Initiatives - Monitoring and Targeting Initiative | D40: Verified | E40: 12 | J40: 1 | P40: 1
B41: 14 | C41: Process and Systems Upgrades Initiatives - Energy Manager Initiative | D41: Verified | E41: 12 | J41: 1 | P41: 1
B42: Adjustments to 2017 results (if any) | D42: True-up | P42: 0
P43: 0
P44: 0
P45: 0
B46: Low Income Program
B47: 15 | C47: Low Income Initiative | D47: Verified | H47: 1 | P47: 1
B48: Adjustments to 2017 results (if any) | D48: True-up | P48: 0
P49: 0
P51: 0
B52: Pilots
B53: 16 | C53: Loblaws Pilot | D53: Verified | P53: 0
B54: 17 | C54: Social Benchmarking Pliot | D54: Verified | P54: 0
B55: 18 | C55: Conservation Fund Pilot - SEG | D55: Verified | P55: 0
B56: 19 | C56: Conservation Fund Pilot - EnerNOC | D56: Verified | P56: 0
B57: Adjustments to 2017 results (if any) | D57: True-up | P57: 0
B61: 2015-2020 Conservation First Framework Programs
B63: Residential Province-Wide Programs
B64: 21 | C64: Save on Energy Coupon Program | D64: Verified | H64: 1 | P64: 1
B65: 22 | C65: Save on Energy Heating and Cooling Program | D65: Verified | H65: 1 | P65: 1
B66: 23 | C66: Save on Energy New Construction Program | D66: Verified | H66: 1 | P66: 1
B67: 24 | C67: Save on Energy Home Assistance Program | D67: Verified | H67: 1 | P67: 1
B68: Adjustments to 2017 results (if any) | D68: True-up
P71: 0
B72: Non-Residential Province-Wide Programs
B73: 25 | C73: Save on Energy Audit Funding Program | D73: Verified | I73: 1 | P73: 1
B74: 26 | C74: Save on Energy Retrofit Program | D74: Verified | I74: 1 | P74: 1
B75: 27 | C75: Save on Energy Small Business Lighting Program | D75: Verified | I75: 0.8 | J75: 0.2 | P75: 1
B76: 28 | C76: Save on Energy High Performance New Construction Program | D76: Verified | P76: 0
B77: 29 | C77: Save on Energy Existing Building Commissioning Program | D77: Verified | P77: 0
B78: 30 | C78: Save on Energy Process & Systems Upgrades Program | D78: Verified | P78: 0
B79: 31 | C79: Save on Energy Monitoring & Targeting Program | D79: Verified | P79: 0
B80: 32 | C80: Save on Energy Energy Manager Program | D80: Verified | P80: 0
B81: Adjustments to 2017 results (if any) | D81: True-up
P84: =SUM(H84:O84) -> 0
B85: Local & Regional Programs
B86: 33 | C86: Business Refrigeration Local Program | D86: Verified | P86: 0
B87: 34 | C87: First Nation Conservation Local Program | D87: Verified | P87: 0
B88: 35 | C88: Social Benchmarking Local Program | D88: Verified | P88: 0
B89: Adjustments to 2017 results (if any) | D89: True-up
P92: 0
B93: Pilot Programs
B94: 36 | C94: Enersource Hydro Mississauga Inc. - Performance-Based Conservation Pilot Program - Conservation Fund | D94: Verified | P94: 0
B95: 37 | C95: EnWin Utilities Ltd. - Building Optimization Pilot | D95: Verified | P95: 0
B96: 38 | C96: EnWin Utilities Ltd. - Re-Invest Pilot | D96: Verified | P96: 0
B97: 39 | C97: Horizon Utilities Corporation - ECM Furnace Motor Pilot | D97: Verified | P97: 0
B98: 40 | C98: Horizon Utilities Corporation - Social Benchmarking Pilot | D98: Verified | P98: 0
B99: 41 | C99: Hydro Ottawa Limited - Conservation Voltage Regulation (CVR) Leveraging AMI Data Pilot | D99: Verified | P99: 0
B100: 42 | C100: Hydro Ottawa Limited - Residential Demand Response Wi-Fi Thermostat Pilot | D100: Verified | P100: 0
B101: 43 | C101: Kitchener-Wilmot Hydro Inc. - Pilot - DCKV | D101: Verified | P101: 0
B102: 44 | C102: Niagara-on-the-Lake Hydro Inc. - Direct Install Energy Efficiency Measures for the Agricultural Sector | D102: Verified | P102: 0
B103: 45 | C103: Oakville Hydro Electricity Distribution Inc. - Direct Install - Hydronic | D103: Verified | P103: 0
B104: 46 | C104: Oakville Hydro Electricity Distribution Inc. - Direct Install - RTU Controls | D104: Verified | P104: 0
B105: 47 | C105: Toronto Hydro-Electric System Limited - Direct Install - Hydronic (Pilot Savings) | D105: Verified | P105: 0
B106: 48 | C106: Toronto Hydro-Electric System Limited - Direct Install - RTU Controls (Pilot Savings) | D106: Verified | P106: 0
B107: 49 | C107: Toronto Hydro-Electric System Limited - PFP - Large (Pilot Savings) | D107: Verified | P107: 0
B108: Adjustments to 2017 results (if any) | D108: True-up
C112: Total kWh | H112: =SUM(F17*H17,F18*H18,F19*H19,F20*H20,F21*H21,F22*H22,F47*H47,F64*H64,F65*H65,F66*H66,F67*H67) -> 0 | I112: =SUM(F28*I28,F29*I29,F30*I30,F31*I31,F32*I32,F73*I73,F74*I74,F75*I75,F76*I76,F77*I77,F78*I78,F79*I79,F80*I80,F86*I86,F87*I87,F88*I88) -> 0 | P112: =SUM(H112:O112) -> 0
C113: Total GS > 50 kW | J113: =SUM(E28*G28*J28,E29*G29*J29,E30*G30*J30,E31*G31,J31*E32*G32*J32,E39*G39*J39,E40*G40*J40,E41*G41*J41) -> 300 | K113: =SUM(E28*G28*K28,E29*G29*K29,E30*G30*K30,E31*G31*K31,E32*G32*K32,E39*G39*K39,E40*G40*K40,E41*G41*K41) -> 180 | P113: =SUM(H113:O113) -> 480
C114: Total GS > 50 kW excluding Building Commissioning | J114: =J113-(E32*G32*J32) -> 300 | K114: =K113-(E32*G32*K32) -> 180
C117: Distribution Rate in 2017 | H117: ='3. Distribution Rates'!$K33 -> 0.0121 | I117: ='3. Distribution Rates'!K34 -> 0.0104 | J117: ='3. Distribution Rates'!K35 -> 2.6313 | K117: ='3. Distribution Rates'!K36 -> 4.4106 | L117: ='3. Distribution Rates'!K37 -> 11.4943 | M117: ='3. Distribution Rates'!K38 -> 8.5217 | N117: ='3. Distribution Rates'!K39 -> 0.018
C118: Lost Revenue in 2017 from 2011 programs | P118: =SUM(H118:O118) -> 0
C119: Lost Revenue in 2017 from 2012 programs | P119: =SUM(H119:O119) -> 0
C120: Lost Revenue in 2017 from 2013 programs | P120: =SUM(H120:O120) -> 0
C121: Lost Revenue in 2017 from 2014 programs | P121: =SUM(H121:O121) -> 0
C122: Lost Revenue in 2017 from 2015 programs | H122: ='5. 2015 LRAM'!H127*H117 -> 94276.72439 | I122: ='5. 2015 LRAM'!I127*I117 -> 197525.3163 | J122: ='5. 2015 LRAM'!J126*J117 -> 18254.07328 | K122: ='5. 2015 LRAM'!K126*K117 -> 0 | L122: ='5. 2015 LRAM'!L126*L117 -> 0 | M122: ='5. 2015 LRAM'!M126*M117 -> 0 | N122: ='5. 2015 LRAM'!N126*N117 -> 0 | P122: =SUM(H122:O122) -> 310056.114
C123: Lost Revenue in 2017 from 2016 programs | H123: ='5-b. 2016 LRAM'!H125*H117 -> 0 | I123: ='5-b. 2016 LRAM'!I125*I117 -> 0 | J123: ='5-b. 2016 LRAM'!J125*J117 -> 896.6685513 | K123: ='5-b. 2016 LRAM'!K125*K117 -> 901.8005501 | L123: ='5-b. 2016 LRAM'!L125*L117 -> 0 | M123: ='5-b. 2016 LRAM'!M125*M117 -> 0 | N123: ='5-b. 2016 LRAM'!N125*N117 -> 0 | P123: 1798.469101
C124: Lost Revenue in 2017 from 2017 programs | H124: =H112*H117 -> 0 | I124: =I112*I117 -> 0 | J124: =J113*J117 -> 789.39 | K124: =K113*K117 -> 793.908 | L124: =L113*L117 -> 0 | M124: =M113*M117 -> 0 | N124: =N112*N117 -> 0 | P124: =SUM(H124:O124) -> 1583.298
C125: Total Lost Revenue in 2017 | H125: =SUM(H118:H124) -> 94276.72439 | I125: =SUM(I118:I124) -> 197525.3163 | J125: =SUM(J118:J124) -> 19940.13183 | K125: 1695.70855 | L125: 0 | M125: 0 | N125: 0 | P125: =SUM(P118:P124) -> 313437.8811
C127: 2017 Savings Persisting in 2018 | H127: =H112*'6. Persistence Rates'!$G$46 -> 0 | I127: =I112*'6. Persistence Rates'!$G$46 -> 0 | J127: =J113*'6. Persistence Rates'!$T$46 -> 300 | K127: =K113*'6. Persistence Rates'!$T$46 -> 180 | N127: =N112*'6. Persistence Rates'!$G$46 -> 0
C128: 2017 Savings Persisting in 2019 | H128: =H112*'6. Persistence Rates'!$H$46 -> 0 | I128: =I112*'6. Persistence Rates'!$H$46 -> 0 | J128: =$J$114*'6. Persistence Rates'!$U$46 -> 300 | K128: =$K$114*'6. Persistence Rates'!$U$46 -> 180 | N128: =N112*'6. Persistence Rates'!$H$46 -> 0
C129: 2017 Savings Persisting in 2020 | H129: =H112*'6. Persistence Rates'!$I$46 -> 0 | I129: =I112*'6. Persistence Rates'!$I$46 -> 0 | J129: =$J$114*'6. Persistence Rates'!$V$46 -> 300 | K129: =$K$114*'6. Persistence Rates'!$V$46 -> 180 | N129: =N112*'6. Persistence Rates'!$I$46 -> 0

Sheet 5-d. 2018 LRAM (hidden)
B2: 2018 Lost Revenues Work Form
C4: Instruction | E4: LDCs are only eligible to apply for lost revenues until they have rebased. Lost revenues for the period prior to rebasing should be included within the LDCs load forecast on a go forward basis.
E5: LDC to adjust the rate allocations by class (columns h to n). Please insert IESO verified savings for applicable programs (columns f to g).
E6: Adjustments will apply to the year that LRAM is claimed.
E7: This workbook contains links from Tab 3 (Distribution Rates) and Tab 5 (Persistence Rates).
C9: Legend | E9: User Inputs (Green)
E10: Auto Populated Cells (White)
B12: Table 11-d. 2018 LRAM Work Form
B13: # | C13: Initiative | D13: Results Status | E13: Months of Demand Savings | F13: Net Incremental Energy Savings (kWh) | G13: Net Incremental Peak Demand Savings (kW) | H13: Rate Allocation for LRAMVA
F14: 2015 kWh saved | G14: 2015 kW saved | H14: Residential | I14: General Service <50 kW | J14: General Service 50 - 999 kW | K14: General Service 1,000 - 4,999 kW | L14: Sentinel Lighting | M14: Street Lighting | N14: Unmetered Scattered Load | O14: Other | P14: Total
B15: 2011-2014+2015 Extension Legacy Framework Programs
B16: Residential Program
B17: 1 | C17: Coupon Initiative | D17: Verified | H17: 1 | P17: =SUM(H17:O17) -> 1
B18: 2 | C18: Bi-Annual Retailer Event Initiative | D18: Verified | H18: 1 | P18: =SUM(H18:O18) -> 1
B19: 3 | C19: Appliance Retirement Initiative | D19: Verified | H19: 1 | P19: 1
B20: 4 | C20: Appliance Exchange Initiative | D20: Verified | H20: 1 | P20: 1
B21: 5 | C21: HVAC Incentives Initaitive | D21: Verified | H21: 1 | P21: 1
B22: 6 | C22: Residential New Construction and Major Renovation Initiative | D22: Verified | H22: 1 | P22: 1
B23: Adjustments to 2018 results (if any) | D23: True-up | P23: 0
P24: 0
P25: 0
P26: 0
B27: Commercial & Institutional Program
B28: 7 | C28: Energy Audit Initiative | D28: Verified | E28: 12 | I28: 0.2 | J28: 0.5 | K28: 0.3 | P28: 1
B29: 8 | C29: Efficiency: Equipment Replacement Incentive Initiative | D29: Verified | E29: 12 | I29: 0.8 | J29: 0.2 | P29: 1
B30: 9 | C30: Direct Install Lighting and Water Heating Initiative | D30: Verified | E30: 12 | I30: 0.5 | J30: 0.5 | P30: 1
B31: 10 | C31: New Construction and Major Renovation Initiative | D31: Verified | E31: 12 | I31: 1 | P31: 1
B32: 11 | C32: Existing Building Commissioning Incentive Initiative | D32: Verified | E32: 3 | J32: 1 | P32: 1
B33: Adjustments to 2018 results (if any) | D33: True-up | P33: 0
P34: 0
P35: 0
P36: 0
B37: Industrial Program
B38: 12 | C38: Process and Systems Upgrades Initiatives - Project Incentive Initiative | D38: Verified | E38: 12 | J38: 1 | P38: 1
B39: 13 | C39: Process and Systems Upgrades Initiatives - Monitoring and Targeting Initiative | D39: Verified | E39: 12 | J39: 1 | P39: 1
B40: 14 | C40: Process and Systems Upgrades Initiatives - Energy Manager Initiative | D40: Verified | E40: 12 | J40: 1 | P40: 1
B41: Adjustments to 2018 results (if any) | D41: True-up | P41: 0
P42: 0
P43: 0
P44: 0
B45: Low Income Program
B46: 15 | C46: Low Income Initiative | D46: Verified | H46: 1 | P46: 1
B47: Adjustments to 2018 results (if any) | D47: True-up | P47: 0
P48: 0
P50: 0
B51: Pilots
B52: 16 | C52: Loblaws Pilot | D52: Verified | P52: 0
B53: 17 | C53: Social Benchmarking Pliot | D53: Verified | P53: 0
B54: 18 | C54: Conservation Fund Pilot - SEG | D54: Verified | P54: 0
B55: 19 | C55: Conservation Fund Pilot - EnerNOC | D55: Verified | P55: 0
B56: Adjustments to 2018 results (if any) | D56: True-up | P56: 0
B60: 2015-2020 Conservation First Framework Programs
B62: Residential Province-Wide Programs
B63: 21 | C63: Save on Energy Coupon Program | D63: Verified | H63: 1 | P63: 1
B64: 22 | C64: Save on Energy Heating and Cooling Program | D64: Verified | H64: 1 | P64: 1
B65: 23 | C65: Save on Energy New Construction Program | D65: Verified | H65: 1 | P65: 1
B66: 24 | C66: Save on Energy Home Assistance Program | D66: Verified | H66: 1 | P66: 1
B67: Adjustments to 2018 results (if any) | D67: True-up
P70: 0
B71: Non-Residential Province-Wide Programs
B72: 25 | C72: Save on Energy Audit Funding Program | D72: Verified | I72: 1 | P72: 1
B73: 26 | C73: Save on Energy Retrofit Program | D73: Verified | I73: 1 | P73: 1
B74: 27 | C74: Save on Energy Small Business Lighting Program | D74: Verified | I74: 0.8 | J74: 0.2 | P74: 1
B75: 28 | C75: Save on Energy High Performance New Construction Program | D75: Verified | P75: 0
B76: 29 | C76: Save on Energy Existing Building Commissioning Program | D76: Verified | P76: 0
B77: 30 | C77: Save on Energy Process & Systems Upgrades Program | D77: Verified | P77: 0
B78: 31 | C78: Save on Energy Monitoring & Targeting Program | D78: Verified | P78: 0
B79: 32 | C79: Save on Energy Energy Manager Program | D79: Verified | P79: 0
B80: Adjustments to 2018 results (if any) | D80: True-up
P83: =SUM(H83:O83) -> 0
B84: Local & Regional Programs
B85: 33 | C85: Business Refrigeration Local Program | D85: Verified | P85: 0
B86: 34 | C86: First Nation Conservation Local Program | D86: Verified | P86: 0
B87: 35 | C87: Social Benchmarking Local Program | D87: Verified | P87: 0
B88: Adjustments to 2018 results (if any) | D88: True-up
P91: 0
B92: Pilot Programs
B93: 36 | C93: Enersource Hydro Mississauga Inc. - Performance-Based Conservation Pilot Program - Conservation Fund | D93: Verified | P93: 0
B94: 37 | C94: EnWin Utilities Ltd. - Building Optimization Pilot | D94: Verified | P94: 0
B95: 38 | C95: EnWin Utilities Ltd. - Re-Invest Pilot | D95: Verified | P95: 0
B96: 39 | C96: Horizon Utilities Corporation - ECM Furnace Motor Pilot | D96: Verified | P96: 0
B97: 40 | C97: Horizon Utilities Corporation - Social Benchmarking Pilot | D97: Verified | P97: 0
B98: 41 | C98: Hydro Ottawa Limited - Conservation Voltage Regulation (CVR) Leveraging AMI Data Pilot | D98: Verified | P98: 0
B99: 42 | C99: Hydro Ottawa Limited - Residential Demand Response Wi-Fi Thermostat Pilot | D99: Verified | P99: 0
B100: 43 | C100: Kitchener-Wilmot Hydro Inc. - Pilot - DCKV | D100: Verified | P100: 0
B101: 44 | C101: Niagara-on-the-Lake Hydro Inc. - Direct Install Energy Efficiency Measures for the Agricultural Sector | D101: Verified | P101: 0
B102: 45 | C102: Oakville Hydro Electricity Distribution Inc. - Direct Install - Hydronic | D102: Verified | P102: 0
B103: 46 | C103: Oakville Hydro Electricity Distribution Inc. - Direct Install - RTU Controls | D103: Verified | P103: 0
B104: 47 | C104: Toronto Hydro-Electric System Limited - Direct Install - Hydronic (Pilot Savings) | D104: Verified | P104: 0
B105: 48 | C105: Toronto Hydro-Electric System Limited - Direct Install - RTU Controls (Pilot Savings) | D105: Verified | P105: 0
B106: 49 | C106: Toronto Hydro-Electric System Limited - PFP - Large (Pilot Savings) | D106: Verified | P106: 0
B107: Adjustments to 2018 results (if any) | D107: True-up
C111: Total kWh | H111: =SUM(F17*H17,F18*H18,F19*H19,F20*H20,F21*H21,F22*H22,F46*H46,F63*H63,F64*H64,F65*H65,F66*H66) -> 0 | I111: =SUM(F28*I28,F29*I29,F30*I30,F31*I31,F32*I32,F72*I72,F73*I73,F74*I74,F75*I75,F76*I76,F77*I77,F78*I78,F79*I79,F85*I85,F86*I86,F87*I87) -> 0 | P111: =SUM(H111:O111) -> 0
C112: Total GS > 50 kW | J112: =SUM(E28*G28*J28,E29*G29*J29,E30*G30*J30,E31*G31,J31*E32*G32*J32,E38*G38*J38,E39*G39*J39,E40*G40*J40) -> 0 | K112: =SUM(E28*G28*K28,E29*G29*K29,E30*G30*K30,E31*G31*K31,E32*G32*K32,E38*G38*K38,E39*G39*K39,E40*G40*K40) -> 0 | P112: =SUM(H112:O112) -> 0
C113: Total GS > 50 kW excluding Building Commissioning | J113: =J112-(E32*G32*J32) -> 0 | K113: =K112-(E32*G32*K32) -> 0
C116: Distribution Rate in 2018 | H116: ='3. Distribution Rates'!#REF! ->  | I116: ='3. Distribution Rates'!#REF! ->  | J116: ='3. Distribution Rates'!#REF! ->  | K116: ='3. Distribution Rates'!#REF! ->  | L116: ='3. Distribution Rates'!#REF! ->  | M116: ='3. Distribution Rates'!#REF! ->  | N116: ='3. Distribution Rates'!#REF! -> 
C117: Lost Revenue in 2018 from 2011 programs | P117: =SUM(H117:O117) -> 0
C118: Lost Revenue in 2018 from 2012 programs | P118: =SUM(H118:O118) -> 0
C119: Lost Revenue in 2018 from 2013 programs | P119: =SUM(H119:O119) -> 0
C120: Lost Revenue in 2018 from 2014 programs | P120: =SUM(H120:O120) -> 0
C121: Lost Revenue in 2018 from 2015 programs | H121: ='5. 2015 LRAM'!H128*H116 ->  | I121: ='5. 2015 LRAM'!I128*I116 ->  | J121: ='5. 2015 LRAM'!J128*J116 ->  | K121: ='5. 2015 LRAM'!K128*K116 ->  | L121: ='5. 2015 LRAM'!L128*L116 ->  | M121: ='5. 2015 LRAM'!M128*M116 ->  | N121: ='5. 2015 LRAM'!N128*N116 ->  | P121: =SUM(H121:O121) -> 
C122: Lost Revenue in 2018 from 2016 programs | H122: ='5-b. 2016 LRAM'!H126*H116 ->  | I122: ='5-b. 2016 LRAM'!I126*I116 ->  | J122: ='5-b. 2016 LRAM'!J126*J116 ->  | K122: ='5-b. 2016 LRAM'!K126*K116 ->  | L122: ='5-b. 2016 LRAM'!L126*L116 ->  | M122: ='5-b. 2016 LRAM'!M126*M116 ->  | N122: ='5-b. 2016 LRAM'!N126*N116 -> 
C123: Lost Revenue in 2018 from 2017 programs | H123: ='5-c. 2017 LRAM'!H127*H116 ->  | I123: ='5-c. 2017 LRAM'!I127*I116 ->  | J123: ='5-c. 2017 LRAM'!J127*J116 ->  | K123: ='5-c. 2017 LRAM'!K127*K116 ->  | L123: ='5-c. 2017 LRAM'!L127*L116 ->  | M123: ='5-c. 2017 LRAM'!M127*M116 ->  | N123: ='5-c. 2017 LRAM'!N127*N116 ->  | P123: =SUM(H123:O123) -> 
C124: Lost Revenue in 2018 from 2018 programs | H124: =H111*H116 ->  | I124: =I111*I116 ->  | J124: =J112*J116 ->  | K124: =K112*K116 ->  | L124: =L112*L116 ->  | M124: =M112*M116 ->  | N124: =N111*N116 ->  | P124: =SUM(H124:O124) -> 
C125: Total Lost Revenue in 2018 | H125: =SUM(H117:H124) ->  | J125: =SUM(J117:J124) ->  | P125: =SUM(P117:P124) -> 
C127: 2018 Savings Persisting in 2019 | H127: =$H$111*'6. Persistence Rates'!$H$47 -> 0 | I127: =$H$111*'6. Persistence Rates'!$H$47 -> 0 | J127: =J112*'6. Persistence Rates'!$U$47 -> 0 | K127: =K112*'6. Persistence Rates'!$U$47 -> 0 | L127: =L112*'6. Persistence Rates'!$R$44 -> 0 | M127: =M112*'6. Persistence Rates'!$R$44 -> 0 | N127: =N111*'6. Persistence Rates'!$E$44 -> 0
C128: 2018 Savings Persisting in 2020 | H128: =H111*'6. Persistence Rates'!$I$47 -> 0 | I128: =I111*'6. Persistence Rates'!$I$47 -> 0 | J128: =$J$113*'6. Persistence Rates'!$V$47 -> 0 | K128: =$K$113*'6. Persistence Rates'!$V$47 -> 0 | N128: =N111*'6. Persistence Rates'!$I$47 -> 0

Sheet 5-e. 2019 LRAM (hidden)
B2: 2019 Lost Revenues Work Form
C4: Instruction | E4: LDCs are only eligible to apply for lost revenues until they have rebased. Lost revenues for the period prior to rebasing should be included within the LDCs load forecast on a go forward basis.
E5: LDC to adjust the rate allocations by class (columns h to n). Please insert IESO verified savings for applicable programs (columns f to g).
E6: Adjustments will apply to the year that LRAM is claimed.
E7: This workbook contains links from Tab 3 (Distribution Rates) and Tab 5 (Persistence Rates).
C9: Legend | E9: User Inputs (Green)
E10: Auto Populated Cells (White)
B12: Table 11-e. 2018 LRAM Work Form
B13: # | C13: Initiative | D13: Results Status | E13: Months of Demand Savings | F13: Net Incremental Energy Savings (kWh) | G13: Net Incremental Peak Demand Savings (kW) | H13: Rate Allocation for LRAMVA
F14: 2015 kWh saved | G14: 2015 kW saved | H14: Residential | I14: General Service <50 kW | J14: General Service 50 - 999 kW | K14: General Service 1,000 - 4,999 kW | L14: Sentinel Lighting | M14: Street Lighting | N14: Unmetered Scattered Load | O14: Other | P14: Total
B15: 2011-2014+2015 Extension Legacy Framework Programs
B16: Residential Program
B17: 1 | C17: Coupon Initiative | D17: Verified | H17: 1 | P17: =SUM(H17:O17) -> 1
B18: 2 | C18: Bi-Annual Retailer Event Initiative | D18: Verified | H18: 1 | P18: =SUM(H18:O18) -> 1
B19: 3 | C19: Appliance Retirement Initiative | D19: Verified | H19: 1 | P19: 1
B20: 4 | C20: Appliance Exchange Initiative | D20: Verified | H20: 1 | P20: 1
B21: 5 | C21: HVAC Incentives Initaitive | D21: Verified | H21: 1 | P21: 1
B22: 6 | C22: Residential New Construction and Major Renovation Initiative | D22: Verified | H22: 1 | P22: 1
B23: Adjustments to 2019 results (if any) | D23: True-up | P23: 0
P24: 0
P25: 0
P26: 0
B27: Commercial & Institutional Program
B28: 7 | C28: Energy Audit Initiative | D28: Verified | E28: 12 | I28: 0.2 | J28: 0.5 | K28: 0.3 | P28: 1
B29: 8 | C29: Efficiency: Equipment Replacement Incentive Initiative | D29: Verified | E29: 12 | I29: 0.8 | J29: 0.2 | P29: 1
B30: 9 | C30: Direct Install Lighting and Water Heating Initiative | D30: Verified | E30: 12 | I30: 0.5 | J30: 0.5 | P30: 1
B31: 10 | C31: New Construction and Major Renovation Initiative | D31: Verified | E31: 12 | I31: 1 | P31: 1
B32: 11 | C32: Existing Building Commissioning Incentive Initiative | D32: Verified | E32: 3 | J32: 1 | P32: 1
B33: Adjustments to 2019 results (if any) | D33: True-up | P33: 0
P34: 0
P35: 0
P36: 0
B37: Industrial Program
B38: 12 | C38: Process and Systems Upgrades Initiatives - Project Incentive Initiative | D38: Verified | E38: 12 | J38: 1 | P38: 1
B39: 13 | C39: Process and Systems Upgrades Initiatives - Monitoring and Targeting Initiative | D39: Verified | E39: 12 | J39: 1 | P39: 1
B40: 14 | C40: Process and Systems Upgrades Initiatives - Energy Manager Initiative | D40: Verified | E40: 12 | J40: 1 | P40: 1
B41: Adjustments to 2019 results (if any) | D41: True-up | P41: 0
P42: 0
P43: 0
P44: 0
B45: Low Income Program
B46: 15 | C46: Low Income Initiative | D46: Verified | H46: 1 | P46: 1
B47: Adjustments to 2019 results (if any) | D47: True-up | P47: 0
P48: 0
P50: 0
B51: Pilots
B52: 16 | C52: Loblaws Pilot | D52: Verified | P52: 0
B53: 17 | C53: Social Benchmarking Pliot | D53: Verified | P53: 0
B54: 18 | C54: Conservation Fund Pilot - SEG | D54: Verified | P54: 0
B55: 19 | C55: Conservation Fund Pilot - EnerNOC | D55: Verified | P55: 0
B56: Adjustments to 2019 results (if any) | D56: True-up | P56: 0
B60: 2015-2020 Conservation First Framework Programs
B62: Residential Province-Wide Programs
B63: 21 | C63: Save on Energy Coupon Program | D63: Verified | H63: 1 | P63: 1
B64: 22 | C64: Save on Energy Heating and Cooling Program | D64: Verified | H64: 1 | P64: 1
B65: 23 | C65: Save on Energy New Construction Program | D65: Verified | H65: 1 | P65: 1
B66: 24 | C66: Save on Energy Home Assistance Program | D66: Verified | H66: 1 | P66: 1
B67: Adjustments to 2019 results (if any) | D67: True-up
P70: 0
B71: Non-Residential Province-Wide Programs
B72: 25 | C72: Save on Energy Audit Funding Program | D72: Verified | I72: 1 | P72: 1
B73: 26 | C73: Save on Energy Retrofit Program | D73: Verified | I73: 1 | P73: 1
B74: 27 | C74: Save on Energy Small Business Lighting Program | D74: Verified | I74: 0.8 | J74: 0.2 | P74: 1
B75: 28 | C75: Save on Energy High Performance New Construction Program | D75: Verified | P75: 0
B76: 29 | C76: Save on Energy Existing Building Commissioning Program | D76: Verified | P76: 0
B77: 30 | C77: Save on Energy Process & Systems Upgrades Program | D77: Verified | P77: 0
B78: 31 | C78: Save on Energy Monitoring & Targeting Program | D78: Verified | P78: 0
B79: 32 | C79: Save on Energy Energy Manager Program | D79: Verified | P79: 0
B80: Adjustments to 2019 results (if any) | D80: True-up
P83: =SUM(H83:O83) -> 0
B84: Local & Regional Programs
B85: 33 | C85: Business Refrigeration Local Program | D85: Verified | P85: 0
B86: 34 | C86: First Nation Conservation Local Program | D86: Verified | P86: 0
B87: 35 | C87: Social Benchmarking Local Program | D87: Verified | P87: 0
B88: Adjustments to 2019 results (if any) | D88: True-up
P91: 0
B92: Pilot Programs
B93: 36 | C93: Enersource Hydro Mississauga Inc. - Performance-Based Conservation Pilot Program - Conservation Fund | D93: Verified | P93: 0
B94: 37 | C94: EnWin Utilities Ltd. - Building Optimization Pilot | D94: Verified | P94: 0
B95: 38 | C95: EnWin Utilities Ltd. - Re-Invest Pilot | D95: Verified | P95: 0
B96: 39 | C96: Horizon Utilities Corporation - ECM Furnace Motor Pilot | D96: Verified | P96: 0
B97: 40 | C97: Horizon Utilities Corporation - Social Benchmarking Pilot | D97: Verified | P97: 0
B98: 41 | C98: Hydro Ottawa Limited - Conservation Voltage Regulation (CVR) Leveraging AMI Data Pilot | D98: Verified | P98: 0
B99: 42 | C99: Hydro Ottawa Limited - Residential Demand Response Wi-Fi Thermostat Pilot | D99: Verified | P99: 0
B100: 43 | C100: Kitchener-Wilmot Hydro Inc. - Pilot - DCKV | D100: Verified | P100: 0
B101: 44 | C101: Niagara-on-the-Lake Hydro Inc. - Direct Install Energy Efficiency Measures for the Agricultural Sector | D101: Verified | P101: 0
B102: 45 | C102: Oakville Hydro Electricity Distribution Inc. - Direct Install - Hydronic | D102: Verified | P102: 0
B103: 46 | C103: Oakville Hydro Electricity Distribution Inc. - Direct Install - RTU Controls | D103: Verified | P103: 0
B104: 47 | C104: Toronto Hydro-Electric System Limited - Direct Install - Hydronic (Pilot Savings) | D104: Verified | P104: 0
B105: 48 | C105: Toronto Hydro-Electric System Limited - Direct Install - RTU Controls (Pilot Savings) | D105: Verified | P105: 0
B106: 49 | C106: Toronto Hydro-Electric System Limited - PFP - Large (Pilot Savings) | D106: Verified | P106: 0
B107: Adjustments to 2019 results (if any) | D107: True-up
C111: Total kWh | H111: =SUM(F17*H17,F18*H18,F19*H19,F20*H20,F21*H21,F22*H22,F46*H46,F63*H63,F64*H64,F65*H65,F66*H66) -> 0 | I111: =SUM(F28*I28,F29*I29,F30*I30,F31*I31,F32*I32,F72*I72,F73*I73,F74*I74,F75*I75,F76*I76,F77*I77,F78*I78,F79*I79,F85*I85,F86*I86,F87*I87) -> 0 | P111: =SUM(H111:O111) -> 0
C112: Total GS > 50 kW | J112: =SUM(E28*G28*J28,E29*G29*J29,E30*G30*J30,E31*G31,J31*E32*G32*J32,E38*G38*J38,E39*G39*J39,E40*G40*J40) -> 0 | K112: =SUM(E28*G28*K28,E29*G29*K29,E30*G30*K30,E31*G31*K31,E32*G32*K32,E38*G38*K38,E39*G39*K39,E40*G40*K40) -> 0 | P112: =SUM(H112:O112) -> 0
C113: Total GS > 50 kW excluding Building Commissioning | J113: =J112-(E32*G32*J32) -> 0 | K113: =K112-(E32*G32*K32) -> 0
C116: Distribution Rate in 2019 | H116: ='3. Distribution Rates'!#REF! ->  | I116: ='3. Distribution Rates'!#REF! ->  | J116: ='3. Distribution Rates'!#REF! ->  | K116: ='3. Distribution Rates'!#REF! ->  | L116: ='3. Distribution Rates'!#REF! ->  | M116: ='3. Distribution Rates'!#REF! ->  | N116: ='3. Distribution Rates'!#REF! -> 
C117: Lost Revenue in 2019 from 2011 programs | P117: =SUM(H117:O117) -> 0
C118: Lost Revenue in 2019 from 2012 programs | P118: =SUM(H118:O118) -> 0
C119: Lost Revenue in 2019 from 2013 programs | P119: =SUM(H119:O119) -> 0
C120: Lost Revenue in 2019 from 2014 programs | P120: =SUM(H120:O120) -> 0
C121: Lost Revenue in 2019 from 2015 programs | H121: ='5. 2015 LRAM'!H129*H116 ->  | I121: ='5. 2015 LRAM'!I129*I116 ->  | J121: ='5. 2015 LRAM'!J129*J116 ->  | K121: ='5. 2015 LRAM'!K129*K116 ->  | L121: ='5. 2015 LRAM'!L129*L116 ->  | M121: ='5. 2015 LRAM'!M129*M116 ->  | N121: ='5. 2015 LRAM'!N129*N116 ->  | P121: =SUM(H121:O121) -> 
C122: Lost Revenue in 2019 from 2016 programs | H122: ='5-b. 2016 LRAM'!H127*H116 ->  | I122: ='5-b. 2016 LRAM'!I127*I116 ->  | J122: ='5-b. 2016 LRAM'!J127*J116 ->  | K122: ='5-b. 2016 LRAM'!K127*K116 ->  | L122: ='5-b. 2016 LRAM'!L127*L116 ->  | M122: ='5-b. 2016 LRAM'!M127*M116 ->  | N122: ='5-b. 2016 LRAM'!N127*N116 -> 
C123: Lost Revenue in 2019 from 2017 programs | H123: ='5-c. 2017 LRAM'!H128*H116 ->  | I123: ='5-c. 2017 LRAM'!I128*I116 ->  | J123: ='5-c. 2017 LRAM'!J128*J116 ->  | K123: ='5-c. 2017 LRAM'!K128*K116 ->  | L123: ='5-c. 2017 LRAM'!L128*L116 ->  | M123: ='5-c. 2017 LRAM'!M128*M116 ->  | N123: ='5-c. 2017 LRAM'!N128*N116 ->  | P123: =SUM(H123:O123) -> 
C124: Lost Revenue in 2019 from 2018 programs | H124: ='5-d. 2018 LRAM'!H127*H116 ->  | I124: ='5-d. 2018 LRAM'!I127*I116 ->  | J124: ='5-d. 2018 LRAM'!J127*J116 ->  | K124: ='5-d. 2018 LRAM'!K127*K116 ->  | L124: ='5-d. 2018 LRAM'!L127*L116 ->  | M124: ='5-d. 2018 LRAM'!M127*M116 ->  | N124: ='5-d. 2018 LRAM'!N127*N116 ->  | P124: =SUM(H124:O124) -> 
C125: Lost Revenue in 2019 from 2019 programs | H125: =H111*H116 ->  | I125: =I111*I116 ->  | J125: =J112*J116 ->  | K125: =K112*K116 ->  | L125: =L112*L116 ->  | M125: =M112*M116 ->  | N125: =N111*N116 -> 
C126: Total Lost Revenue in 2019 | H126: =SUM(H117:H125) ->  | P126: =SUM(P117:P125) -> 
C128: 2019 Savings Persisting in 2020 | H128: =H111*'6. Persistence Rates'!$I$48 -> 0 | I128: =I111*'6. Persistence Rates'!$I$48 -> 0 | J128: =J112*'6. Persistence Rates'!$V$48 -> 0 | K128: =K112*'6. Persistence Rates'!$V$48 -> 0 | L128: =L112*'6. Persistence Rates'!$V$48 -> 0 | M128: =M112*'6. Persistence Rates'!$V$48 -> 0 | N128: =N111*'6. Persistence Rates'!$I$48 -> 0

Sheet 5-f. 2020 LRAM (hidden)
B2: 2020 Lost Revenues Work Form
C4: Instruction | E4: LDCs are only eligible to apply for lost revenues until they have rebased. Lost revenues for the period prior to rebasing should be included within the LDCs load forecast on a go forward basis.
E5: LDC to adjust the rate allocations by class (columns h to n). Please insert IESO verified savings for applicable programs (columns f to g).
E6: Adjustments will apply to the year that LRAM is claimed.
E7: This workbook contains links from Tab 3 (Distribution Rates) and Tab 5 (Persistence Rates).
C9: Legend | E9: User Inputs (Green)
E10: Auto Populated Cells (White)
B12: Table 11-f. 2018 LRAM Work Form
B13: # | C13: Initiative | D13: Results Status | E13: Months of Demand Savings | F13: Net Incremental Energy Savings (kWh) | G13: Net Incremental Peak Demand Savings (kW) | H13: Rate Allocation for LRAMVA
F14: 2015 kWh saved | G14: 2015 kW saved | H14: Residential | I14: General Service <50 kW | J14: General Service 50 - 999 kW | K14: General Service 1,000 - 4,999 kW | L14: Sentinel Lighting | M14: Street Lighting | N14: Unmetered Scattered Load | O14: Other | P14: Total
B15: 2011-2014+2015 Extension Legacy Framework Programs
B16: Residential Program
B17: 1 | C17: Coupon Initiative | D17: Verified | H17: 1 | P17: =SUM(H17:O17) -> 1
B18: 2 | C18: Bi-Annual Retailer Event Initiative | D18: Verified | H18: 1 | P18: =SUM(H18:O18) -> 1
B19: 3 | C19: Appliance Retirement Initiative | D19: Verified | H19: 1 | P19: 1
B20: 4 | C20: Appliance Exchange Initiative | D20: Verified | H20: 1 | P20: 1
B21: 5 | C21: HVAC Incentives Initaitive | D21: Verified | H21: 1 | P21: 1
B22: 6 | C22: Residential New Construction and Major Renovation Initiative | D22: Verified | H22: 1 | P22: 1
B23: Adjustments to 2020 results (if any) | D23: True-up | P23: 0
P24: 0
P25: 0
P26: 0
B27: Commercial & Institutional Program
B28: 7 | C28: Energy Audit Initiative | D28: Verified | E28: 12 | I28: 0.2 | J28: 0.5 | K28: 0.3 | P28: 1
B29: 8 | C29: Efficiency: Equipment Replacement Incentive Initiative | D29: Verified | E29: 12 | I29: 0.8 | J29: 0.2 | P29: 1
B30: 9 | C30: Direct Install Lighting and Water Heating Initiative | D30: Verified | E30: 12 | I30: 0.5 | J30: 0.5 | P30: 1
B31: 10 | C31: New Construction and Major Renovation Initiative | D31: Verified | E31: 12 | I31: 1 | P31: 1
B32: 11 | C32: Existing Building Commissioning Incentive Initiative | D32: Verified | E32: 3 | J32: 1 | P32: 1
B33: Adjustments to 2020 results (if any) | D33: True-up | P33: 0
P34: 0
P35: 0
P36: 0
B37: Industrial Program
B38: 12 | C38: Process and Systems Upgrades Initiatives - Project Incentive Initiative | D38: Verified | E38: 12 | J38: 1 | P38: 1
B39: 13 | C39: Process and Systems Upgrades Initiatives - Monitoring and Targeting Initiative | D39: Verified | E39: 12 | J39: 1 | P39: 1
B40: 14 | C40: Process and Systems Upgrades Initiatives - Energy Manager Initiative | D40: Verified | E40: 12 | J40: 1 | P40: 1
B41: Adjustments to 2020 results (if any) | D41: True-up | P41: 0
P42: 0
P43: 0
P44: 0
B45: Low Income Program
B46: 15 | C46: Low Income Initiative | D46: Verified | H46: 1 | P46: 1
B47: Adjustments to 2020 results (if any) | D47: True-up | P47: 0
P48: 0
P50: 0
B51: Pilots
B52: 16 | C52: Loblaws Pilot | D52: Verified | P52: 0
B53: 17 | C53: Social Benchmarking Pliot | D53: Verified | P53: 0
B54: 18 | C54: Conservation Fund Pilot - SEG | D54: Verified | P54: 0
B55: 19 | C55: Conservation Fund Pilot - EnerNOC | D55: Verified | P55: 0
B56: Adjustments to 2020 results (if any) | D56: True-up | P56: 0
B60: 2015-2020 Conservation First Framework Programs
B62: Residential Province-Wide Programs
B63: 21 | C63: Save on Energy Coupon Program | D63: Verified | H63: 1 | P63: 1
B64: 22 | C64: Save on Energy Heating and Cooling Program | D64: Verified | H64: 1 | P64: 1
B65: 23 | C65: Save on Energy New Construction Program | D65: Verified | H65: 1 | P65: 1
B66: 24 | C66: Save on Energy Home Assistance Program | D66: Verified | H66: 1 | P66: 1
B67: Adjustments to 2020 results (if any) | D67: True-up
P70: 0
B71: Non-Residential Province-Wide Programs
B72: 25 | C72: Save on Energy Audit Funding Program | D72: Verified | I72: 1 | P72: 1
B73: 26 | C73: Save on Energy Retrofit Program | D73: Verified | I73: 1 | P73: 1
B74: 27 | C74: Save on Energy Small Business Lighting Program | D74: Verified | I74: 0.8 | J74: 0.2 | P74: 1
B75: 28 | C75: Save on Energy High Performance New Construction Program | D75: Verified | P75: 0
B76: 29 | C76: Save on Energy Existing Building Commissioning Program | D76: Verified | P76: 0
B77: 30 | C77: Save on Energy Process & Systems Upgrades Program | D77: Verified | P77: 0
B78: 31 | C78: Save on Energy Monitoring & Targeting Program | D78: Verified | P78: 0
B79: 32 | C79: Save on Energy Energy Manager Program | D79: Verified | P79: 0
B80: Adjustments to 2020 results (if any) | D80: True-up
P83: =SUM(H83:O83) -> 0
B84: Local & Regional Programs
B85: 33 | C85: Business Refrigeration Local Program | D85: Verified | P85: 0
B86: 34 | C86: First Nation Conservation Local Program | D86: Verified | P86: 0
B87: 35 | C87: Social Benchmarking Local Program | D87: Verified | P87: 0
B88: Adjustments to 2020 results (if any) | D88: True-up
P91: 0
B92: Pilot Programs
B93: 36 | C93: Enersource Hydro Mississauga Inc. - Performance-Based Conservation Pilot Program - Conservation Fund | D93: Verified | P93: 0
B94: 37 | C94: EnWin Utilities Ltd. - Building Optimization Pilot | D94: Verified | P94: 0
B95: 38 | C95: EnWin Utilities Ltd. - Re-Invest Pilot | D95: Verified | P95: 0
B96: 39 | C96: Horizon Utilities Corporation - ECM Furnace Motor Pilot | D96: Verified | P96: 0
B97: 40 | C97: Horizon Utilities Corporation - Social Benchmarking Pilot | D97: Verified | P97: 0
B98: 41 | C98: Hydro Ottawa Limited - Conservation Voltage Regulation (CVR) Leveraging AMI Data Pilot | D98: Verified | P98: 0
B99: 42 | C99: Hydro Ottawa Limited - Residential Demand Response Wi-Fi Thermostat Pilot | D99: Verified | P99: 0
B100: 43 | C100: Kitchener-Wilmot Hydro Inc. - Pilot - DCKV | D100: Verified | P100: 0
B101: 44 | C101: Niagara-on-the-Lake Hydro Inc. - Direct Install Energy Efficiency Measures for the Agricultural Sector | D101: Verified | P101: 0
B102: 45 | C102: Oakville Hydro Electricity Distribution Inc. - Direct Install - Hydronic | D102: Verified | P102: 0
B103: 46 | C103: Oakville Hydro Electricity Distribution Inc. - Direct Install - RTU Controls | D103: Verified | P103: 0
B104: 47 | C104: Toronto Hydro-Electric System Limited - Direct Install - Hydronic (Pilot Savings) | D104: Verified | P104: 0
B105: 48 | C105: Toronto Hydro-Electric System Limited - Direct Install - RTU Controls (Pilot Savings) | D105: Verified | P105: 0
B106: 49 | C106: Toronto Hydro-Electric System Limited - PFP - Large (Pilot Savings) | D106: Verified | P106: 0
B107: Adjustments to 2020 results (if any) | D107: True-up
C111: Total kWh | H111: =SUM(F17*H17,F18*H18,F19*H19,F20*H20,F21*H21,F22*H22,F46*H46,F63*H63,F64*H64,F65*H65,F66*H66) -> 0 | I111: =SUM(F28*I28,F29*I29,F30*I30,F31*I31,F32*I32,F72*I72,F73*I73,F74*I74,F75*I75,F76*I76,F77*I77,F78*I78,F79*I79,F85*I85,F86*I86,F87*I87) -> 0 | P111: =SUM(H111:O111) -> 0
C112: Total GS > 50 kW | J112: =SUM(E28*G28*J28,E29*G29*J29,E30*G30*J30,E31*G31,J31*E32*G32*J32,E38*G38*J38,E39*G39*J39,E40*G40*J40) -> 0 | K112: =SUM(E28*G28*K28,E29*G29*K29,E30*G30*K30,E31*G31*K31,E32*G32*K32,E38*G38*K38,E39*G39*K39,E40*G40*K40) -> 0 | P112: =SUM(H112:O112) -> 0
C113: Total GS > 50 kW excluding Building Commissioning | J113: =J112-(E32*G32*J32) -> 0 | K113: =K112-(E32*G32*K32) -> 0
C116: Distribution Rate in 2020 | H116: ='3. Distribution Rates'!#REF! ->  | I116: ='3. Distribution Rates'!#REF! ->  | J116: ='3. Distribution Rates'!#REF! ->  | K116: ='3. Distribution Rates'!#REF! ->  | L116: ='3. Distribution Rates'!#REF! ->  | M116: ='3. Distribution Rates'!#REF! ->  | N116: ='3. Distribution Rates'!#REF! -> 
C117: Lost Revenue in 2020 from 2011 programs | P117: =SUM(H117:O117) -> 0
C118: Lost Revenue in 2020 from 2012 programs | P118: =SUM(H118:O118) -> 0
C119: Lost Revenue in 2020 from 2013 programs | P119: =SUM(H119:O119) -> 0
C120: Lost Revenue in 2020 from 2014 programs | P120: =SUM(H120:O120) -> 0
C121: Lost Revenue in 2020 from 2015 programs | H121: ='5. 2015 LRAM'!H130*H116 ->  | I121: ='5. 2015 LRAM'!I130*I116 ->  | J121: ='5. 2015 LRAM'!J130*J116 ->  | K121: ='5. 2015 LRAM'!K130*K116 ->  | L121: ='5. 2015 LRAM'!L130*L116 ->  | M121: ='5. 2015 LRAM'!M130*M116 ->  | N121: ='5. 2015 LRAM'!N130*N116 ->  | P121: =SUM(H121:O121) -> 
C122: Lost Revenue in 2020 from 2016 programs | H122: ='5-b. 2016 LRAM'!H128*H116 ->  | I122: ='5-b. 2016 LRAM'!I128*I116 ->  | J122: ='5-b. 2016 LRAM'!J128*J116 ->  | K122: ='5-b. 2016 LRAM'!K128*K116 ->  | L122: ='5-b. 2016 LRAM'!L128*L116 ->  | M122: ='5-b. 2016 LRAM'!M128*M116 ->  | N122: ='5-b. 2016 LRAM'!N128*N116 -> 
C123: Lost Revenue in 2020 from 2017 programs | H123: ='5-c. 2017 LRAM'!H129*H116 ->  | I123: ='5-c. 2017 LRAM'!I129*I116 ->  | J123: ='5-c. 2017 LRAM'!J129*J116 ->  | K123: ='5-c. 2017 LRAM'!K129*K116 ->  | L123: ='5-c. 2017 LRAM'!L129*L116 ->  | M123: ='5-c. 2017 LRAM'!M129*M116 ->  | N123: ='5-c. 2017 LRAM'!N129*N116 ->  | P123: =SUM(H123:O123) -> 
C124: Lost Revenue in 2020 from 2018 programs | H124: ='5-d. 2018 LRAM'!H128*H116 ->  | I124: ='5-d. 2018 LRAM'!I128*I116 ->  | J124: ='5-d. 2018 LRAM'!J128*J116 ->  | K124: ='5-d. 2018 LRAM'!K128*K116 ->  | L124: ='5-d. 2018 LRAM'!L128*L116 ->  | M124: ='5-d. 2018 LRAM'!M128*M116 ->  | N124: ='5-d. 2018 LRAM'!N128*N116 ->  | P124: =SUM(H124:O124) -> 
C125: Lost Revenue in 2020 from 2019 programs | H125: ='5-e. 2019 LRAM'!H128*H116 ->  | I125: ='5-e. 2019 LRAM'!I128*I116 ->  | J125: ='5-e. 2019 LRAM'!J128*J116 ->  | K125: ='5-e. 2019 LRAM'!K128*K116 ->  | L125: ='5-e. 2019 LRAM'!L128*L116 ->  | M125: ='5-e. 2019 LRAM'!M128*M116 ->  | N125: ='5-e. 2019 LRAM'!N128*N116 -> 
C126: Lost Revenue in 2020 from 2020 programs | H126: =H111*H116 ->  | I126: =I111*I116 ->  | J126: =J112*J116 ->  | K126: =K112*K116 ->  | L126: =L112*L116 ->  | M126: =M112*M116 ->  | N126: =N111*N116 -> 
C127: Total Lost Revenue in 2020 | H127: =SUM(H117:H126) ->  | P127: =SUM(P117:P126) -> 

Sheet 6. Persistence Rates
C2: Persistence Rates
D5: Instruction | F5: To apply persistence factors to previous year's savings, this can be determined by taking the ratio of verified savings to the savings that occurred in the first year the program began. Please update the summary tables (highlighted blue boxes) with the verified results provided by the IESO. For 2011-2014 programs, these tables refer to Tables 4 and 5 (Summary Achievement Against CDM Targets). The verified results include adjustments. In the event that an LDC uses initiative level persistence, the LDC must provide these calculations in a new table below those provided here.
F6: The persistence factors will autopopulate on the LRAM forms.
F8: This form may need to be updated with IESO data on persistence of 2011-2014 programs into 2015-2020 term.
D10: Legend | F10: User Inputs (Green)
F11: Auto Populated Cells (White)
C14: Table 12. Determination of 2011-2014 Persistence Rates
C16: Implementation Period | D16: Annual Net Energy Savings (GWh) | O16: Implementation Period | P16: Annual Net Peak Savings (MW)
D17: 2011 | E17: 2012 | F17: 2013 | G17: 2014 | H17: 2015 | I17: 2016 | J17: 2017 | K17: 2018 | L17: 2019 | M17: 2020 | P17: 2011 | Q17: 2012 | R17: 2013 | S17: 2014 | T17: 2015 | U17: 2016 | V17: 2017 | W17: 2018 | X17: 2019 | Y17: 2020
C18: 2011 - Verified | D18: 21.1 | E18: 21 | F18: 21 | G18: 20.9 | H18: 20.9 | I18: 20.9 | J18: 20.9 | K18: 20.9 | L18: 20.9 | M18: 20.9 | O18: 2011 - Verified | P18: 6.7 | Q18: 4.1 | R18: 4.1 | S18: 4 | T18: 4 | U18: 4 | V18: 4 | W18: 4 | X18: 4 | Y18: 4
C19: 2012 - Verified | D19: 0.3 | E19: 14.4 | F19: 14.1 | G19: 13.9 | H19: 13.9 | I19: 13.9 | J19: 13.9 | K19: 13.9 | L19: 13.9 | M19: 13.9 | O19: 2012 - Verified | Q19: 4.7 | R19: 3.1 | S19: 3.1 | T19: 3.1 | U19: 3.1 | V19: 3.1 | W19: 3.1 | X19: 3.1 | Y19: 3.1
C20: 2013 - Verified | E20: 1.5 | F20: 15.8 | G20: 13.4 | H20: 13.4 | I20: 13.4 | J20: 13.4 | K20: 13.4 | L20: 13.4 | M20: 13.4 | O20: 2013 - Verified | Q20: 0.2 | R20: 5.9 | S20: 3.1 | T20: 3.1 | U20: 3.1 | V20: 3.1 | W20: 3.1 | X20: 3.1 | Y20: 3.1
C21: 2014 - Verified | E21: 1.2 | F21: 6.39 | G21: 29.1 | H21: 29.1 | I21: 29.1 | J21: 29.1 | K21: 29.1 | L21: 29.1 | M21: 29.1 | O21: 2014 - Verified | Q21: 0.2 | R21: 1.2 | S21: 9.1 | T21: 9.1 | U21: 9.1 | V21: 9.1 | W21: 9.1 | X21: 9.1 | Y21: 9.1
C23: Implementation Period | D23: Persistence Factor (GWh) | O23: Implementation Period | P23: Persistence Factor (MW)
D24: 2011 | E24: 2012 | F24: 2013 | G24: 2014 | H24: 2015 | I24: 2016 | J24: 2017 | K24: 2018 | L24: 2019 | M24: 2020 | P24: 2011 | Q24: 2012 | R24: 2013 | S24: 2014 | T24: 2015 | U24: 2016 | V24: 2017 | W24: 2018 | X24: 2019 | Y24: 2020
C25: 2011 | E25: =E18/$D$18 -> 0.9952606635 | F25: =F18/$D$18 -> 0.9952606635 | G25: 0.990521327 | H25: 0.990521327 | I25: 0.990521327 | J25: 0.990521327 | K25: =K18/$D$18 -> 0.990521327 | L25: 0.990521327 | M25: 0.990521327 | O25: 2011 | Q25: =Q18/$P$18 -> 0.6119402985 | R25: =R18/$P$18 -> 0.6119402985 | S25: =S18/$P$18 -> 0.5970149254 | T25: =T18/$P$18 -> 0.5970149254 | U25: =U18/$P$18 -> 0.5970149254 | V25: 0.5970149254 | W25: =W18/$P$18 -> 0.5970149254 | X25: 0.5970149254 | Y25: =Y18/$P$18 -> 0.5970149254
C26: 2012 | F26: =F19/$E$19 -> 0.9791666667 | G26: =G19/$E$19 -> 0.9652777778 | H26: =H19/$E$19 -> 0.9652777778 | I26: =I19/$E$19 -> 0.9652777778 | J26: 0.9652777778 | K26: =K19/$E$19 -> 0.9652777778 | L26: =L19/$E$19 -> 0.9652777778 | M26: =M19/$E$19 -> 0.9652777778 | O26: 2012 | R26: =R19/$Q$19 -> 0.6595744681 | S26: =S19/$Q$19 -> 0.6595744681 | T26: =T19/$Q$19 -> 0.6595744681 | U26: =U19/$Q$19 -> 0.6595744681 | V26: 0.6595744681 | W26: =W19/$Q$19 -> 0.6595744681 | X26: 0.6595744681 | Y26: =Y19/$Q$19 -> 0.6595744681
C27: 2013 | G27: =G20/$F$20 -> 0.8481012658 | H27: =H20/$F$20 -> 0.8481012658 | I27: =I20/$F$20 -> 0.8481012658 | J27: 0.8481012658 | K27: 0.8481012658 | L27: 0.8481012658 | M27: 0.8481012658 | O27: 2013 | S27: =S20/$R$20 -> 0.5254237288 | T27: =T20/$R$20 -> 0.5254237288 | U27: 0.5254237288 | V27: 0.5254237288 | W27: 0.5254237288 | X27: 0.5254237288 | Y27: 0.5254237288
C28: 2014 | H28: =H21/$G$21 -> 1 | I28: 1 | J28: 1 | K28: 1 | L28: 1 | M28: 1 | O28: 2014 | T28: =T21/$S$21 -> 1 | U28: =U21/$S$21 -> 1 | V28: 1 | W28: 1 | X28: 1 | Y28: =Y21/$S$21 -> 1
C31: Table 13. Determination of 2015-2020 Persistence Rates
C33: Implementation Period | D33: Annual Net Energy Savings (GWh) | O33: Implementation Period | P33: Annual Net Peak Savings (MW)
D34: 2015 | E34: 2016 | F34: 2017 | G34: 2018 | H34: 2019 | I34: 2020 | Q34: 2015 | R34: 2016 | S34: 2017 | T34: 2018 | U34: 2019 | V34: 2020
C35: 2015 - Verified | D35: 28.993066 | E35: 30.50278 | F35: 29.918415 | G35: 29.750807 | H35: 29.383828 | I35: 28.534593 | O35: 2015 - Verified | Q35: 5.433 | R35: 4.908 | S35: 5.575 | T35: 5.575 | U35: 5.575 | V35: 5.575
C36: 2016 - Verified | E36: 33.93227 | F36: =E35/D35*E36 -> 35.69917603 | G36: =F35/E35*F36 -> 35.01525971 | H36: 34.81909833 | I36: 34.38960148 | O36: 2016 - Verified | R36: 4.908 | S36: 5.575 | T36: 5.575 | U36: 5.575 | V36: 5.575
C37: 2017 - Verified | F37: 34.142384 | G37: =F36/E36*F37 -> 35.92023099 | H37: =G36/F36*G37 -> 35.23207975 | I37: 35.03470371 | O37: 2017 - Verified | S37: 5.575 | T37: 5.575 | U37: 5.575 | V37: 5.575
C38: 2018 - Verified | G38: 34.142384 | H38: =G37/F37*G38 -> 35.92023099 | I38: =H37/G37*H38 -> 35.23207975 | O38: 2018 - Verified | T38: 5.575 | U38: 5.575 | V38: 5.575
C39: 2019 - Verified | H39: 34.142384 | I39: =H38/G38*H39 -> 35.92023099 | O39: 2019 - Verified | U39: 5.575 | V39: 5.575
C40: 2020 - Verified | I40: 43.741243 | O40: 2020 - Verified | V40: 5.575
C42: Implementation Period | D42: Persistence Factor (GWh) | O42: Implementation Period | P42: Persistence Factor (MW)
D43: 2015 | E43: 2016 | F43: 2017 | G43: 2018 | H43: 2019 | I43: 2020 | Q43: 2015 | R43: 2016 | S43: 2017 | T43: 2018 | U43: 2019 | V43: 2020
C44: 2015 - Verified | E44: =E35/$D$35 -> 1.052071554 | F44: =F35/$D$35 -> 1.031916217 | G44: =G35/$D$35 -> 1.026135249 | H44: =H35/$D$35 -> 1.013477774 | I44: =I35/$D$35 -> 0.9841868052 | O44: 2015 - Verified | R44: =R35/$Q$35 -> 0.9033683048 | S44: =S35/$Q$35 -> 1.026136573 | T44: =T35/$Q$35 -> 1.026136573 | U44: =U35/$Q$35 -> 1.026136573 | V44: =V35/$Q$35 -> 1.026136573
C45: 2016 - Verified | F45: =F36/$E$36 -> 1.052071554 | G45: =G36/$E$36 -> 1.031916217 | H45: =H36/$E$36 -> 1.026135249 | I45: =I36/$E$36 -> 1.013477774 | O45: 2016 - Verified | S45: =S36/$R$36 -> 1.13590057 | T45: =T36/$R$36 -> 1.13590057 | U45: =U36/$R$36 -> 1.13590057 | V45: =V36/$R$36 -> 1.13590057
C46: 2017 - Verified | G46: =G37/$F$37 -> 1.052071554 | H46: =H37/$F$37 -> 1.031916217 | I46: =I37/$F$37 -> 1.026135249 | O46: 2017 - Verified | T46: =T37/$S$37 -> 1 | U46: =U37/$S$37 -> 1 | V46: =V37/$S$37 -> 1
C47: 2018 - Verified | H47: =H38/$G$38 -> 1.052071554 | I47: =I38/$G$38 -> 1.031916217 | O47: 2018 - Verified | U47: =U38/$T$38 -> 1 | V47: =V38/$T$38 -> 1
C48: 2019 - Verified | I48: =I39/H39 -> 1.052071554 | O48: 2019 - Verified | V48: =V39/U39 -> 1

Sheet 7. Carrying Charges
B3: Carrying Charges by Rate Class
C5: Instruction | D5: Please update the carrying charges in Table 14. The interest amounts per year will autopopulate in the LRAMVA Summary Table in Tab 1.
D6: LDC to adjust the rate allocations by class (columns h to n). Please insert IESO verified savings for applicable programs (columns f to g).
D7: Please note that the carrying charges below pertain to the amount credited or debited to ratepayers based on how much was originally collected from the interest on the load forecast. As the amounts shown are running totals, please clear the yearly amounts once the LRAM claims are approved in order to cancel prior year interest collections.
C9: Legend | D9: User Inputs (Green)
D10: Auto Populated Cells (White)
B13: Table 14: Prescribed Interest Rates | E13: Table 15: Calculation of Carrying Costs by Rate Class
B15: Quarter | C15: Approved Deferral and Variance Accounts | E15: Month | F15: Interest for CDM year | G15: Quarter | H15: Monthly Rate | I15: ='1. LRAMVA Summary'!C21 -> Residential | J15: ='1. LRAMVA Summary'!D21 -> General Service <50 kW | K15: ='1. LRAMVA Summary'!E21 -> General Service 50 - 4,999 kW | L15: ='1. LRAMVA Summary'!F21 -> Co-Generation 1,000 - 4,999 kW | M15: ='1. LRAMVA Summary'!G21 -> Sentinel Lighting | N15: ='1. LRAMVA Summary'!H21 -> Street Lighting | O15: ='1. LRAMVA Summary'!I21 -> Unmetered Scattered Load | P15: ='1. LRAMVA Summary'!J21 -> Large User | Q15: ='1. LRAMVA Summary'!K21 -> Total
B16: 2011 Q1 | C16: 0.0147 | E16: 2011-01-01 | F16: 2011 | G16: Q1 | H16: =C$16/12 -> 0.001225 | I16: =SUM('1. LRAMVA Summary'!C$22:C$23)*(MONTH($E16)-1)/12*$H16 -> 0 | J16: =SUM('1. LRAMVA Summary'!D$22:D$23)*(MONTH($E16)-1)/12*$H16 -> 0 | K16: =SUM('1. LRAMVA Summary'!E$22:E$23)*(MONTH($E16)-1)/12*$H16 -> 0 | L16: =SUM('1. LRAMVA Summary'!F$22:F$23)*(MONTH($E16)-1)/12*$H16 -> 0 | M16: =SUM('1. LRAMVA Summary'!G$22:G$23)*(MONTH($E16)-1)/12*$H16 -> 0 | N16: =SUM('1. LRAMVA Summary'!H$22:H$23)*(MONTH($E16)-1)/12*$H16 -> 0 | O16: =SUM('1. LRAMVA Summary'!I$22:I$23)*(MONTH($E16)-1)/12*$H16 -> 0 | P16: =SUM('1. LRAMVA Summary'!J$22:J$23)*(MONTH($E16)-1)/12*$H16 -> 0 | Q16: =SUM(I16:P16) -> 0
B17: 2011 Q2 | C17: 0.0147 | E17: 2011-02-01 | F17: 2011 | G17: Q1 | H17: 0.001225 | I17: =SUM('1. LRAMVA Summary'!C$22:C$23)*(MONTH($E17)-1)/12*$H17 -> 5.771346353 | J17: =SUM('1. LRAMVA Summary'!D$22:D$23)*(MONTH($E17)-1)/12*$H17 -> 1.632756139 | K17: =SUM('1. LRAMVA Summary'!E$22:E$23)*(MONTH($E17)-1)/12*$H17 -> 4.888366371 | L17: =SUM('1. LRAMVA Summary'!F$22:F$23)*(MONTH($E17)-1)/12*$H17 -> 0 | M17: =SUM('1. LRAMVA Summary'!G$22:G$23)*(MONTH($E17)-1)/12*$H17 -> 0 | N17: =SUM('1. LRAMVA Summary'!H$22:H$23)*(MONTH($E17)-1)/12*$H17 -> 0 | O17: =SUM('1. LRAMVA Summary'!I$22:I$23)*(MONTH($E17)-1)/12*$H17 -> 0 | P17: =SUM('1. LRAMVA Summary'!J$22:J$23)*(MONTH($E17)-1)/12*$H17 -> 0 | Q17: =SUM(I17:P17) -> 12.29246886
B18: 2011 Q3 | C18: 0.0147 | E18: 2011-03-01 | F18: 2011 | G18: Q1 | H18: 0.001225 | I18: =SUM('1. LRAMVA Summary'!C$22:C$23)*(MONTH($E18)-1)/12*$H18 -> 11.54269271 | J18: =SUM('1. LRAMVA Summary'!D$22:D$23)*(MONTH($E18)-1)/12*$H18 -> 3.265512278 | K18: =SUM('1. LRAMVA Summary'!E$22:E$23)*(MONTH($E18)-1)/12*$H18 -> 9.776732742 | L18: =SUM('1. LRAMVA Summary'!F$22:F$23)*(MONTH($E18)-1)/12*$H18 -> 0 | M18: =SUM('1. LRAMVA Summary'!G$22:G$23)*(MONTH($E18)-1)/12*$H18 -> 0 | N18: =SUM('1. LRAMVA Summary'!H$22:H$23)*(MONTH($E18)-1)/12*$H18 -> 0 | O18: =SUM('1. LRAMVA Summary'!I$22:I$23)*(MONTH($E18)-1)/12*$H18 -> 0 | P18: =SUM('1. LRAMVA Summary'!J$22:J$23)*(MONTH($E18)-1)/12*$H18 -> 0 | Q18: =SUM(I18:P18) -> 24.58493773
B19: 2011 Q4 | C19: 0.0147 | E19: 2011-04-01 | F19: 2011 | G19: Q2 | H19: =C$17/12 -> 0.001225 | I19: =SUM('1. LRAMVA Summary'!C$22:C$23)*(MONTH($E19)-1)/12*$H19 -> 17.31403906 | J19: =SUM('1. LRAMVA Summary'!D$22:D$23)*(MONTH($E19)-1)/12*$H19 -> 4.898268417 | K19: =SUM('1. LRAMVA Summary'!E$22:E$23)*(MONTH($E19)-1)/12*$H19 -> 14.66509911 | L19: =SUM('1. LRAMVA Summary'!F$22:F$23)*(MONTH($E19)-1)/12*$H19 -> 0 | M19: =SUM('1. LRAMVA Summary'!G$22:G$23)*(MONTH($E19)-1)/12*$H19 -> 0 | N19: =SUM('1. LRAMVA Summary'!H$22:H$23)*(MONTH($E19)-1)/12*$H19 -> 0 | O19: =SUM('1. LRAMVA Summary'!I$22:I$23)*(MONTH($E19)-1)/12*$H19 -> 0 | P19: =SUM('1. LRAMVA Summary'!J$22:J$23)*(MONTH($E19)-1)/12*$H19 -> 0 | Q19: 36.87740659
B20: 2012 Q1 | C20: 0.0147 | E20: 2011-05-01 | F20: 2011 | G20: Q2 | H20: =C$17/12 -> 0.001225 | I20: =SUM('1. LRAMVA Summary'!C$22:C$23)*(MONTH($E20)-1)/12*$H20 -> 23.08538541 | J20: =SUM('1. LRAMVA Summary'!D$22:D$23)*(MONTH($E20)-1)/12*$H20 -> 6.531024556 | K20: =SUM('1. LRAMVA Summary'!E$22:E$23)*(MONTH($E20)-1)/12*$H20 -> 19.55346548 | L20: =SUM('1. LRAMVA Summary'!F$22:F$23)*(MONTH($E20)-1)/12*$H20 -> 0 | M20: =SUM('1. LRAMVA Summary'!G$22:G$23)*(MONTH($E20)-1)/12*$H20 -> 0 | N20: =SUM('1. LRAMVA Summary'!H$22:H$23)*(MONTH($E20)-1)/12*$H20 -> 0 | O20: =SUM('1. LRAMVA Summary'!I$22:I$23)*(MONTH($E20)-1)/12*$H20 -> 0 | P20: =SUM('1. LRAMVA Summary'!J$22:J$23)*(MONTH($E20)-1)/12*$H20 -> 0 | Q20: 49.16987545
B21: 2012 Q2 | C21: 0.0147 | E21: 2011-06-01 | F21: 2011 | G21: Q2 | H21: 0.001225 | I21: =SUM('1. LRAMVA Summary'!C$22:C$23)*(MONTH($E21)-1)/12*$H21 -> 28.85673177 | J21: =SUM('1. LRAMVA Summary'!D$22:D$23)*(MONTH($E21)-1)/12*$H21 -> 8.163780696 | K21: =SUM('1. LRAMVA Summary'!E$22:E$23)*(MONTH($E21)-1)/12*$H21 -> 24.44183186 | L21: =SUM('1. LRAMVA Summary'!F$22:F$23)*(MONTH($E21)-1)/12*$H21 -> 0 | M21: =SUM('1. LRAMVA Summary'!G$22:G$23)*(MONTH($E21)-1)/12*$H21 -> 0 | N21: =SUM('1. LRAMVA Summary'!H$22:H$23)*(MONTH($E21)-1)/12*$H21 -> 0 | O21: =SUM('1. LRAMVA Summary'!I$22:I$23)*(MONTH($E21)-1)/12*$H21 -> 0 | P21: =SUM('1. LRAMVA Summary'!J$22:J$23)*(MONTH($E21)-1)/12*$H21 -> 0 | Q21: 61.46234432
B22: 2012 Q3 | C22: 0.0147 | E22: 2011-07-01 | F22: 2011 | G22: Q3 | H22: =C$18/12 -> 0.001225 | I22: =SUM('1. LRAMVA Summary'!C$22:C$23)*(MONTH($E22)-1)/12*$H22 -> 34.62807812 | J22: =SUM('1. LRAMVA Summary'!D$22:D$23)*(MONTH($E22)-1)/12*$H22 -> 9.796536835 | K22: =SUM('1. LRAMVA Summary'!E$22:E$23)*(MONTH($E22)-1)/12*$H22 -> 29.33019823 | L22: =SUM('1. LRAMVA Summary'!F$22:F$23)*(MONTH($E22)-1)/12*$H22 -> 0 | M22: =SUM('1. LRAMVA Summary'!G$22:G$23)*(MONTH($E22)-1)/12*$H22 -> 0 | N22: =SUM('1. LRAMVA Summary'!H$22:H$23)*(MONTH($E22)-1)/12*$H22 -> 0 | O22: =SUM('1. LRAMVA Summary'!I$22:I$23)*(MONTH($E22)-1)/12*$H22 -> 0 | P22: =SUM('1. LRAMVA Summary'!J$22:J$23)*(MONTH($E22)-1)/12*$H22 -> 0 | Q22: 73.75481318
B23: 2012 Q4 | C23: 0.0147 | E23: 2011-08-01 | F23: 2011 | G23: Q3 | H23: =C$18/12 -> 0.001225 | I23: =SUM('1. LRAMVA Summary'!C$22:C$23)*(MONTH($E23)-1)/12*$H23 -> 40.39942447 | J23: =SUM('1. LRAMVA Summary'!D$22:D$23)*(MONTH($E23)-1)/12*$H23 -> 11.42929297 | K23: =SUM('1. LRAMVA Summary'!E$22:E$23)*(MONTH($E23)-1)/12*$H23 -> 34.2185646 | L23: =SUM('1. LRAMVA Summary'!F$22:F$23)*(MONTH($E23)-1)/12*$H23 -> 0 | M23: =SUM('1. LRAMVA Summary'!G$22:G$23)*(MONTH($E23)-1)/12*$H23 -> 0 | N23: =SUM('1. LRAMVA Summary'!H$22:H$23)*(MONTH($E23)-1)/12*$H23 -> 0 | O23: =SUM('1. LRAMVA Summary'!I$22:I$23)*(MONTH($E23)-1)/12*$H23 -> 0 | P23: =SUM('1. LRAMVA Summary'!J$22:J$23)*(MONTH($E23)-1)/12*$H23 -> 0 | Q23: 86.04728204
B24: 2013 Q1 | C24: 0.0147 | E24: 2011-09-01 | F24: 2011 | G24: Q3 | H24: 0.001225 | I24: =SUM('1. LRAMVA Summary'!C$22:C$23)*(MONTH($E24)-1)/12*$H24 -> 46.17077083 | J24: =SUM('1. LRAMVA Summary'!D$22:D$23)*(MONTH($E24)-1)/12*$H24 -> 13.06204911 | K24: =SUM('1. LRAMVA Summary'!E$22:E$23)*(MONTH($E24)-1)/12*$H24 -> 39.10693097 | L24: =SUM('1. LRAMVA Summary'!F$22:F$23)*(MONTH($E24)-1)/12*$H24 -> 0 | M24: =SUM('1. LRAMVA Summary'!G$22:G$23)*(MONTH($E24)-1)/12*$H24 -> 0 | N24: =SUM('1. LRAMVA Summary'!H$22:H$23)*(MONTH($E24)-1)/12*$H24 -> 0 | O24: =SUM('1. LRAMVA Summary'!I$22:I$23)*(MONTH($E24)-1)/12*$H24 -> 0 | P24: =SUM('1. LRAMVA Summary'!J$22:J$23)*(MONTH($E24)-1)/12*$H24 -> 0 | Q24: 98.33975091
B25: 2013 Q2 | C25: 0.0147 | E25: 2011-10-01 | F25: 2011 | G25: Q4 | H25: =C$19/12 -> 0.001225 | I25: =SUM('1. LRAMVA Summary'!C$22:C$23)*(MONTH($E25)-1)/12*$H25 -> 51.94211718 | J25: =SUM('1. LRAMVA Summary'!D$22:D$23)*(MONTH($E25)-1)/12*$H25 -> 14.69480525 | K25: =SUM('1. LRAMVA Summary'!E$22:E$23)*(MONTH($E25)-1)/12*$H25 -> 43.99529734 | L25: =SUM('1. LRAMVA Summary'!F$22:F$23)*(MONTH($E25)-1)/12*$H25 -> 0 | M25: =SUM('1. LRAMVA Summary'!G$22:G$23)*(MONTH($E25)-1)/12*$H25 -> 0 | N25: =SUM('1. LRAMVA Summary'!H$22:H$23)*(MONTH($E25)-1)/12*$H25 -> 0 | O25: =SUM('1. LRAMVA Summary'!I$22:I$23)*(MONTH($E25)-1)/12*$H25 -> 0 | P25: =SUM('1. LRAMVA Summary'!J$22:J$23)*(MONTH($E25)-1)/12*$H25 -> 0 | Q25: 110.6322198
B26: 2013 Q3 | C26: 0.0147 | E26: 2011-11-01 | F26: 2011 | G26: Q4 | H26: =C$19/12 -> 0.001225 | I26: =SUM('1. LRAMVA Summary'!C$22:C$23)*(MONTH($E26)-1)/12*$H26 -> 57.71346353 | J26: =SUM('1. LRAMVA Summary'!D$22:D$23)*(MONTH($E26)-1)/12*$H26 -> 16.32756139 | K26: =SUM('1. LRAMVA Summary'!E$22:E$23)*(MONTH($E26)-1)/12*$H26 -> 48.88366371 | L26: =SUM('1. LRAMVA Summary'!F$22:F$23)*(MONTH($E26)-1)/12*$H26 -> 0 | M26: =SUM('1. LRAMVA Summary'!G$22:G$23)*(MONTH($E26)-1)/12*$H26 -> 0 | N26: =SUM('1. LRAMVA Summary'!H$22:H$23)*(MONTH($E26)-1)/12*$H26 -> 0 | O26: =SUM('1. LRAMVA Summary'!I$22:I$23)*(MONTH($E26)-1)/12*$H26 -> 0 | P26: =SUM('1. LRAMVA Summary'!J$22:J$23)*(MONTH($E26)-1)/12*$H26 -> 0 | Q26: 122.9246886
B27: 2013 Q4 | C27: 0.0147 | E27: 2011-12-01 | F27: 2011 | G27: Q4 | H27: 0.001225 | I27: =SUM('1. LRAMVA Summary'!C$22:C$23)*(MONTH($E27)-1)/12*$H27 -> 63.48480989 | J27: =SUM('1. LRAMVA Summary'!D$22:D$23)*(MONTH($E27)-1)/12*$H27 -> 17.96031753 | K27: =SUM('1. LRAMVA Summary'!E$22:E$23)*(MONTH($E27)-1)/12*$H27 -> 53.77203008 | L27: =SUM('1. LRAMVA Summary'!F$22:F$23)*(MONTH($E27)-1)/12*$H27 -> 0 | M27: =SUM('1. LRAMVA Summary'!G$22:G$23)*(MONTH($E27)-1)/12*$H27 -> 0 | N27: =SUM('1. LRAMVA Summary'!H$22:H$23)*(MONTH($E27)-1)/12*$H27 -> 0 | O27: =SUM('1. LRAMVA Summary'!I$22:I$23)*(MONTH($E27)-1)/12*$H27 -> 0 | P27: =SUM('1. LRAMVA Summary'!J$22:J$23)*(MONTH($E27)-1)/12*$H27 -> 0 | Q27: 135.2171575
B28: 2014 Q1 | C28: 0.0147 | E28: Total for fiscal year 2011 | I28: =SUM(I16:I27) -> 380.9088593 | J28: =SUM(J16:J27) -> 107.7619052 | K28: 322.6321805 | L28: 0 | M28: 0 | N28: 0 | O28: 0 | P28: 0 | Q28: =SUM(Q16:Q27) -> 811.302945
B29: 2014 Q2 | C29: 0.0147 | E29: Amount Cleared | I29: =-I28 -> -380.9088593 | J29: =-J28 -> -107.7619052 | K29: -322.6321805 | L29: 0 | M29: 0 | N29: 0 | O29: 0 | P29: 0 | Q29: -811.302945
B30: 2014 Q3 | C30: 0.0147 | E30: Opening Balance for fiscal year 2012 | I30: =I28+I29 -> 0 | J30: =J28+J29 -> 0 | K30: 0 | L30: 0 | M30: 0 | N30: =N28+N29 -> 0 | O30: =O28+O29 -> 0 | P30: =P28+P29 -> 0 | Q30: =Q28+Q29 -> 0
B31: 2014 Q4 | C31: 0.0147 | E31: 2012-01-01 | F31: 2011-2012 | G31: Q1 | H31: =C$20/12 -> 0.001225 | I31: =(SUM('1. LRAMVA Summary'!C$22:C$24)+SUM('1. LRAMVA Summary'!C$25:C$26)*(MONTH($E31)-1)/12)*$H31 -> 0 | J31: =(SUM('1. LRAMVA Summary'!D$22:D$24)+SUM('1. LRAMVA Summary'!D$25:D$26)*(MONTH($E31)-1)/12)*$H31 -> 0 | K31: =(SUM('1. LRAMVA Summary'!E$22:E$24)+SUM('1. LRAMVA Summary'!E$25:E$26)*(MONTH($E31)-1)/12)*$H31 -> 0 | L31: =(SUM('1. LRAMVA Summary'!F$22:F$24)+SUM('1. LRAMVA Summary'!F$25:F$26)*(MONTH($E31)-1)/12)*$H31 -> 0 | M31: =(SUM('1. LRAMVA Summary'!G$22:G$24)+SUM('1. LRAMVA Summary'!G$25:G$26)*(MONTH($E31)-1)/12)*$H31 -> 0 | N31: =(SUM('1. LRAMVA Summary'!H$22:H$24)+SUM('1. LRAMVA Summary'!H$25:H$26)*(MONTH($E31)-1)/12)*$H31 -> 0 | O31: =(SUM('1. LRAMVA Summary'!I$22:I$24)+SUM('1. LRAMVA Summary'!I$25:I$26)*(MONTH($E31)-1)/12)*$H31 -> 0 | P31: =(SUM('1. LRAMVA Summary'!J$22:J$24)+SUM('1. LRAMVA Summary'!J$25:J$26)*(MONTH($E31)-1)/12)*$H31 -> 0 | Q31: =SUM(I31:P31) -> 0
B32: 2015 Q1 | C32: 0.0147 | E32: 2012-02-01 | F32: 2011-2012 | G32: Q1 | H32: 0.001225 | I32: =(SUM('1. LRAMVA Summary'!C$22:C$24)+SUM('1. LRAMVA Summary'!C$25:C$26)*(MONTH($E32)-1)/12)*$H32 -> 10.09067715 | J32: =(SUM('1. LRAMVA Summary'!D$22:D$24)+SUM('1. LRAMVA Summary'!D$25:D$26)*(MONTH($E32)-1)/12)*$H32 -> 2.798465448 | K32: =(SUM('1. LRAMVA Summary'!E$22:E$24)+SUM('1. LRAMVA Summary'!E$25:E$26)*(MONTH($E32)-1)/12)*$H32 -> 7.852757147 | L32: =(SUM('1. LRAMVA Summary'!F$22:F$24)+SUM('1. LRAMVA Summary'!F$25:F$26)*(MONTH($E32)-1)/12)*$H32 -> 0 | M32: =(SUM('1. LRAMVA Summary'!G$22:G$24)+SUM('1. LRAMVA Summary'!G$25:G$26)*(MONTH($E32)-1)/12)*$H32 -> 0 | N32: =(SUM('1. LRAMVA Summary'!H$22:H$24)+SUM('1. LRAMVA Summary'!H$25:H$26)*(MONTH($E32)-1)/12)*$H32 -> 0 | O32: =(SUM('1. LRAMVA Summary'!I$22:I$24)+SUM('1. LRAMVA Summary'!I$25:I$26)*(MONTH($E32)-1)/12)*$H32 -> 0 | P32: =(SUM('1. LRAMVA Summary'!J$22:J$24)+SUM('1. LRAMVA Summary'!J$25:J$26)*(MONTH($E32)-1)/12)*$H32 -> 0 | Q32: 20.74189975
B33: 2015 Q2 | C33: 0.011 | E33: 2012-03-01 | F33: 2011-2012 | G33: Q1 | H33: 0.001225 | I33: =(SUM('1. LRAMVA Summary'!C$22:C$24)+SUM('1. LRAMVA Summary'!C$25:C$26)*(MONTH($E33)-1)/12)*$H33 -> 20.18135431 | J33: =(SUM('1. LRAMVA Summary'!D$22:D$24)+SUM('1. LRAMVA Summary'!D$25:D$26)*(MONTH($E33)-1)/12)*$H33 -> 5.596930895 | K33: =(SUM('1. LRAMVA Summary'!E$22:E$24)+SUM('1. LRAMVA Summary'!E$25:E$26)*(MONTH($E33)-1)/12)*$H33 -> 15.70551429 | L33: =(SUM('1. LRAMVA Summary'!F$22:F$24)+SUM('1. LRAMVA Summary'!F$25:F$26)*(MONTH($E33)-1)/12)*$H33 -> 0 | M33: =(SUM('1. LRAMVA Summary'!G$22:G$24)+SUM('1. LRAMVA Summary'!G$25:G$26)*(MONTH($E33)-1)/12)*$H33 -> 0 | N33: =(SUM('1. LRAMVA Summary'!H$22:H$24)+SUM('1. LRAMVA Summary'!H$25:H$26)*(MONTH($E33)-1)/12)*$H33 -> 0 | O33: =(SUM('1. LRAMVA Summary'!I$22:I$24)+SUM('1. LRAMVA Summary'!I$25:I$26)*(MONTH($E33)-1)/12)*$H33 -> 0 | P33: =(SUM('1. LRAMVA Summary'!J$22:J$24)+SUM('1. LRAMVA Summary'!J$25:J$26)*(MONTH($E33)-1)/12)*$H33 -> 0 | Q33: 41.4837995
B34: 2015 Q3 | C34: 0.011 | E34: 2012-04-01 | F34: 2011-2012 | G34: Q2 | H34: =C$21/12 -> 0.001225 | I34: =(SUM('1. LRAMVA Summary'!C$22:C$24)+SUM('1. LRAMVA Summary'!C$25:C$26)*(MONTH($E34)-1)/12)*$H34 -> 30.27203146 | J34: =(SUM('1. LRAMVA Summary'!D$22:D$24)+SUM('1. LRAMVA Summary'!D$25:D$26)*(MONTH($E34)-1)/12)*$H34 -> 8.395396343 | K34: =(SUM('1. LRAMVA Summary'!E$22:E$24)+SUM('1. LRAMVA Summary'!E$25:E$26)*(MONTH($E34)-1)/12)*$H34 -> 23.55827144 | L34: =(SUM('1. LRAMVA Summary'!F$22:F$24)+SUM('1. LRAMVA Summary'!F$25:F$26)*(MONTH($E34)-1)/12)*$H34 -> 0 | M34: =(SUM('1. LRAMVA Summary'!G$22:G$24)+SUM('1. LRAMVA Summary'!G$25:G$26)*(MONTH($E34)-1)/12)*$H34 -> 0 | N34: =(SUM('1. LRAMVA Summary'!H$22:H$24)+SUM('1. LRAMVA Summary'!H$25:H$26)*(MONTH($E34)-1)/12)*$H34 -> 0 | O34: =(SUM('1. LRAMVA Summary'!I$22:I$24)+SUM('1. LRAMVA Summary'!I$25:I$26)*(MONTH($E34)-1)/12)*$H34 -> 0 | P34: =(SUM('1. LRAMVA Summary'!J$22:J$24)+SUM('1. LRAMVA Summary'!J$25:J$26)*(MONTH($E34)-1)/12)*$H34 -> 0 | Q34: 62.22569925
B35: 2015 Q4 | C35: 0.011 | E35: 2012-05-01 | F35: 2011-2012 | G35: Q2 | H35: =C$21/12 -> 0.001225 | I35: =(SUM('1. LRAMVA Summary'!C$22:C$24)+SUM('1. LRAMVA Summary'!C$25:C$26)*(MONTH($E35)-1)/12)*$H35 -> 40.36270862 | J35: =(SUM('1. LRAMVA Summary'!D$22:D$24)+SUM('1. LRAMVA Summary'!D$25:D$26)*(MONTH($E35)-1)/12)*$H35 -> 11.19386179 | K35: =(SUM('1. LRAMVA Summary'!E$22:E$24)+SUM('1. LRAMVA Summary'!E$25:E$26)*(MONTH($E35)-1)/12)*$H35 -> 31.41102859 | L35: =(SUM('1. LRAMVA Summary'!F$22:F$24)+SUM('1. LRAMVA Summary'!F$25:F$26)*(MONTH($E35)-1)/12)*$H35 -> 0 | M35: =(SUM('1. LRAMVA Summary'!G$22:G$24)+SUM('1. LRAMVA Summary'!G$25:G$26)*(MONTH($E35)-1)/12)*$H35 -> 0 | N35: =(SUM('1. LRAMVA Summary'!H$22:H$24)+SUM('1. LRAMVA Summary'!H$25:H$26)*(MONTH($E35)-1)/12)*$H35 -> 0 | O35: =(SUM('1. LRAMVA Summary'!I$22:I$24)+SUM('1. LRAMVA Summary'!I$25:I$26)*(MONTH($E35)-1)/12)*$H35 -> 0 | P35: =(SUM('1. LRAMVA Summary'!J$22:J$24)+SUM('1. LRAMVA Summary'!J$25:J$26)*(MONTH($E35)-1)/12)*$H35 -> 0 | Q35: 82.96759899
B36: 2016 Q1 | C36: 0.011 | E36: 2012-06-01 | F36: 2011-2012 | G36: Q2 | H36: =C$21/12 -> 0.001225 | I36: =(SUM('1. LRAMVA Summary'!C$22:C$24)+SUM('1. LRAMVA Summary'!C$25:C$26)*(MONTH($E36)-1)/12)*$H36 -> 50.45338577 | J36: =(SUM('1. LRAMVA Summary'!D$22:D$24)+SUM('1. LRAMVA Summary'!D$25:D$26)*(MONTH($E36)-1)/12)*$H36 -> 13.99232724 | K36: =(SUM('1. LRAMVA Summary'!E$22:E$24)+SUM('1. LRAMVA Summary'!E$25:E$26)*(MONTH($E36)-1)/12)*$H36 -> 39.26378573 | L36: =(SUM('1. LRAMVA Summary'!F$22:F$24)+SUM('1. LRAMVA Summary'!F$25:F$26)*(MONTH($E36)-1)/12)*$H36 -> 0 | M36: =(SUM('1. LRAMVA Summary'!G$22:G$24)+SUM('1. LRAMVA Summary'!G$25:G$26)*(MONTH($E36)-1)/12)*$H36 -> 0 | N36: =(SUM('1. LRAMVA Summary'!H$22:H$24)+SUM('1. LRAMVA Summary'!H$25:H$26)*(MONTH($E36)-1)/12)*$H36 -> 0 | O36: =(SUM('1. LRAMVA Summary'!I$22:I$24)+SUM('1. LRAMVA Summary'!I$25:I$26)*(MONTH($E36)-1)/12)*$H36 -> 0 | P36: =(SUM('1. LRAMVA Summary'!J$22:J$24)+SUM('1. LRAMVA Summary'!J$25:J$26)*(MONTH($E36)-1)/12)*$H36 -> 0 | Q36: 103.7094987
B37: 2016 Q2 | C37: 0.011 | E37: 2012-07-01 | F37: 2011-2012 | G37: Q3 | H37: =C$22/12 -> 0.001225 | I37: =(SUM('1. LRAMVA Summary'!C$22:C$24)+SUM('1. LRAMVA Summary'!C$25:C$26)*(MONTH($E37)-1)/12)*$H37 -> 60.54406292 | J37: =(SUM('1. LRAMVA Summary'!D$22:D$24)+SUM('1. LRAMVA Summary'!D$25:D$26)*(MONTH($E37)-1)/12)*$H37 -> 16.79079269 | K37: =(SUM('1. LRAMVA Summary'!E$22:E$24)+SUM('1. LRAMVA Summary'!E$25:E$26)*(MONTH($E37)-1)/12)*$H37 -> 47.11654288 | L37: =(SUM('1. LRAMVA Summary'!F$22:F$24)+SUM('1. LRAMVA Summary'!F$25:F$26)*(MONTH($E37)-1)/12)*$H37 -> 0 | M37: =(SUM('1. LRAMVA Summary'!G$22:G$24)+SUM('1. LRAMVA Summary'!G$25:G$26)*(MONTH($E37)-1)/12)*$H37 -> 0 | N37: =(SUM('1. LRAMVA Summary'!H$22:H$24)+SUM('1. LRAMVA Summary'!H$25:H$26)*(MONTH($E37)-1)/12)*$H37 -> 0 | O37: =(SUM('1. LRAMVA Summary'!I$22:I$24)+SUM('1. LRAMVA Summary'!I$25:I$26)*(MONTH($E37)-1)/12)*$H37 -> 0 | P37: =(SUM('1. LRAMVA Summary'!J$22:J$24)+SUM('1. LRAMVA Summary'!J$25:J$26)*(MONTH($E37)-1)/12)*$H37 -> 0 | Q37: 124.4513985
B38: 2016 Q3 | C38: 0.011 | E38: 2012-08-01 | F38: 2011-2012 | G38: Q3 | H38: =C$22/12 -> 0.001225 | I38: =(SUM('1. LRAMVA Summary'!C$22:C$24)+SUM('1. LRAMVA Summary'!C$25:C$26)*(MONTH($E38)-1)/12)*$H38 -> 70.63474008 | J38: =(SUM('1. LRAMVA Summary'!D$22:D$24)+SUM('1. LRAMVA Summary'!D$25:D$26)*(MONTH($E38)-1)/12)*$H38 -> 19.58925813 | K38: =(SUM('1. LRAMVA Summary'!E$22:E$24)+SUM('1. LRAMVA Summary'!E$25:E$26)*(MONTH($E38)-1)/12)*$H38 -> 54.96930003 | L38: =(SUM('1. LRAMVA Summary'!F$22:F$24)+SUM('1. LRAMVA Summary'!F$25:F$26)*(MONTH($E38)-1)/12)*$H38 -> 0 | M38: =(SUM('1. LRAMVA Summary'!G$22:G$24)+SUM('1. LRAMVA Summary'!G$25:G$26)*(MONTH($E38)-1)/12)*$H38 -> 0 | N38: =(SUM('1. LRAMVA Summary'!H$22:H$24)+SUM('1. LRAMVA Summary'!H$25:H$26)*(MONTH($E38)-1)/12)*$H38 -> 0 | O38: =(SUM('1. LRAMVA Summary'!I$22:I$24)+SUM('1. LRAMVA Summary'!I$25:I$26)*(MONTH($E38)-1)/12)*$H38 -> 0 | P38: =(SUM('1. LRAMVA Summary'!J$22:J$24)+SUM('1. LRAMVA Summary'!J$25:J$26)*(MONTH($E38)-1)/12)*$H38 -> 0 | Q38: 145.1932982
B39: 2016 Q4 | C39: 0.011 | E39: 2012-09-01 | F39: 2011-2012 | G39: Q3 | H39: =C$22/12 -> 0.001225 | I39: =(SUM('1. LRAMVA Summary'!C$22:C$24)+SUM('1. LRAMVA Summary'!C$25:C$26)*(MONTH($E39)-1)/12)*$H39 -> 80.72541723 | J39: =(SUM('1. LRAMVA Summary'!D$22:D$24)+SUM('1. LRAMVA Summary'!D$25:D$26)*(MONTH($E39)-1)/12)*$H39 -> 22.38772358 | K39: =(SUM('1. LRAMVA Summary'!E$22:E$24)+SUM('1. LRAMVA Summary'!E$25:E$26)*(MONTH($E39)-1)/12)*$H39 -> 62.82205717 | L39: =(SUM('1. LRAMVA Summary'!F$22:F$24)+SUM('1. LRAMVA Summary'!F$25:F$26)*(MONTH($E39)-1)/12)*$H39 -> 0 | M39: =(SUM('1. LRAMVA Summary'!G$22:G$24)+SUM('1. LRAMVA Summary'!G$25:G$26)*(MONTH($E39)-1)/12)*$H39 -> 0 | N39: =(SUM('1. LRAMVA Summary'!H$22:H$24)+SUM('1. LRAMVA Summary'!H$25:H$26)*(MONTH($E39)-1)/12)*$H39 -> 0 | O39: =(SUM('1. LRAMVA Summary'!I$22:I$24)+SUM('1. LRAMVA Summary'!I$25:I$26)*(MONTH($E39)-1)/12)*$H39 -> 0 | P39: =(SUM('1. LRAMVA Summary'!J$22:J$24)+SUM('1. LRAMVA Summary'!J$25:J$26)*(MONTH($E39)-1)/12)*$H39 -> 0 | Q39: 165.935198
B40: 2017 Q1 | C40: 0.011 | E40: 2012-10-01 | F40: 2011-2012 | G40: Q4 | H40: =C$23/12 -> 0.001225 | I40: =(SUM('1. LRAMVA Summary'!C$22:C$24)+SUM('1. LRAMVA Summary'!C$25:C$26)*(MONTH($E40)-1)/12)*$H40 -> 90.81609439 | J40: =(SUM('1. LRAMVA Summary'!D$22:D$24)+SUM('1. LRAMVA Summary'!D$25:D$26)*(MONTH($E40)-1)/12)*$H40 -> 25.18618903 | K40: =(SUM('1. LRAMVA Summary'!E$22:E$24)+SUM('1. LRAMVA Summary'!E$25:E$26)*(MONTH($E40)-1)/12)*$H40 -> 70.67481432 | L40: =(SUM('1. LRAMVA Summary'!F$22:F$24)+SUM('1. LRAMVA Summary'!F$25:F$26)*(MONTH($E40)-1)/12)*$H40 -> 0 | M40: =(SUM('1. LRAMVA Summary'!G$22:G$24)+SUM('1. LRAMVA Summary'!G$25:G$26)*(MONTH($E40)-1)/12)*$H40 -> 0 | N40: =(SUM('1. LRAMVA Summary'!H$22:H$24)+SUM('1. LRAMVA Summary'!H$25:H$26)*(MONTH($E40)-1)/12)*$H40 -> 0 | O40: =(SUM('1. LRAMVA Summary'!I$22:I$24)+SUM('1. LRAMVA Summary'!I$25:I$26)*(MONTH($E40)-1)/12)*$H40 -> 0 | P40: =(SUM('1. LRAMVA Summary'!J$22:J$24)+SUM('1. LRAMVA Summary'!J$25:J$26)*(MONTH($E40)-1)/12)*$H40 -> 0 | Q40: 186.6770977
B41: 2017 Q2 | C41: 0.011 | E41: 2012-11-01 | F41: 2011-2012 | G41: Q4 | H41: =C$23/12 -> 0.001225 | I41: =(SUM('1. LRAMVA Summary'!C$22:C$24)+SUM('1. LRAMVA Summary'!C$25:C$26)*(MONTH($E41)-1)/12)*$H41 -> 100.9067715 | J41: =(SUM('1. LRAMVA Summary'!D$22:D$24)+SUM('1. LRAMVA Summary'!D$25:D$26)*(MONTH($E41)-1)/12)*$H41 -> 27.98465448 | K41: =(SUM('1. LRAMVA Summary'!E$22:E$24)+SUM('1. LRAMVA Summary'!E$25:E$26)*(MONTH($E41)-1)/12)*$H41 -> 78.52757147 | L41: =(SUM('1. LRAMVA Summary'!F$22:F$24)+SUM('1. LRAMVA Summary'!F$25:F$26)*(MONTH($E41)-1)/12)*$H41 -> 0 | M41: =(SUM('1. LRAMVA Summary'!G$22:G$24)+SUM('1. LRAMVA Summary'!G$25:G$26)*(MONTH($E41)-1)/12)*$H41 -> 0 | N41: =(SUM('1. LRAMVA Summary'!H$22:H$24)+SUM('1. LRAMVA Summary'!H$25:H$26)*(MONTH($E41)-1)/12)*$H41 -> 0 | O41: =(SUM('1. LRAMVA Summary'!I$22:I$24)+SUM('1. LRAMVA Summary'!I$25:I$26)*(MONTH($E41)-1)/12)*$H41 -> 0 | P41: =(SUM('1. LRAMVA Summary'!J$22:J$24)+SUM('1. LRAMVA Summary'!J$25:J$26)*(MONTH($E41)-1)/12)*$H41 -> 0 | Q41: 207.4189975
B42: 2017 Q3 | E42: 2012-12-01 | F42: 2011-2012 | G42: Q4 | H42: =C$23/12 -> 0.001225 | I42: =(SUM('1. LRAMVA Summary'!C$22:C$24)+SUM('1. LRAMVA Summary'!C$25:C$26)*(MONTH($E42)-1)/12)*$H42 -> 110.9974487 | J42: =(SUM('1. LRAMVA Summary'!D$22:D$24)+SUM('1. LRAMVA Summary'!D$25:D$26)*(MONTH($E42)-1)/12)*$H42 -> 30.78311992 | K42: =(SUM('1. LRAMVA Summary'!E$22:E$24)+SUM('1. LRAMVA Summary'!E$25:E$26)*(MONTH($E42)-1)/12)*$H42 -> 86.38032862 | L42: =(SUM('1. LRAMVA Summary'!F$22:F$24)+SUM('1. LRAMVA Summary'!F$25:F$26)*(MONTH($E42)-1)/12)*$H42 -> 0 | M42: =(SUM('1. LRAMVA Summary'!G$22:G$24)+SUM('1. LRAMVA Summary'!G$25:G$26)*(MONTH($E42)-1)/12)*$H42 -> 0 | N42: =(SUM('1. LRAMVA Summary'!H$22:H$24)+SUM('1. LRAMVA Summary'!H$25:H$26)*(MONTH($E42)-1)/12)*$H42 -> 0 | O42: =(SUM('1. LRAMVA Summary'!I$22:I$24)+SUM('1. LRAMVA Summary'!I$25:I$26)*(MONTH($E42)-1)/12)*$H42 -> 0 | P42: =(SUM('1. LRAMVA Summary'!J$22:J$24)+SUM('1. LRAMVA Summary'!J$25:J$26)*(MONTH($E42)-1)/12)*$H42 -> 0 | Q42: 228.1608972
B43: 2017 Q4 | E43: Total for fiscal year 2012 | I43: =SUM(I30:I42) -> 665.9846922 | J43: =SUM(J30:J42) -> 184.6987195 | K43: 518.2819717 | L43: 0 | M43: 0 | N43: 0 | O43: 0 | P43: 0 | Q43: =SUM(Q30:Q42) -> 1368.965383
B44: 2018 Q1 | E44: Amount Cleared | I44: =-I43 -> -665.9846922 | J44: =-J43 -> -184.6987195 | K44: -518.2819717 | L44: 0 | M44: 0 | N44: 0 | O44: 0 | P44: 0 | Q44: -1368.965383
B45: 2018 Q2 | E45: Opening Balance for fiscal year 2013 | I45: =I43+I44 -> 0 | J45: 0 | K45: 0 | L45: 0 | M45: 0 | N45: 0 | O45: 0 | P45: 0 | Q45: =Q43+Q44 -> 0
B46: 2018 Q3 | E46: 2013-01-01 | F46: 2011-2013 | G46: Q1 | H46: =C$24/12 -> 0.001225 | I46: =(SUM('1. LRAMVA Summary'!C$22:C$27)+SUM('1. LRAMVA Summary'!C$28:C$29)*(MONTH($E46)-1)/12)*$H46 -> 0 | J46: =(SUM('1. LRAMVA Summary'!D$22:D$27)+SUM('1. LRAMVA Summary'!D$28:D$29)*(MONTH($E46)-1)/12)*$H46 -> 0 | K46: =(SUM('1. LRAMVA Summary'!E$22:E$27)+SUM('1. LRAMVA Summary'!E$28:E$29)*(MONTH($E46)-1)/12)*$H46 -> 0 | L46: =(SUM('1. LRAMVA Summary'!F$22:F$27)+SUM('1. LRAMVA Summary'!F$28:F$29)*(MONTH($E46)-1)/12)*$H46 -> 0 | M46: =(SUM('1. LRAMVA Summary'!G$22:G$27)+SUM('1. LRAMVA Summary'!G$28:G$29)*(MONTH($E46)-1)/12)*$H46 -> 0 | N46: =(SUM('1. LRAMVA Summary'!H$22:H$27)+SUM('1. LRAMVA Summary'!H$28:H$29)*(MONTH($E46)-1)/12)*$H46 -> 0 | O46: =(SUM('1. LRAMVA Summary'!I$22:I$27)+SUM('1. LRAMVA Summary'!I$28:I$29)*(MONTH($E46)-1)/12)*$H46 -> 0 | P46: =(SUM('1. LRAMVA Summary'!J$22:J$27)+SUM('1. LRAMVA Summary'!J$28:J$29)*(MONTH($E46)-1)/12)*$H46 -> 0 | Q46: =SUM(I46:P46) -> 0
B47: 2018 Q4 | E47: 2013-02-01 | F47: 2011-2013 | G47: Q1 | H47: =C$24/12 -> 0.001225 | I47: =(SUM('1. LRAMVA Summary'!C$22:C$27)+SUM('1. LRAMVA Summary'!C$28:C$29)*(MONTH($E47)-1)/12)*$H47 -> -7.548472845 | J47: =(SUM('1. LRAMVA Summary'!D$22:D$27)+SUM('1. LRAMVA Summary'!D$28:D$29)*(MONTH($E47)-1)/12)*$H47 -> 1.720515226 | K47: =(SUM('1. LRAMVA Summary'!E$22:E$27)+SUM('1. LRAMVA Summary'!E$28:E$29)*(MONTH($E47)-1)/12)*$H47 -> 3.108541113 | L47: =(SUM('1. LRAMVA Summary'!F$22:F$27)+SUM('1. LRAMVA Summary'!F$28:F$29)*(MONTH($E47)-1)/12)*$H47 -> -1.134533804 | M47: =(SUM('1. LRAMVA Summary'!G$22:G$27)+SUM('1. LRAMVA Summary'!G$28:G$29)*(MONTH($E47)-1)/12)*$H47 -> -0.03023878472 | N47: =(SUM('1. LRAMVA Summary'!H$22:H$27)+SUM('1. LRAMVA Summary'!H$28:H$29)*(MONTH($E47)-1)/12)*$H47 -> -0.6966647479 | O47: =(SUM('1. LRAMVA Summary'!I$22:I$27)+SUM('1. LRAMVA Summary'!I$28:I$29)*(MONTH($E47)-1)/12)*$H47 -> -0.102533446 | P47: =(SUM('1. LRAMVA Summary'!J$22:J$27)+SUM('1. LRAMVA Summary'!J$28:J$29)*(MONTH($E47)-1)/12)*$H47 -> -1.120979829 | Q47: -5.804367118
B48: 2019 Q1 | E48: 2013-03-01 | F48: 2011-2013 | G48: Q1 | H48: 0.001225 | I48: =(SUM('1. LRAMVA Summary'!C$22:C$27)+SUM('1. LRAMVA Summary'!C$28:C$29)*(MONTH($E48)-1)/12)*$H48 -> -15.09694569 | J48: =(SUM('1. LRAMVA Summary'!D$22:D$27)+SUM('1. LRAMVA Summary'!D$28:D$29)*(MONTH($E48)-1)/12)*$H48 -> 3.441030452 | K48: =(SUM('1. LRAMVA Summary'!E$22:E$27)+SUM('1. LRAMVA Summary'!E$28:E$29)*(MONTH($E48)-1)/12)*$H48 -> 6.217082225 | L48: =(SUM('1. LRAMVA Summary'!F$22:F$27)+SUM('1. LRAMVA Summary'!F$28:F$29)*(MONTH($E48)-1)/12)*$H48 -> -2.269067609 | M48: =(SUM('1. LRAMVA Summary'!G$22:G$27)+SUM('1. LRAMVA Summary'!G$28:G$29)*(MONTH($E48)-1)/12)*$H48 -> -0.06047756944 | N48: =(SUM('1. LRAMVA Summary'!H$22:H$27)+SUM('1. LRAMVA Summary'!H$28:H$29)*(MONTH($E48)-1)/12)*$H48 -> -1.393329496 | O48: =(SUM('1. LRAMVA Summary'!I$22:I$27)+SUM('1. LRAMVA Summary'!I$28:I$29)*(MONTH($E48)-1)/12)*$H48 -> -0.2050668919 | P48: =(SUM('1. LRAMVA Summary'!J$22:J$27)+SUM('1. LRAMVA Summary'!J$28:J$29)*(MONTH($E48)-1)/12)*$H48 -> -2.241959659 | Q48: -11.60873424
B49: 2019 Q2 | E49: 2013-04-01 | F49: 2011-2013 | G49: Q2 | H49: =C$25/12 -> 0.001225 | I49: =(SUM('1. LRAMVA Summary'!C$22:C$27)+SUM('1. LRAMVA Summary'!C$28:C$29)*(MONTH($E49)-1)/12)*$H49 -> -22.64541853 | J49: =(SUM('1. LRAMVA Summary'!D$22:D$27)+SUM('1. LRAMVA Summary'!D$28:D$29)*(MONTH($E49)-1)/12)*$H49 -> 5.161545678 | K49: =(SUM('1. LRAMVA Summary'!E$22:E$27)+SUM('1. LRAMVA Summary'!E$28:E$29)*(MONTH($E49)-1)/12)*$H49 -> 9.325623338 | L49: =(SUM('1. LRAMVA Summary'!F$22:F$27)+SUM('1. LRAMVA Summary'!F$28:F$29)*(MONTH($E49)-1)/12)*$H49 -> -3.403601413 | M49: =(SUM('1. LRAMVA Summary'!G$22:G$27)+SUM('1. LRAMVA Summary'!G$28:G$29)*(MONTH($E49)-1)/12)*$H49 -> -0.09071635417 | N49: =(SUM('1. LRAMVA Summary'!H$22:H$27)+SUM('1. LRAMVA Summary'!H$28:H$29)*(MONTH($E49)-1)/12)*$H49 -> -2.089994244 | O49: =(SUM('1. LRAMVA Summary'!I$22:I$27)+SUM('1. LRAMVA Summary'!I$28:I$29)*(MONTH($E49)-1)/12)*$H49 -> -0.3076003379 | P49: =(SUM('1. LRAMVA Summary'!J$22:J$27)+SUM('1. LRAMVA Summary'!J$28:J$29)*(MONTH($E49)-1)/12)*$H49 -> -3.362939488 | Q49: -17.41310136
B50: 2019 Q3 | E50: 2013-05-01 | F50: 2011-2013 | G50: Q2 | H50: =C$25/12 -> 0.001225 | I50: =(SUM('1. LRAMVA Summary'!C$22:C$27)+SUM('1. LRAMVA Summary'!C$28:C$29)*(MONTH($E50)-1)/12)*$H50 -> -30.19389138 | J50: =(SUM('1. LRAMVA Summary'!D$22:D$27)+SUM('1. LRAMVA Summary'!D$28:D$29)*(MONTH($E50)-1)/12)*$H50 -> 6.882060904 | K50: =(SUM('1. LRAMVA Summary'!E$22:E$27)+SUM('1. LRAMVA Summary'!E$28:E$29)*(MONTH($E50)-1)/12)*$H50 -> 12.43416445 | L50: =(SUM('1. LRAMVA Summary'!F$22:F$27)+SUM('1. LRAMVA Summary'!F$28:F$29)*(MONTH($E50)-1)/12)*$H50 -> -4.538135218 | M50: =(SUM('1. LRAMVA Summary'!G$22:G$27)+SUM('1. LRAMVA Summary'!G$28:G$29)*(MONTH($E50)-1)/12)*$H50 -> -0.1209551389 | N50: =(SUM('1. LRAMVA Summary'!H$22:H$27)+SUM('1. LRAMVA Summary'!H$28:H$29)*(MONTH($E50)-1)/12)*$H50 -> -2.786658992 | O50: =(SUM('1. LRAMVA Summary'!I$22:I$27)+SUM('1. LRAMVA Summary'!I$28:I$29)*(MONTH($E50)-1)/12)*$H50 -> -0.4101337839 | P50: =(SUM('1. LRAMVA Summary'!J$22:J$27)+SUM('1. LRAMVA Summary'!J$28:J$29)*(MONTH($E50)-1)/12)*$H50 -> -4.483919317 | Q50: -23.21746847
B51: 2019 Q4 | E51: 2013-06-01 | F51: 2011-2013 | G51: Q2 | H51: 0.001225 | I51: =(SUM('1. LRAMVA Summary'!C$22:C$27)+SUM('1. LRAMVA Summary'!C$28:C$29)*(MONTH($E51)-1)/12)*$H51 -> -37.74236422 | J51: =(SUM('1. LRAMVA Summary'!D$22:D$27)+SUM('1. LRAMVA Summary'!D$28:D$29)*(MONTH($E51)-1)/12)*$H51 -> 8.60257613 | K51: =(SUM('1. LRAMVA Summary'!E$22:E$27)+SUM('1. LRAMVA Summary'!E$28:E$29)*(MONTH($E51)-1)/12)*$H51 -> 15.54270556 | L51: =(SUM('1. LRAMVA Summary'!F$22:F$27)+SUM('1. LRAMVA Summary'!F$28:F$29)*(MONTH($E51)-1)/12)*$H51 -> -5.672669022 | M51: =(SUM('1. LRAMVA Summary'!G$22:G$27)+SUM('1. LRAMVA Summary'!G$28:G$29)*(MONTH($E51)-1)/12)*$H51 -> -0.1511939236 | N51: =(SUM('1. LRAMVA Summary'!H$22:H$27)+SUM('1. LRAMVA Summary'!H$28:H$29)*(MONTH($E51)-1)/12)*$H51 -> -3.48332374 | O51: =(SUM('1. LRAMVA Summary'!I$22:I$27)+SUM('1. LRAMVA Summary'!I$28:I$29)*(MONTH($E51)-1)/12)*$H51 -> -0.5126672299 | P51: =(SUM('1. LRAMVA Summary'!J$22:J$27)+SUM('1. LRAMVA Summary'!J$28:J$29)*(MONTH($E51)-1)/12)*$H51 -> -5.604899147 | Q51: -29.02183559
B52: 2020 Q1 | E52: 2013-07-01 | F52: 2011-2013 | G52: Q3 | H52: =C$26/12 -> 0.001225 | I52: =(SUM('1. LRAMVA Summary'!C$22:C$27)+SUM('1. LRAMVA Summary'!C$28:C$29)*(MONTH($E52)-1)/12)*$H52 -> -45.29083707 | J52: =(SUM('1. LRAMVA Summary'!D$22:D$27)+SUM('1. LRAMVA Summary'!D$28:D$29)*(MONTH($E52)-1)/12)*$H52 -> 10.32309136 | K52: =(SUM('1. LRAMVA Summary'!E$22:E$27)+SUM('1. LRAMVA Summary'!E$28:E$29)*(MONTH($E52)-1)/12)*$H52 -> 18.65124668 | L52: =(SUM('1. LRAMVA Summary'!F$22:F$27)+SUM('1. LRAMVA Summary'!F$28:F$29)*(MONTH($E52)-1)/12)*$H52 -> -6.807202827 | M52: =(SUM('1. LRAMVA Summary'!G$22:G$27)+SUM('1. LRAMVA Summary'!G$28:G$29)*(MONTH($E52)-1)/12)*$H52 -> -0.1814327083 | N52: =(SUM('1. LRAMVA Summary'!H$22:H$27)+SUM('1. LRAMVA Summary'!H$28:H$29)*(MONTH($E52)-1)/12)*$H52 -> -4.179988488 | O52: =(SUM('1. LRAMVA Summary'!I$22:I$27)+SUM('1. LRAMVA Summary'!I$28:I$29)*(MONTH($E52)-1)/12)*$H52 -> -0.6152006758 | P52: =(SUM('1. LRAMVA Summary'!J$22:J$27)+SUM('1. LRAMVA Summary'!J$28:J$29)*(MONTH($E52)-1)/12)*$H52 -> -6.725878976 | Q52: -34.82620271
B53: 2020 Q2 | E53: 2013-08-01 | F53: 2011-2013 | G53: Q3 | H53: =C$26/12 -> 0.001225 | I53: =(SUM('1. LRAMVA Summary'!C$22:C$27)+SUM('1. LRAMVA Summary'!C$28:C$29)*(MONTH($E53)-1)/12)*$H53 -> -52.83930991 | J53: =(SUM('1. LRAMVA Summary'!D$22:D$27)+SUM('1. LRAMVA Summary'!D$28:D$29)*(MONTH($E53)-1)/12)*$H53 -> 12.04360658 | K53: =(SUM('1. LRAMVA Summary'!E$22:E$27)+SUM('1. LRAMVA Summary'!E$28:E$29)*(MONTH($E53)-1)/12)*$H53 -> 21.75978779 | L53: =(SUM('1. LRAMVA Summary'!F$22:F$27)+SUM('1. LRAMVA Summary'!F$28:F$29)*(MONTH($E53)-1)/12)*$H53 -> -7.941736631 | M53: =(SUM('1. LRAMVA Summary'!G$22:G$27)+SUM('1. LRAMVA Summary'!G$28:G$29)*(MONTH($E53)-1)/12)*$H53 -> -0.2116714931 | N53: =(SUM('1. LRAMVA Summary'!H$22:H$27)+SUM('1. LRAMVA Summary'!H$28:H$29)*(MONTH($E53)-1)/12)*$H53 -> -4.876653235 | O53: =(SUM('1. LRAMVA Summary'!I$22:I$27)+SUM('1. LRAMVA Summary'!I$28:I$29)*(MONTH($E53)-1)/12)*$H53 -> -0.7177341218 | P53: =(SUM('1. LRAMVA Summary'!J$22:J$27)+SUM('1. LRAMVA Summary'!J$28:J$29)*(MONTH($E53)-1)/12)*$H53 -> -7.846858806 | Q53: -40.63056983
B54: 2020 Q3 | E54: 2013-09-01 | F54: 2011-2013 | G54: Q3 | H54: 0.001225 | I54: =(SUM('1. LRAMVA Summary'!C$22:C$27)+SUM('1. LRAMVA Summary'!C$28:C$29)*(MONTH($E54)-1)/12)*$H54 -> -60.38778276 | J54: =(SUM('1. LRAMVA Summary'!D$22:D$27)+SUM('1. LRAMVA Summary'!D$28:D$29)*(MONTH($E54)-1)/12)*$H54 -> 13.76412181 | K54: =(SUM('1. LRAMVA Summary'!E$22:E$27)+SUM('1. LRAMVA Summary'!E$28:E$29)*(MONTH($E54)-1)/12)*$H54 -> 24.8683289 | L54: =(SUM('1. LRAMVA Summary'!F$22:F$27)+SUM('1. LRAMVA Summary'!F$28:F$29)*(MONTH($E54)-1)/12)*$H54 -> -9.076270436 | M54: =(SUM('1. LRAMVA Summary'!G$22:G$27)+SUM('1. LRAMVA Summary'!G$28:G$29)*(MONTH($E54)-1)/12)*$H54 -> -0.2419102778 | N54: =(SUM('1. LRAMVA Summary'!H$22:H$27)+SUM('1. LRAMVA Summary'!H$28:H$29)*(MONTH($E54)-1)/12)*$H54 -> -5.573317983 | O54: =(SUM('1. LRAMVA Summary'!I$22:I$27)+SUM('1. LRAMVA Summary'!I$28:I$29)*(MONTH($E54)-1)/12)*$H54 -> -0.8202675678 | P54: =(SUM('1. LRAMVA Summary'!J$22:J$27)+SUM('1. LRAMVA Summary'!J$28:J$29)*(MONTH($E54)-1)/12)*$H54 -> -8.967838635 | Q54: -46.43493695
B55: 2020 Q4 | E55: 2013-10-01 | F55: 2011-2013 | G55: Q4 | H55: =C$27/12 -> 0.001225 | I55: =(SUM('1. LRAMVA Summary'!C$22:C$27)+SUM('1. LRAMVA Summary'!C$28:C$29)*(MONTH($E55)-1)/12)*$H55 -> -67.9362556 | J55: =(SUM('1. LRAMVA Summary'!D$22:D$27)+SUM('1. LRAMVA Summary'!D$28:D$29)*(MONTH($E55)-1)/12)*$H55 -> 15.48463703 | K55: =(SUM('1. LRAMVA Summary'!E$22:E$27)+SUM('1. LRAMVA Summary'!E$28:E$29)*(MONTH($E55)-1)/12)*$H55 -> 27.97687001 | L55: =(SUM('1. LRAMVA Summary'!F$22:F$27)+SUM('1. LRAMVA Summary'!F$28:F$29)*(MONTH($E55)-1)/12)*$H55 -> -10.21080424 | M55: =(SUM('1. LRAMVA Summary'!G$22:G$27)+SUM('1. LRAMVA Summary'!G$28:G$29)*(MONTH($E55)-1)/12)*$H55 -> -0.2721490625 | N55: =(SUM('1. LRAMVA Summary'!H$22:H$27)+SUM('1. LRAMVA Summary'!H$28:H$29)*(MONTH($E55)-1)/12)*$H55 -> -6.269982731 | O55: =(SUM('1. LRAMVA Summary'!I$22:I$27)+SUM('1. LRAMVA Summary'!I$28:I$29)*(MONTH($E55)-1)/12)*$H55 -> -0.9228010138 | P55: =(SUM('1. LRAMVA Summary'!J$22:J$27)+SUM('1. LRAMVA Summary'!J$28:J$29)*(MONTH($E55)-1)/12)*$H55 -> -10.08881846 | Q55: -52.23930407
E56: 2013-11-01 | F56: 2011-2013 | G56: Q4 | H56: =C$27/12 -> 0.001225 | I56: =(SUM('1. LRAMVA Summary'!C$22:C$27)+SUM('1. LRAMVA Summary'!C$28:C$29)*(MONTH($E56)-1)/12)*$H56 -> -75.48472845 | J56: =(SUM('1. LRAMVA Summary'!D$22:D$27)+SUM('1. LRAMVA Summary'!D$28:D$29)*(MONTH($E56)-1)/12)*$H56 -> 17.20515226 | K56: =(SUM('1. LRAMVA Summary'!E$22:E$27)+SUM('1. LRAMVA Summary'!E$28:E$29)*(MONTH($E56)-1)/12)*$H56 -> 31.08541113 | L56: =(SUM('1. LRAMVA Summary'!F$22:F$27)+SUM('1. LRAMVA Summary'!F$28:F$29)*(MONTH($E56)-1)/12)*$H56 -> -11.34533804 | M56: =(SUM('1. LRAMVA Summary'!G$22:G$27)+SUM('1. LRAMVA Summary'!G$28:G$29)*(MONTH($E56)-1)/12)*$H56 -> -0.3023878472 | N56: =(SUM('1. LRAMVA Summary'!H$22:H$27)+SUM('1. LRAMVA Summary'!H$28:H$29)*(MONTH($E56)-1)/12)*$H56 -> -6.966647479 | O56: =(SUM('1. LRAMVA Summary'!I$22:I$27)+SUM('1. LRAMVA Summary'!I$28:I$29)*(MONTH($E56)-1)/12)*$H56 -> -1.02533446 | P56: =(SUM('1. LRAMVA Summary'!J$22:J$27)+SUM('1. LRAMVA Summary'!J$28:J$29)*(MONTH($E56)-1)/12)*$H56 -> -11.20979829 | Q56: -58.04367118
B57: Check OEB website | E57: 2013-12-01 | F57: 2011-2013 | G57: Q4 | H57: 0.001225 | I57: =(SUM('1. LRAMVA Summary'!C$22:C$27)+SUM('1. LRAMVA Summary'!C$28:C$29)*(MONTH($E57)-1)/12)*$H57 -> -83.03320129 | J57: =(SUM('1. LRAMVA Summary'!D$22:D$27)+SUM('1. LRAMVA Summary'!D$28:D$29)*(MONTH($E57)-1)/12)*$H57 -> 18.92566749 | K57: =(SUM('1. LRAMVA Summary'!E$22:E$27)+SUM('1. LRAMVA Summary'!E$28:E$29)*(MONTH($E57)-1)/12)*$H57 -> 34.19395224 | L57: =(SUM('1. LRAMVA Summary'!F$22:F$27)+SUM('1. LRAMVA Summary'!F$28:F$29)*(MONTH($E57)-1)/12)*$H57 -> -12.47987185 | M57: =(SUM('1. LRAMVA Summary'!G$22:G$27)+SUM('1. LRAMVA Summary'!G$28:G$29)*(MONTH($E57)-1)/12)*$H57 -> -0.3326266319 | N57: =(SUM('1. LRAMVA Summary'!H$22:H$27)+SUM('1. LRAMVA Summary'!H$28:H$29)*(MONTH($E57)-1)/12)*$H57 -> -7.663312227 | O57: =(SUM('1. LRAMVA Summary'!I$22:I$27)+SUM('1. LRAMVA Summary'!I$28:I$29)*(MONTH($E57)-1)/12)*$H57 -> -1.127867906 | P57: =(SUM('1. LRAMVA Summary'!J$22:J$27)+SUM('1. LRAMVA Summary'!J$28:J$29)*(MONTH($E57)-1)/12)*$H57 -> -12.33077812 | Q57: -63.8480383
E58: Total for fiscal year 2013 | I58: =SUM(I45:I57) -> -498.1992077 | J58: =SUM(J45:J57) -> 113.5540049 | K58: 205.1637134 | L58: -74.87923109 | M58: -1.995759792 | N58: -45.97987336 | O58: -6.767207434 | P58: -73.98466874 | Q58: =SUM(Q45:Q57) -> -383.0882298
E59: Amount Cleared
E60: Opening Balance for fiscal year 2014 | I60: =I58+I59 -> -498.1992077 | J60: 113.5540049 | K60: 205.1637134 | L60: -74.87923109 | M60: -1.995759792 | N60: -45.97987336 | O60: -6.767207434 | P60: -73.98466874 | Q60: -383.0882298
E61: 2014-01-01 | F61: 2011-2014 | G61: Q1 | H61: =C$28/12 -> 0.001225 | I61: =(SUM('1. LRAMVA Summary'!C$22:C$30)+SUM('1. LRAMVA Summary'!C$31:C$32)*(MONTH($E61)-1)/12)*$H61 -> -90.58167414 | J61: =(SUM('1. LRAMVA Summary'!D$22:D$30)+SUM('1. LRAMVA Summary'!D$31:D$32)*(MONTH($E61)-1)/12)*$H61 -> 20.64618271 | K61: =(SUM('1. LRAMVA Summary'!E$22:E$30)+SUM('1. LRAMVA Summary'!E$31:E$32)*(MONTH($E61)-1)/12)*$H61 -> 37.30249335 | L61: =(SUM('1. LRAMVA Summary'!F$22:F$30)+SUM('1. LRAMVA Summary'!F$31:F$32)*(MONTH($E61)-1)/12)*$H61 -> -13.61440565 | M61: =(SUM('1. LRAMVA Summary'!G$22:G$30)+SUM('1. LRAMVA Summary'!G$31:G$32)*(MONTH($E61)-1)/12)*$H61 -> -0.3628654167 | N61: =(SUM('1. LRAMVA Summary'!H$22:H$30)+SUM('1. LRAMVA Summary'!H$31:H$32)*(MONTH($E61)-1)/12)*$H61 -> -8.359976975 | O61: =(SUM('1. LRAMVA Summary'!I$22:I$30)+SUM('1. LRAMVA Summary'!I$31:I$32)*(MONTH($E61)-1)/12)*$H61 -> -1.230401352 | P61: =(SUM('1. LRAMVA Summary'!J$22:J$30)+SUM('1. LRAMVA Summary'!J$31:J$32)*(MONTH($E61)-1)/12)*$H61 -> -13.45175795 | Q61: =SUM(I61:P61) -> -69.65240542
E62: 2014-02-01 | F62: 2011-2014 | G62: Q1 | H62: =C$28/12 -> 0.001225 | I62: =(SUM('1. LRAMVA Summary'!C$22:C$30)+SUM('1. LRAMVA Summary'!C$31:C$32)*(MONTH($E62)-1)/12)*$H62 -> -88.26187897 | J62: =(SUM('1. LRAMVA Summary'!D$22:D$30)+SUM('1. LRAMVA Summary'!D$31:D$32)*(MONTH($E62)-1)/12)*$H62 -> 24.38263872 | K62: =(SUM('1. LRAMVA Summary'!E$22:E$30)+SUM('1. LRAMVA Summary'!E$31:E$32)*(MONTH($E62)-1)/12)*$H62 -> 43.11467269 | L62: =(SUM('1. LRAMVA Summary'!F$22:F$30)+SUM('1. LRAMVA Summary'!F$31:F$32)*(MONTH($E62)-1)/12)*$H62 -> -14.78511823 | M62: =(SUM('1. LRAMVA Summary'!G$22:G$30)+SUM('1. LRAMVA Summary'!G$31:G$32)*(MONTH($E62)-1)/12)*$H62 -> -0.3944402817 | N62: =(SUM('1. LRAMVA Summary'!H$22:H$30)+SUM('1. LRAMVA Summary'!H$31:H$32)*(MONTH($E62)-1)/12)*$H62 -> -9.099904333 | O62: =(SUM('1. LRAMVA Summary'!I$22:I$30)+SUM('1. LRAMVA Summary'!I$31:I$32)*(MONTH($E62)-1)/12)*$H62 -> -1.346590999 | P62: =(SUM('1. LRAMVA Summary'!J$22:J$30)+SUM('1. LRAMVA Summary'!J$31:J$32)*(MONTH($E62)-1)/12)*$H62 -> -14.56082566 | Q62: -60.95144706
E63: 2014-03-01 | F63: 2011-2014 | G63: Q1 | H63: 0.001225 | I63: =(SUM('1. LRAMVA Summary'!C$22:C$30)+SUM('1. LRAMVA Summary'!C$31:C$32)*(MONTH($E63)-1)/12)*$H63 -> -85.94208381 | J63: =(SUM('1. LRAMVA Summary'!D$22:D$30)+SUM('1. LRAMVA Summary'!D$31:D$32)*(MONTH($E63)-1)/12)*$H63 -> 28.11909473 | K63: =(SUM('1. LRAMVA Summary'!E$22:E$30)+SUM('1. LRAMVA Summary'!E$31:E$32)*(MONTH($E63)-1)/12)*$H63 -> 48.92685203 | L63: =(SUM('1. LRAMVA Summary'!F$22:F$30)+SUM('1. LRAMVA Summary'!F$31:F$32)*(MONTH($E63)-1)/12)*$H63 -> -15.9558308 | M63: =(SUM('1. LRAMVA Summary'!G$22:G$30)+SUM('1. LRAMVA Summary'!G$31:G$32)*(MONTH($E63)-1)/12)*$H63 -> -0.4260151467 | N63: =(SUM('1. LRAMVA Summary'!H$22:H$30)+SUM('1. LRAMVA Summary'!H$31:H$32)*(MONTH($E63)-1)/12)*$H63 -> -9.839831692 | O63: =(SUM('1. LRAMVA Summary'!I$22:I$30)+SUM('1. LRAMVA Summary'!I$31:I$32)*(MONTH($E63)-1)/12)*$H63 -> -1.462780646 | P63: =(SUM('1. LRAMVA Summary'!J$22:J$30)+SUM('1. LRAMVA Summary'!J$31:J$32)*(MONTH($E63)-1)/12)*$H63 -> -15.66989336 | Q63: -52.25048869
E64: 2014-04-01 | F64: 2011-2014 | G64: Q2 | H64: =C$29/12 -> 0.001225 | I64: =(SUM('1. LRAMVA Summary'!C$22:C$30)+SUM('1. LRAMVA Summary'!C$31:C$32)*(MONTH($E64)-1)/12)*$H64 -> -83.62228864 | J64: =(SUM('1. LRAMVA Summary'!D$22:D$30)+SUM('1. LRAMVA Summary'!D$31:D$32)*(MONTH($E64)-1)/12)*$H64 -> 31.85555073 | K64: =(SUM('1. LRAMVA Summary'!E$22:E$30)+SUM('1. LRAMVA Summary'!E$31:E$32)*(MONTH($E64)-1)/12)*$H64 -> 54.73903138 | L64: =(SUM('1. LRAMVA Summary'!F$22:F$30)+SUM('1. LRAMVA Summary'!F$31:F$32)*(MONTH($E64)-1)/12)*$H64 -> -17.12654337 | M64: =(SUM('1. LRAMVA Summary'!G$22:G$30)+SUM('1. LRAMVA Summary'!G$31:G$32)*(MONTH($E64)-1)/12)*$H64 -> -0.4575900117 | N64: =(SUM('1. LRAMVA Summary'!H$22:H$30)+SUM('1. LRAMVA Summary'!H$31:H$32)*(MONTH($E64)-1)/12)*$H64 -> -10.57975905 | O64: =(SUM('1. LRAMVA Summary'!I$22:I$30)+SUM('1. LRAMVA Summary'!I$31:I$32)*(MONTH($E64)-1)/12)*$H64 -> -1.578970294 | P64: =(SUM('1. LRAMVA Summary'!J$22:J$30)+SUM('1. LRAMVA Summary'!J$31:J$32)*(MONTH($E64)-1)/12)*$H64 -> -16.77896107 | Q64: -43.54953033
E65: 2014-05-01 | F65: 2011-2014 | G65: Q2 | H65: =C$29/12 -> 0.001225 | I65: =(SUM('1. LRAMVA Summary'!C$22:C$30)+SUM('1. LRAMVA Summary'!C$31:C$32)*(MONTH($E65)-1)/12)*$H65 -> -81.30249348 | J65: =(SUM('1. LRAMVA Summary'!D$22:D$30)+SUM('1. LRAMVA Summary'!D$31:D$32)*(MONTH($E65)-1)/12)*$H65 -> 35.59200674 | K65: =(SUM('1. LRAMVA Summary'!E$22:E$30)+SUM('1. LRAMVA Summary'!E$31:E$32)*(MONTH($E65)-1)/12)*$H65 -> 60.55121072 | L65: =(SUM('1. LRAMVA Summary'!F$22:F$30)+SUM('1. LRAMVA Summary'!F$31:F$32)*(MONTH($E65)-1)/12)*$H65 -> -18.29725595 | M65: =(SUM('1. LRAMVA Summary'!G$22:G$30)+SUM('1. LRAMVA Summary'!G$31:G$32)*(MONTH($E65)-1)/12)*$H65 -> -0.4891648767 | N65: =(SUM('1. LRAMVA Summary'!H$22:H$30)+SUM('1. LRAMVA Summary'!H$31:H$32)*(MONTH($E65)-1)/12)*$H65 -> -11.31968641 | O65: =(SUM('1. LRAMVA Summary'!I$22:I$30)+SUM('1. LRAMVA Summary'!I$31:I$32)*(MONTH($E65)-1)/12)*$H65 -> -1.695159941 | P65: =(SUM('1. LRAMVA Summary'!J$22:J$30)+SUM('1. LRAMVA Summary'!J$31:J$32)*(MONTH($E65)-1)/12)*$H65 -> -17.88802877 | Q65: -34.84857197
E66: 2014-06-01 | F66: 2011-2014 | G66: Q2 | H66: 0.001225 | I66: =(SUM('1. LRAMVA Summary'!C$22:C$30)+SUM('1. LRAMVA Summary'!C$31:C$32)*(MONTH($E66)-1)/12)*$H66 -> -78.98269831 | J66: =(SUM('1. LRAMVA Summary'!D$22:D$30)+SUM('1. LRAMVA Summary'!D$31:D$32)*(MONTH($E66)-1)/12)*$H66 -> 39.32846274 | K66: =(SUM('1. LRAMVA Summary'!E$22:E$30)+SUM('1. LRAMVA Summary'!E$31:E$32)*(MONTH($E66)-1)/12)*$H66 -> 66.36339006 | L66: =(SUM('1. LRAMVA Summary'!F$22:F$30)+SUM('1. LRAMVA Summary'!F$31:F$32)*(MONTH($E66)-1)/12)*$H66 -> -19.46796852 | M66: =(SUM('1. LRAMVA Summary'!G$22:G$30)+SUM('1. LRAMVA Summary'!G$31:G$32)*(MONTH($E66)-1)/12)*$H66 -> -0.5207397417 | N66: =(SUM('1. LRAMVA Summary'!H$22:H$30)+SUM('1. LRAMVA Summary'!H$31:H$32)*(MONTH($E66)-1)/12)*$H66 -> -12.05961377 | O66: =(SUM('1. LRAMVA Summary'!I$22:I$30)+SUM('1. LRAMVA Summary'!I$31:I$32)*(MONTH($E66)-1)/12)*$H66 -> -1.811349588 | P66: =(SUM('1. LRAMVA Summary'!J$22:J$30)+SUM('1. LRAMVA Summary'!J$31:J$32)*(MONTH($E66)-1)/12)*$H66 -> -18.99709648 | Q66: -26.1476136
E67: 2014-07-01 | F67: 2011-2014 | G67: Q3 | H67: =C$30/12 -> 0.001225 | I67: =(SUM('1. LRAMVA Summary'!C$22:C$30)+SUM('1. LRAMVA Summary'!C$31:C$32)*(MONTH($E67)-1)/12)*$H67 -> -76.66290315 | J67: =(SUM('1. LRAMVA Summary'!D$22:D$30)+SUM('1. LRAMVA Summary'!D$31:D$32)*(MONTH($E67)-1)/12)*$H67 -> 43.06491875 | K67: =(SUM('1. LRAMVA Summary'!E$22:E$30)+SUM('1. LRAMVA Summary'!E$31:E$32)*(MONTH($E67)-1)/12)*$H67 -> 72.1755694 | L67: =(SUM('1. LRAMVA Summary'!F$22:F$30)+SUM('1. LRAMVA Summary'!F$31:F$32)*(MONTH($E67)-1)/12)*$H67 -> -20.63868109 | M67: =(SUM('1. LRAMVA Summary'!G$22:G$30)+SUM('1. LRAMVA Summary'!G$31:G$32)*(MONTH($E67)-1)/12)*$H67 -> -0.5523146067 | N67: =(SUM('1. LRAMVA Summary'!H$22:H$30)+SUM('1. LRAMVA Summary'!H$31:H$32)*(MONTH($E67)-1)/12)*$H67 -> -12.79954112 | O67: =(SUM('1. LRAMVA Summary'!I$22:I$30)+SUM('1. LRAMVA Summary'!I$31:I$32)*(MONTH($E67)-1)/12)*$H67 -> -1.927539235 | P67: =(SUM('1. LRAMVA Summary'!J$22:J$30)+SUM('1. LRAMVA Summary'!J$31:J$32)*(MONTH($E67)-1)/12)*$H67 -> -20.10616418 | Q67: -17.44665524
E68: 2014-08-01 | F68: 2011-2014 | G68: Q3 | H68: =C$30/12 -> 0.001225 | I68: =(SUM('1. LRAMVA Summary'!C$22:C$30)+SUM('1. LRAMVA Summary'!C$31:C$32)*(MONTH($E68)-1)/12)*$H68 -> -74.34310798 | J68: =(SUM('1. LRAMVA Summary'!D$22:D$30)+SUM('1. LRAMVA Summary'!D$31:D$32)*(MONTH($E68)-1)/12)*$H68 -> 46.80137476 | K68: =(SUM('1. LRAMVA Summary'!E$22:E$30)+SUM('1. LRAMVA Summary'!E$31:E$32)*(MONTH($E68)-1)/12)*$H68 -> 77.98774874 | L68: =(SUM('1. LRAMVA Summary'!F$22:F$30)+SUM('1. LRAMVA Summary'!F$31:F$32)*(MONTH($E68)-1)/12)*$H68 -> -21.80939367 | M68: =(SUM('1. LRAMVA Summary'!G$22:G$30)+SUM('1. LRAMVA Summary'!G$31:G$32)*(MONTH($E68)-1)/12)*$H68 -> -0.5838894717 | N68: =(SUM('1. LRAMVA Summary'!H$22:H$30)+SUM('1. LRAMVA Summary'!H$31:H$32)*(MONTH($E68)-1)/12)*$H68 -> -13.53946848 | O68: =(SUM('1. LRAMVA Summary'!I$22:I$30)+SUM('1. LRAMVA Summary'!I$31:I$32)*(MONTH($E68)-1)/12)*$H68 -> -2.043728883 | P68: =(SUM('1. LRAMVA Summary'!J$22:J$30)+SUM('1. LRAMVA Summary'!J$31:J$32)*(MONTH($E68)-1)/12)*$H68 -> -21.21523189 | Q68: -8.745696876
E69: 2014-09-01 | F69: 2011-2014 | G69: Q3 | H69: 0.001225 | I69: =(SUM('1. LRAMVA Summary'!C$22:C$30)+SUM('1. LRAMVA Summary'!C$31:C$32)*(MONTH($E69)-1)/12)*$H69 -> -72.02331282 | J69: =(SUM('1. LRAMVA Summary'!D$22:D$30)+SUM('1. LRAMVA Summary'!D$31:D$32)*(MONTH($E69)-1)/12)*$H69 -> 50.53783076 | K69: =(SUM('1. LRAMVA Summary'!E$22:E$30)+SUM('1. LRAMVA Summary'!E$31:E$32)*(MONTH($E69)-1)/12)*$H69 -> 83.79992808 | L69: =(SUM('1. LRAMVA Summary'!F$22:F$30)+SUM('1. LRAMVA Summary'!F$31:F$32)*(MONTH($E69)-1)/12)*$H69 -> -22.98010624 | M69: =(SUM('1. LRAMVA Summary'!G$22:G$30)+SUM('1. LRAMVA Summary'!G$31:G$32)*(MONTH($E69)-1)/12)*$H69 -> -0.6154643367 | N69: =(SUM('1. LRAMVA Summary'!H$22:H$30)+SUM('1. LRAMVA Summary'!H$31:H$32)*(MONTH($E69)-1)/12)*$H69 -> -14.27939584 | O69: =(SUM('1. LRAMVA Summary'!I$22:I$30)+SUM('1. LRAMVA Summary'!I$31:I$32)*(MONTH($E69)-1)/12)*$H69 -> -2.15991853 | P69: =(SUM('1. LRAMVA Summary'!J$22:J$30)+SUM('1. LRAMVA Summary'!J$31:J$32)*(MONTH($E69)-1)/12)*$H69 -> -22.32429959 | Q69: -0.04473851295
E70: 2014-10-01 | F70: 2011-2014 | G70: Q4 | H70: =C$31/12 -> 0.001225 | I70: =(SUM('1. LRAMVA Summary'!C$22:C$30)+SUM('1. LRAMVA Summary'!C$31:C$32)*(MONTH($E70)-1)/12)*$H70 -> -69.70351765 | J70: =(SUM('1. LRAMVA Summary'!D$22:D$30)+SUM('1. LRAMVA Summary'!D$31:D$32)*(MONTH($E70)-1)/12)*$H70 -> 54.27428677 | K70: =(SUM('1. LRAMVA Summary'!E$22:E$30)+SUM('1. LRAMVA Summary'!E$31:E$32)*(MONTH($E70)-1)/12)*$H70 -> 89.61210742 | L70: =(SUM('1. LRAMVA Summary'!F$22:F$30)+SUM('1. LRAMVA Summary'!F$31:F$32)*(MONTH($E70)-1)/12)*$H70 -> -24.15081881 | M70: =(SUM('1. LRAMVA Summary'!G$22:G$30)+SUM('1. LRAMVA Summary'!G$31:G$32)*(MONTH($E70)-1)/12)*$H70 -> -0.6470392017 | N70: =(SUM('1. LRAMVA Summary'!H$22:H$30)+SUM('1. LRAMVA Summary'!H$31:H$32)*(MONTH($E70)-1)/12)*$H70 -> -15.0193232 | O70: =(SUM('1. LRAMVA Summary'!I$22:I$30)+SUM('1. LRAMVA Summary'!I$31:I$32)*(MONTH($E70)-1)/12)*$H70 -> -2.276108177 | P70: =(SUM('1. LRAMVA Summary'!J$22:J$30)+SUM('1. LRAMVA Summary'!J$31:J$32)*(MONTH($E70)-1)/12)*$H70 -> -23.4333673 | Q70: 8.65621985
E71: 2014-11-01 | F71: 2011-2014 | G71: Q4 | H71: =C$31/12 -> 0.001225 | I71: =(SUM('1. LRAMVA Summary'!C$22:C$30)+SUM('1. LRAMVA Summary'!C$31:C$32)*(MONTH($E71)-1)/12)*$H71 -> -67.38372249 | J71: =(SUM('1. LRAMVA Summary'!D$22:D$30)+SUM('1. LRAMVA Summary'!D$31:D$32)*(MONTH($E71)-1)/12)*$H71 -> 58.01074278 | K71: =(SUM('1. LRAMVA Summary'!E$22:E$30)+SUM('1. LRAMVA Summary'!E$31:E$32)*(MONTH($E71)-1)/12)*$H71 -> 95.42428676 | L71: =(SUM('1. LRAMVA Summary'!F$22:F$30)+SUM('1. LRAMVA Summary'!F$31:F$32)*(MONTH($E71)-1)/12)*$H71 -> -25.32153139 | M71: =(SUM('1. LRAMVA Summary'!G$22:G$30)+SUM('1. LRAMVA Summary'!G$31:G$32)*(MONTH($E71)-1)/12)*$H71 -> -0.6786140667 | N71: =(SUM('1. LRAMVA Summary'!H$22:H$30)+SUM('1. LRAMVA Summary'!H$31:H$32)*(MONTH($E71)-1)/12)*$H71 -> -15.75925056 | O71: =(SUM('1. LRAMVA Summary'!I$22:I$30)+SUM('1. LRAMVA Summary'!I$31:I$32)*(MONTH($E71)-1)/12)*$H71 -> -2.392297825 | P71: =(SUM('1. LRAMVA Summary'!J$22:J$30)+SUM('1. LRAMVA Summary'!J$31:J$32)*(MONTH($E71)-1)/12)*$H71 -> -24.542435 | Q71: 17.35717821
E72: 2014-12-01 | F72: 2011-2014 | G72: Q4 | H72: 0.001225 | I72: =(SUM('1. LRAMVA Summary'!C$22:C$30)+SUM('1. LRAMVA Summary'!C$31:C$32)*(MONTH($E72)-1)/12)*$H72 -> -65.06392732 | J72: =(SUM('1. LRAMVA Summary'!D$22:D$30)+SUM('1. LRAMVA Summary'!D$31:D$32)*(MONTH($E72)-1)/12)*$H72 -> 61.74719878 | K72: =(SUM('1. LRAMVA Summary'!E$22:E$30)+SUM('1. LRAMVA Summary'!E$31:E$32)*(MONTH($E72)-1)/12)*$H72 -> 101.2364661 | L72: =(SUM('1. LRAMVA Summary'!F$22:F$30)+SUM('1. LRAMVA Summary'!F$31:F$32)*(MONTH($E72)-1)/12)*$H72 -> -26.49224396 | M72: =(SUM('1. LRAMVA Summary'!G$22:G$30)+SUM('1. LRAMVA Summary'!G$31:G$32)*(MONTH($E72)-1)/12)*$H72 -> -0.7101889317 | N72: =(SUM('1. LRAMVA Summary'!H$22:H$30)+SUM('1. LRAMVA Summary'!H$31:H$32)*(MONTH($E72)-1)/12)*$H72 -> -16.49917792 | O72: =(SUM('1. LRAMVA Summary'!I$22:I$30)+SUM('1. LRAMVA Summary'!I$31:I$32)*(MONTH($E72)-1)/12)*$H72 -> -2.508487472 | P72: =(SUM('1. LRAMVA Summary'!J$22:J$30)+SUM('1. LRAMVA Summary'!J$31:J$32)*(MONTH($E72)-1)/12)*$H72 -> -25.65150271 | Q72: 26.05813658
E73: Total for fiscal year 2014 | I73: =SUM(I60:I72) -> -1432.072817 | J73: =SUM(J60:J72) -> 607.9142939 | K73: =SUM(K60:K72) -> 1036.39747 | L73: =SUM(L60:L72) -> -315.5191288 | M73: =SUM(M60:M72) -> -8.434085882 | N73: =SUM(N60:N72) -> -195.1348027 | O73: =SUM(O60:O72) -> -29.20054038 | P73: =SUM(P60:P72) -> -308.6042327 | Q73: =SUM(Q60:Q72) -> -644.6538429
E74: Amount Cleared
E75: Opening Balance for fiscal year 2015 | I75: =I73+I74 -> -1432.072817 | J75: 607.9142939 | K75: 1036.39747 | L75: -315.5191288 | M75: -8.434085882 | N75: -195.1348027 | O75: -29.20054038 | P75: -308.6042327 | Q75: -644.6538429
E76: 2015-01-01 | F76: 2011-2015 | G76: Q1 | H76: =C$32/12 -> 0.001225 | I76: =(SUM('1. LRAMVA Summary'!C$22:C$33)+SUM('1. LRAMVA Summary'!C$34:C$35)*(MONTH($E76)-1)/12)*$H76 -> -62.74413216 | J76: =(SUM('1. LRAMVA Summary'!D$22:D$33)+SUM('1. LRAMVA Summary'!D$34:D$35)*(MONTH($E76)-1)/12)*$H76 -> 65.48365479 | K76: =(SUM('1. LRAMVA Summary'!E$22:E$33)+SUM('1. LRAMVA Summary'!E$34:E$35)*(MONTH($E76)-1)/12)*$H76 -> 107.0486454 | L76: =(SUM('1. LRAMVA Summary'!F$22:F$33)+SUM('1. LRAMVA Summary'!F$34:F$35)*(MONTH($E76)-1)/12)*$H76 -> -27.66295653 | M76: =(SUM('1. LRAMVA Summary'!G$22:G$33)+SUM('1. LRAMVA Summary'!G$34:G$35)*(MONTH($E76)-1)/12)*$H76 -> -0.7417637967 | N76: =(SUM('1. LRAMVA Summary'!H$22:H$33)+SUM('1. LRAMVA Summary'!H$34:H$35)*(MONTH($E76)-1)/12)*$H76 -> -17.23910528 | O76: =(SUM('1. LRAMVA Summary'!I$22:I$33)+SUM('1. LRAMVA Summary'!I$34:I$35)*(MONTH($E76)-1)/12)*$H76 -> -2.624677119 | P76: =(SUM('1. LRAMVA Summary'!J$22:J$33)+SUM('1. LRAMVA Summary'!J$34:J$35)*(MONTH($E76)-1)/12)*$H76 -> -26.76057041 | Q76: =SUM(I76:P76) -> 34.75909494
E77: 2015-02-01 | F77: 2011-2015 | G77: Q1 | H77: 0.001225 | I77: =(SUM('1. LRAMVA Summary'!C$22:C$33)+SUM('1. LRAMVA Summary'!C$34:C$35)*(MONTH($E77)-1)/12)*$H77 -> -48.19066857 | J77: =(SUM('1. LRAMVA Summary'!D$22:D$33)+SUM('1. LRAMVA Summary'!D$34:D$35)*(MONTH($E77)-1)/12)*$H77 -> 88.37174602 | K77: =(SUM('1. LRAMVA Summary'!E$22:E$33)+SUM('1. LRAMVA Summary'!E$34:E$35)*(MONTH($E77)-1)/12)*$H77 -> 114.9595766 | L77: =(SUM('1. LRAMVA Summary'!F$22:F$33)+SUM('1. LRAMVA Summary'!F$34:F$35)*(MONTH($E77)-1)/12)*$H77 -> -28.8510316 | M77: =(SUM('1. LRAMVA Summary'!G$22:G$33)+SUM('1. LRAMVA Summary'!G$34:G$35)*(MONTH($E77)-1)/12)*$H77 -> -0.7738069519 | N77: =(SUM('1. LRAMVA Summary'!H$22:H$33)+SUM('1. LRAMVA Summary'!H$34:H$35)*(MONTH($E77)-1)/12)*$H77 -> -17.99000639 | O77: =(SUM('1. LRAMVA Summary'!I$22:I$33)+SUM('1. LRAMVA Summary'!I$34:I$35)*(MONTH($E77)-1)/12)*$H77 -> -2.742881616 | P77: =(SUM('1. LRAMVA Summary'!J$22:J$33)+SUM('1. LRAMVA Summary'!J$34:J$35)*(MONTH($E77)-1)/12)*$H77 -> -27.88607405 | Q77: =SUM(I77:P77) -> 76.89685344
E78: 2015-03-01 | F78: 2011-2015 | G78: Q1 | H78: 0.001225 | I78: =(SUM('1. LRAMVA Summary'!C$22:C$33)+SUM('1. LRAMVA Summary'!C$34:C$35)*(MONTH($E78)-1)/12)*$H78 -> -33.63720499 | J78: =(SUM('1. LRAMVA Summary'!D$22:D$33)+SUM('1. LRAMVA Summary'!D$34:D$35)*(MONTH($E78)-1)/12)*$H78 -> 111.2598373 | K78: =(SUM('1. LRAMVA Summary'!E$22:E$33)+SUM('1. LRAMVA Summary'!E$34:E$35)*(MONTH($E78)-1)/12)*$H78 -> 122.8705078 | L78: =(SUM('1. LRAMVA Summary'!F$22:F$33)+SUM('1. LRAMVA Summary'!F$34:F$35)*(MONTH($E78)-1)/12)*$H78 -> -30.03910667 | M78: =(SUM('1. LRAMVA Summary'!G$22:G$33)+SUM('1. LRAMVA Summary'!G$34:G$35)*(MONTH($E78)-1)/12)*$H78 -> -0.8058501072 | N78: =(SUM('1. LRAMVA Summary'!H$22:H$33)+SUM('1. LRAMVA Summary'!H$34:H$35)*(MONTH($E78)-1)/12)*$H78 -> -18.7409075 | O78: =(SUM('1. LRAMVA Summary'!I$22:I$33)+SUM('1. LRAMVA Summary'!I$34:I$35)*(MONTH($E78)-1)/12)*$H78 -> -2.861086112 | P78: =(SUM('1. LRAMVA Summary'!J$22:J$33)+SUM('1. LRAMVA Summary'!J$34:J$35)*(MONTH($E78)-1)/12)*$H78 -> -29.01157769 | Q78: =SUM(I78:P78) -> 119.0346119
E79: 2015-04-01 | F79: 2011-2015 | G79: Q2 | H79: =C$33/12 -> 0.0009166666667 | I79: =(SUM('1. LRAMVA Summary'!C$22:C$33)+SUM('1. LRAMVA Summary'!C$34:C$35)*(MONTH($E79)-1)/12)*$H79 -> -14.28035071 | J79: =(SUM('1. LRAMVA Summary'!D$22:D$33)+SUM('1. LRAMVA Summary'!D$34:D$35)*(MONTH($E79)-1)/12)*$H79 -> 100.3828036 | K79: =(SUM('1. LRAMVA Summary'!E$22:E$33)+SUM('1. LRAMVA Summary'!E$34:E$35)*(MONTH($E79)-1)/12)*$H79 -> 97.86366179 | L79: =(SUM('1. LRAMVA Summary'!F$22:F$33)+SUM('1. LRAMVA Summary'!F$34:F$35)*(MONTH($E79)-1)/12)*$H79 -> -23.36727886 | M79: =(SUM('1. LRAMVA Summary'!G$22:G$33)+SUM('1. LRAMVA Summary'!G$34:G$35)*(MONTH($E79)-1)/12)*$H79 -> -0.6269949583 | N79: =(SUM('1. LRAMVA Summary'!H$22:H$33)+SUM('1. LRAMVA Summary'!H$34:H$35)*(MONTH($E79)-1)/12)*$H79 -> -14.58570713 | O79: =(SUM('1. LRAMVA Summary'!I$22:I$33)+SUM('1. LRAMVA Summary'!I$34:I$35)*(MONTH($E79)-1)/12)*$H79 -> -2.229401136 | P79: =(SUM('1. LRAMVA Summary'!J$22:J$33)+SUM('1. LRAMVA Summary'!J$34:J$35)*(MONTH($E79)-1)/12)*$H79 -> -22.55155746 | Q79: =SUM(I79:P79) -> 120.6051752
E80: 2015-05-01 | F80: 2011-2015 | G80: Q2 | H80: 0.0009166666667 | I80: =(SUM('1. LRAMVA Summary'!C$22:C$33)+SUM('1. LRAMVA Summary'!C$34:C$35)*(MONTH($E80)-1)/12)*$H80 -> -3.390003807 | J80: =(SUM('1. LRAMVA Summary'!D$22:D$33)+SUM('1. LRAMVA Summary'!D$34:D$35)*(MONTH($E80)-1)/12)*$H80 -> 117.5099467 | K80: =(SUM('1. LRAMVA Summary'!E$22:E$33)+SUM('1. LRAMVA Summary'!E$34:E$35)*(MONTH($E80)-1)/12)*$H80 -> 103.7834062 | L80: =(SUM('1. LRAMVA Summary'!F$22:F$33)+SUM('1. LRAMVA Summary'!F$34:F$35)*(MONTH($E80)-1)/12)*$H80 -> -24.25631462 | M80: =(SUM('1. LRAMVA Summary'!G$22:G$33)+SUM('1. LRAMVA Summary'!G$34:G$35)*(MONTH($E80)-1)/12)*$H80 -> -0.6509728296 | N80: =(SUM('1. LRAMVA Summary'!H$22:H$33)+SUM('1. LRAMVA Summary'!H$34:H$35)*(MONTH($E80)-1)/12)*$H80 -> -15.14760592 | O80: =(SUM('1. LRAMVA Summary'!I$22:I$33)+SUM('1. LRAMVA Summary'!I$34:I$35)*(MONTH($E80)-1)/12)*$H80 -> -2.317853481 | P80: =(SUM('1. LRAMVA Summary'!J$22:J$33)+SUM('1. LRAMVA Summary'!J$34:J$35)*(MONTH($E80)-1)/12)*$H80 -> -23.39377107 | Q80: =SUM(I80:P80) -> 152.1368312
E81: 2015-06-01 | F81: 2011-2015 | G81: Q2 | H81: 0.0009166666667 | I81: =(SUM('1. LRAMVA Summary'!C$22:C$33)+SUM('1. LRAMVA Summary'!C$34:C$35)*(MONTH($E81)-1)/12)*$H81 -> 7.500343094 | J81: =(SUM('1. LRAMVA Summary'!D$22:D$33)+SUM('1. LRAMVA Summary'!D$34:D$35)*(MONTH($E81)-1)/12)*$H81 -> 134.6370898 | K81: =(SUM('1. LRAMVA Summary'!E$22:E$33)+SUM('1. LRAMVA Summary'!E$34:E$35)*(MONTH($E81)-1)/12)*$H81 -> 109.7031506 | L81: =(SUM('1. LRAMVA Summary'!F$22:F$33)+SUM('1. LRAMVA Summary'!F$34:F$35)*(MONTH($E81)-1)/12)*$H81 -> -25.14535039 | M81: =(SUM('1. LRAMVA Summary'!G$22:G$33)+SUM('1. LRAMVA Summary'!G$34:G$35)*(MONTH($E81)-1)/12)*$H81 -> -0.6749507009 | N81: =(SUM('1. LRAMVA Summary'!H$22:H$33)+SUM('1. LRAMVA Summary'!H$34:H$35)*(MONTH($E81)-1)/12)*$H81 -> -15.70950471 | O81: =(SUM('1. LRAMVA Summary'!I$22:I$33)+SUM('1. LRAMVA Summary'!I$34:I$35)*(MONTH($E81)-1)/12)*$H81 -> -2.406305825 | P81: =(SUM('1. LRAMVA Summary'!J$22:J$33)+SUM('1. LRAMVA Summary'!J$34:J$35)*(MONTH($E81)-1)/12)*$H81 -> -24.23598468 | Q81: 183.6684872
E82: 2015-07-01 | F82: 2011-2015 | G82: Q3 | H82: =$C$34/12 -> 0.0009166666667 | I82: =(SUM('1. LRAMVA Summary'!C$22:C$33)+SUM('1. LRAMVA Summary'!C$34:C$35)*(MONTH($E82)-1)/12)*$H82 -> 18.39069 | J82: =(SUM('1. LRAMVA Summary'!D$22:D$33)+SUM('1. LRAMVA Summary'!D$34:D$35)*(MONTH($E82)-1)/12)*$H82 -> 151.7642329 | K82: =(SUM('1. LRAMVA Summary'!E$22:E$33)+SUM('1. LRAMVA Summary'!E$34:E$35)*(MONTH($E82)-1)/12)*$H82 -> 115.622895 | L82: =(SUM('1. LRAMVA Summary'!F$22:F$33)+SUM('1. LRAMVA Summary'!F$34:F$35)*(MONTH($E82)-1)/12)*$H82 -> -26.03438616 | M82: =(SUM('1. LRAMVA Summary'!G$22:G$33)+SUM('1. LRAMVA Summary'!G$34:G$35)*(MONTH($E82)-1)/12)*$H82 -> -0.6989285722 | N82: =(SUM('1. LRAMVA Summary'!H$22:H$33)+SUM('1. LRAMVA Summary'!H$34:H$35)*(MONTH($E82)-1)/12)*$H82 -> -16.2714035 | O82: =(SUM('1. LRAMVA Summary'!I$22:I$33)+SUM('1. LRAMVA Summary'!I$34:I$35)*(MONTH($E82)-1)/12)*$H82 -> -2.494758169 | P82: =(SUM('1. LRAMVA Summary'!J$22:J$33)+SUM('1. LRAMVA Summary'!J$34:J$35)*(MONTH($E82)-1)/12)*$H82 -> -25.07819829 | Q82: 215.2001432
E83: 2015-08-01 | F83: 2011-2015 | G83: Q3 | H83: =$C$34/12 -> 0.0009166666667 | I83: =(SUM('1. LRAMVA Summary'!C$22:C$33)+SUM('1. LRAMVA Summary'!C$34:C$35)*(MONTH($E83)-1)/12)*$H83 -> 29.2810369 | J83: =(SUM('1. LRAMVA Summary'!D$22:D$33)+SUM('1. LRAMVA Summary'!D$34:D$35)*(MONTH($E83)-1)/12)*$H83 -> 168.891376 | K83: =(SUM('1. LRAMVA Summary'!E$22:E$33)+SUM('1. LRAMVA Summary'!E$34:E$35)*(MONTH($E83)-1)/12)*$H83 -> 121.5426394 | L83: =(SUM('1. LRAMVA Summary'!F$22:F$33)+SUM('1. LRAMVA Summary'!F$34:F$35)*(MONTH($E83)-1)/12)*$H83 -> -26.92342192 | M83: =(SUM('1. LRAMVA Summary'!G$22:G$33)+SUM('1. LRAMVA Summary'!G$34:G$35)*(MONTH($E83)-1)/12)*$H83 -> -0.7229064435 | N83: =(SUM('1. LRAMVA Summary'!H$22:H$33)+SUM('1. LRAMVA Summary'!H$34:H$35)*(MONTH($E83)-1)/12)*$H83 -> -16.83330229 | O83: =(SUM('1. LRAMVA Summary'!I$22:I$33)+SUM('1. LRAMVA Summary'!I$34:I$35)*(MONTH($E83)-1)/12)*$H83 -> -2.583210514 | P83: =(SUM('1. LRAMVA Summary'!J$22:J$33)+SUM('1. LRAMVA Summary'!J$34:J$35)*(MONTH($E83)-1)/12)*$H83 -> -25.9204119 | Q83: 246.7317993
E84: 2015-09-01 | F84: 2011-2015 | G84: Q3 | H84: 0.0009166666667 | I84: =(SUM('1. LRAMVA Summary'!C$22:C$33)+SUM('1. LRAMVA Summary'!C$34:C$35)*(MONTH($E84)-1)/12)*$H84 -> 40.1713838 | J84: =(SUM('1. LRAMVA Summary'!D$22:D$33)+SUM('1. LRAMVA Summary'!D$34:D$35)*(MONTH($E84)-1)/12)*$H84 -> 186.0185191 | K84: =(SUM('1. LRAMVA Summary'!E$22:E$33)+SUM('1. LRAMVA Summary'!E$34:E$35)*(MONTH($E84)-1)/12)*$H84 -> 127.4623838 | L84: =(SUM('1. LRAMVA Summary'!F$22:F$33)+SUM('1. LRAMVA Summary'!F$34:F$35)*(MONTH($E84)-1)/12)*$H84 -> -27.81245769 | M84: =(SUM('1. LRAMVA Summary'!G$22:G$33)+SUM('1. LRAMVA Summary'!G$34:G$35)*(MONTH($E84)-1)/12)*$H84 -> -0.7468843148 | N84: =(SUM('1. LRAMVA Summary'!H$22:H$33)+SUM('1. LRAMVA Summary'!H$34:H$35)*(MONTH($E84)-1)/12)*$H84 -> -17.39520108 | O84: =(SUM('1. LRAMVA Summary'!I$22:I$33)+SUM('1. LRAMVA Summary'!I$34:I$35)*(MONTH($E84)-1)/12)*$H84 -> -2.671662858 | P84: =(SUM('1. LRAMVA Summary'!J$22:J$33)+SUM('1. LRAMVA Summary'!J$34:J$35)*(MONTH($E84)-1)/12)*$H84 -> -26.76262551 | Q84: 278.2634553
E85: 2015-10-01 | F85: 2011-2015 | G85: Q4 | H85: =$C$35/12 -> 0.0009166666667 | I85: =(SUM('1. LRAMVA Summary'!C$22:C$33)+SUM('1. LRAMVA Summary'!C$34:C$35)*(MONTH($E85)-1)/12)*$H85 -> 51.0617307 | J85: =(SUM('1. LRAMVA Summary'!D$22:D$33)+SUM('1. LRAMVA Summary'!D$34:D$35)*(MONTH($E85)-1)/12)*$H85 -> 203.1456622 | K85: =(SUM('1. LRAMVA Summary'!E$22:E$33)+SUM('1. LRAMVA Summary'!E$34:E$35)*(MONTH($E85)-1)/12)*$H85 -> 133.3821282 | L85: =(SUM('1. LRAMVA Summary'!F$22:F$33)+SUM('1. LRAMVA Summary'!F$34:F$35)*(MONTH($E85)-1)/12)*$H85 -> -28.70149346 | M85: =(SUM('1. LRAMVA Summary'!G$22:G$33)+SUM('1. LRAMVA Summary'!G$34:G$35)*(MONTH($E85)-1)/12)*$H85 -> -0.7708621861 | N85: =(SUM('1. LRAMVA Summary'!H$22:H$33)+SUM('1. LRAMVA Summary'!H$34:H$35)*(MONTH($E85)-1)/12)*$H85 -> -17.95709988 | O85: =(SUM('1. LRAMVA Summary'!I$22:I$33)+SUM('1. LRAMVA Summary'!I$34:I$35)*(MONTH($E85)-1)/12)*$H85 -> -2.760115203 | P85: =(SUM('1. LRAMVA Summary'!J$22:J$33)+SUM('1. LRAMVA Summary'!J$34:J$35)*(MONTH($E85)-1)/12)*$H85 -> -27.60483912 | Q85: 309.7951113
E86: 2015-11-01 | F86: 2011-2015 | G86: Q4 | H86: =$C$35/12 -> 0.0009166666667 | I86: =(SUM('1. LRAMVA Summary'!C$22:C$33)+SUM('1. LRAMVA Summary'!C$34:C$35)*(MONTH($E86)-1)/12)*$H86 -> 61.9520776 | J86: =(SUM('1. LRAMVA Summary'!D$22:D$33)+SUM('1. LRAMVA Summary'!D$34:D$35)*(MONTH($E86)-1)/12)*$H86 -> 220.2728053 | K86: =(SUM('1. LRAMVA Summary'!E$22:E$33)+SUM('1. LRAMVA Summary'!E$34:E$35)*(MONTH($E86)-1)/12)*$H86 -> 139.3018726 | L86: =(SUM('1. LRAMVA Summary'!F$22:F$33)+SUM('1. LRAMVA Summary'!F$34:F$35)*(MONTH($E86)-1)/12)*$H86 -> -29.59052922 | M86: =(SUM('1. LRAMVA Summary'!G$22:G$33)+SUM('1. LRAMVA Summary'!G$34:G$35)*(MONTH($E86)-1)/12)*$H86 -> -0.7948400574 | N86: =(SUM('1. LRAMVA Summary'!H$22:H$33)+SUM('1. LRAMVA Summary'!H$34:H$35)*(MONTH($E86)-1)/12)*$H86 -> -18.51899867 | O86: =(SUM('1. LRAMVA Summary'!I$22:I$33)+SUM('1. LRAMVA Summary'!I$34:I$35)*(MONTH($E86)-1)/12)*$H86 -> -2.848567547 | P86: =(SUM('1. LRAMVA Summary'!J$22:J$33)+SUM('1. LRAMVA Summary'!J$34:J$35)*(MONTH($E86)-1)/12)*$H86 -> -28.44705273 | Q86: 341.3267673
E87: 2015-12-01 | F87: 2011-2015 | G87: Q4 | H87: 0.0009166666667 | I87: =(SUM('1. LRAMVA Summary'!C$22:C$33)+SUM('1. LRAMVA Summary'!C$34:C$35)*(MONTH($E87)-1)/12)*$H87 -> 72.8424245 | J87: =(SUM('1. LRAMVA Summary'!D$22:D$33)+SUM('1. LRAMVA Summary'!D$34:D$35)*(MONTH($E87)-1)/12)*$H87 -> 237.3999484 | K87: =(SUM('1. LRAMVA Summary'!E$22:E$33)+SUM('1. LRAMVA Summary'!E$34:E$35)*(MONTH($E87)-1)/12)*$H87 -> 145.221617 | L87: =(SUM('1. LRAMVA Summary'!F$22:F$33)+SUM('1. LRAMVA Summary'!F$34:F$35)*(MONTH($E87)-1)/12)*$H87 -> -30.47956499 | M87: =(SUM('1. LRAMVA Summary'!G$22:G$33)+SUM('1. LRAMVA Summary'!G$34:G$35)*(MONTH($E87)-1)/12)*$H87 -> -0.8188179287 | N87: =(SUM('1. LRAMVA Summary'!H$22:H$33)+SUM('1. LRAMVA Summary'!H$34:H$35)*(MONTH($E87)-1)/12)*$H87 -> -19.08089746 | O87: =(SUM('1. LRAMVA Summary'!I$22:I$33)+SUM('1. LRAMVA Summary'!I$34:I$35)*(MONTH($E87)-1)/12)*$H87 -> -2.937019892 | P87: =(SUM('1. LRAMVA Summary'!J$22:J$33)+SUM('1. LRAMVA Summary'!J$34:J$35)*(MONTH($E87)-1)/12)*$H87 -> -29.28926634 | Q87: 372.8584234
E88: Total for fiscal year 2015 | I88: =SUM(I75:I87) -> -1313.11549 | J88: =SUM(J75:J87) -> 2393.051916 | K88: =SUM(K75:K87) -> 2475.159955 | L88: -644.3830209 | M88: -17.26166473 | N88: -400.6045425 | O88: -60.67807985 | P88: -625.546162 | Q88: =SUM(Q75:Q87) -> 1806.622911
E89: Amount Cleared
E90: Opening Balance for fiscal year 2016 | I90: =I88+I89 -> -1313.11549 | J90: =J88+J89 -> 2393.051916 | K90: =K88+K89 -> 2475.159955 | L90: =L88+L89 -> -644.3830209 | M90: =M88+M89 -> -17.26166473 | N90: =N88+N89 -> -400.6045425 | O90: =O88+O89 -> -60.67807985 | P90: =P88+P89 -> -625.546162 | Q90: =Q88+Q89 -> 1806.622911
E91: 2016-01-01 | F91: 2011-2016 | G91: Q1 | H91: =$C$36/12 -> 0.0009166666667 | I91: =(SUM('1. LRAMVA Summary'!C$22:C$36)+SUM(0)*(MONTH($E91)-1)/12)*$H91 -> 83.7327714 | J91: =(SUM('1. LRAMVA Summary'!D$22:D$36)+SUM(0)*(MONTH($E91)-1)/12)*$H91 -> 254.5270915 | K91: =(SUM('1. LRAMVA Summary'!E$22:E$36)+SUM(0)*(MONTH($E91)-1)/12)*$H91 -> 151.1413615 | L91: =(SUM('1. LRAMVA Summary'!F$22:F$36)+SUM(0)*(MONTH($E91)-1)/12)*$H91 -> -31.36860076 | M91: =(SUM('1. LRAMVA Summary'!G$22:G$36)+SUM(0)*(MONTH($E91)-1)/12)*$H91 -> -0.8427958 | N91: =(SUM('1. LRAMVA Summary'!H$22:H$36)+SUM(0)*(MONTH($E91)-1)/12)*$H91 -> -19.64279625 | O91: =(SUM('1. LRAMVA Summary'!I$22:I$36)+SUM(0)*(MONTH($E91)-1)/12)*$H91 -> -3.025472236 | P91: =(SUM('1. LRAMVA Summary'!J$22:J$36)+SUM(0)*(MONTH($E91)-1)/12)*$H91 -> -30.13147995 | Q91: =SUM(I91:P91) -> 404.3900794
E92: 2016-02-01 | F92: 2011-2016 | G92: Q1 | H92: =$C$36/12 -> 0.0009166666667 | I92: =(SUM('1. LRAMVA Summary'!C$22:C$36)+SUM(0)*(MONTH($E92)-1)/12)*$H92 -> 83.7327714 | J92: =(SUM('1. LRAMVA Summary'!D$22:D$36)+SUM(0)*(MONTH($E92)-1)/12)*$H92 -> 254.5270915 | K92: =(SUM('1. LRAMVA Summary'!E$22:E$36)+SUM(0)*(MONTH($E92)-1)/12)*$H92 -> 151.1413615 | L92: =(SUM('1. LRAMVA Summary'!F$22:F$36)+SUM(0)*(MONTH($E92)-1)/12)*$H92 -> -31.36860076 | M92: =(SUM('1. LRAMVA Summary'!G$22:G$36)+SUM(0)*(MONTH($E92)-1)/12)*$H92 -> -0.8427958 | N92: =(SUM('1. LRAMVA Summary'!H$22:H$36)+SUM(0)*(MONTH($E92)-1)/12)*$H92 -> -19.64279625 | O92: =(SUM('1. LRAMVA Summary'!I$22:I$36)+SUM(0)*(MONTH($E92)-1)/12)*$H92 -> -3.025472236 | P92: =(SUM('1. LRAMVA Summary'!J$22:J$36)+SUM(0)*(MONTH($E92)-1)/12)*$H92 -> -30.13147995 | Q92: =SUM(I92:P92) -> 404.3900794
E93: 2016-03-01 | F93: 2011-2016 | G93: Q1 | H93: 0.0009166666667 | I93: =(SUM('1. LRAMVA Summary'!C$22:C$36)+SUM(0)*(MONTH($E93)-1)/12)*$H93 -> 83.7327714 | J93: =(SUM('1. LRAMVA Summary'!D$22:D$36)+SUM(0)*(MONTH($E93)-1)/12)*$H93 -> 254.5270915 | K93: =(SUM('1. LRAMVA Summary'!E$22:E$36)+SUM(0)*(MONTH($E93)-1)/12)*$H93 -> 151.1413615 | L93: =(SUM('1. LRAMVA Summary'!F$22:F$36)+SUM(0)*(MONTH($E93)-1)/12)*$H93 -> -31.36860076 | M93: =(SUM('1. LRAMVA Summary'!G$22:G$36)+SUM(0)*(MONTH($E93)-1)/12)*$H93 -> -0.8427958 | N93: =(SUM('1. LRAMVA Summary'!H$22:H$36)+SUM(0)*(MONTH($E93)-1)/12)*$H93 -> -19.64279625 | O93: =(SUM('1. LRAMVA Summary'!I$22:I$36)+SUM(0)*(MONTH($E93)-1)/12)*$H93 -> -3.025472236 | P93: =(SUM('1. LRAMVA Summary'!J$22:J$36)+SUM(0)*(MONTH($E93)-1)/12)*$H93 -> -30.13147995 | Q93: 404.3900794
E94: 2016-04-01 | F94: 2011-2016 | G94: Q2 | H94: =$C$37/12 -> 0.0009166666667 | I94: =(SUM('1. LRAMVA Summary'!C$22:C$36)+SUM(0)*(MONTH($E94)-1)/12)*$H94 -> 83.7327714 | J94: =(SUM('1. LRAMVA Summary'!D$22:D$36)+SUM(0)*(MONTH($E94)-1)/12)*$H94 -> 254.5270915 | K94: =(SUM('1. LRAMVA Summary'!E$22:E$36)+SUM(0)*(MONTH($E94)-1)/12)*$H94 -> 151.1413615 | L94: =(SUM('1. LRAMVA Summary'!F$22:F$36)+SUM(0)*(MONTH($E94)-1)/12)*$H94 -> -31.36860076 | M94: =(SUM('1. LRAMVA Summary'!G$22:G$36)+SUM(0)*(MONTH($E94)-1)/12)*$H94 -> -0.8427958 | N94: =(SUM('1. LRAMVA Summary'!H$22:H$36)+SUM(0)*(MONTH($E94)-1)/12)*$H94 -> -19.64279625 | O94: =(SUM('1. LRAMVA Summary'!I$22:I$36)+SUM(0)*(MONTH($E94)-1)/12)*$H94 -> -3.025472236 | P94: =(SUM('1. LRAMVA Summary'!J$22:J$36)+SUM(0)*(MONTH($E94)-1)/12)*$H94 -> -30.13147995 | Q94: 404.3900794
E95: 2016-05-01 | F95: 2011-2016 | G95: Q2 | H95: =$C$37/12 -> 0.0009166666667 | I95: =(SUM('1. LRAMVA Summary'!C$22:C$36)+SUM(0)*(MONTH($E95)-1)/12)*$H95 -> 83.7327714 | J95: =(SUM('1. LRAMVA Summary'!D$22:D$36)+SUM(0)*(MONTH($E95)-1)/12)*$H95 -> 254.5270915 | K95: =(SUM('1. LRAMVA Summary'!E$22:E$36)+SUM(0)*(MONTH($E95)-1)/12)*$H95 -> 151.1413615 | L95: =(SUM('1. LRAMVA Summary'!F$22:F$36)+SUM(0)*(MONTH($E95)-1)/12)*$H95 -> -31.36860076 | M95: =(SUM('1. LRAMVA Summary'!G$22:G$36)+SUM(0)*(MONTH($E95)-1)/12)*$H95 -> -0.8427958 | N95: =(SUM('1. LRAMVA Summary'!H$22:H$36)+SUM(0)*(MONTH($E95)-1)/12)*$H95 -> -19.64279625 | O95: =(SUM('1. LRAMVA Summary'!I$22:I$36)+SUM(0)*(MONTH($E95)-1)/12)*$H95 -> -3.025472236 | P95: =(SUM('1. LRAMVA Summary'!J$22:J$36)+SUM(0)*(MONTH($E95)-1)/12)*$H95 -> -30.13147995 | Q95: 404.3900794
E96: 2016-06-01 | F96: 2011-2016 | G96: Q2 | H96: 0.0009166666667 | I96: =(SUM('1. LRAMVA Summary'!C$22:C$36)+SUM(0)*(MONTH($E96)-1)/12)*$H96 -> 83.7327714 | J96: =(SUM('1. LRAMVA Summary'!D$22:D$36)+SUM(0)*(MONTH($E96)-1)/12)*$H96 -> 254.5270915 | K96: =(SUM('1. LRAMVA Summary'!E$22:E$36)+SUM(0)*(MONTH($E96)-1)/12)*$H96 -> 151.1413615 | L96: =(SUM('1. LRAMVA Summary'!F$22:F$36)+SUM(0)*(MONTH($E96)-1)/12)*$H96 -> -31.36860076 | M96: =(SUM('1. LRAMVA Summary'!G$22:G$36)+SUM(0)*(MONTH($E96)-1)/12)*$H96 -> -0.8427958 | N96: =(SUM('1. LRAMVA Summary'!H$22:H$36)+SUM(0)*(MONTH($E96)-1)/12)*$H96 -> -19.64279625 | O96: =(SUM('1. LRAMVA Summary'!I$22:I$36)+SUM(0)*(MONTH($E96)-1)/12)*$H96 -> -3.025472236 | P96: =(SUM('1. LRAMVA Summary'!J$22:J$36)+SUM(0)*(MONTH($E96)-1)/12)*$H96 -> -30.13147995 | Q96: 404.3900794
E97: 2016-07-01 | F97: 2011-2016 | G97: Q3 | H97: =$C$38/12 -> 0.0009166666667 | I97: =(SUM('1. LRAMVA Summary'!C$22:C$36)+SUM(0)*(MONTH($E97)-1)/12)*$H97 -> 83.7327714 | J97: =(SUM('1. LRAMVA Summary'!D$22:D$36)+SUM(0)*(MONTH($E97)-1)/12)*$H97 -> 254.5270915 | K97: =(SUM('1. LRAMVA Summary'!E$22:E$36)+SUM(0)*(MONTH($E97)-1)/12)*$H97 -> 151.1413615 | L97: =(SUM('1. LRAMVA Summary'!F$22:F$36)+SUM(0)*(MONTH($E97)-1)/12)*$H97 -> -31.36860076 | M97: =(SUM('1. LRAMVA Summary'!G$22:G$36)+SUM(0)*(MONTH($E97)-1)/12)*$H97 -> -0.8427958 | N97: =(SUM('1. LRAMVA Summary'!H$22:H$36)+SUM(0)*(MONTH($E97)-1)/12)*$H97 -> -19.64279625 | O97: =(SUM('1. LRAMVA Summary'!I$22:I$36)+SUM(0)*(MONTH($E97)-1)/12)*$H97 -> -3.025472236 | P97: =(SUM('1. LRAMVA Summary'!J$22:J$36)+SUM(0)*(MONTH($E97)-1)/12)*$H97 -> -30.13147995 | Q97: 404.3900794
E98: 2016-08-01 | F98: 2011-2016 | G98: Q3 | H98: =$C$38/12 -> 0.0009166666667 | I98: =(SUM('1. LRAMVA Summary'!C$22:C$36)+SUM(0)*(MONTH($E98)-1)/12)*$H98 -> 83.7327714 | J98: =(SUM('1. LRAMVA Summary'!D$22:D$36)+SUM(0)*(MONTH($E98)-1)/12)*$H98 -> 254.5270915 | K98: =(SUM('1. LRAMVA Summary'!E$22:E$36)+SUM(0)*(MONTH($E98)-1)/12)*$H98 -> 151.1413615 | L98: =(SUM('1. LRAMVA Summary'!F$22:F$36)+SUM(0)*(MONTH($E98)-1)/12)*$H98 -> -31.36860076 | M98: =(SUM('1. LRAMVA Summary'!G$22:G$36)+SUM(0)*(MONTH($E98)-1)/12)*$H98 -> -0.8427958 | N98: =(SUM('1. LRAMVA Summary'!H$22:H$36)+SUM(0)*(MONTH($E98)-1)/12)*$H98 -> -19.64279625 | O98: =(SUM('1. LRAMVA Summary'!I$22:I$36)+SUM(0)*(MONTH($E98)-1)/12)*$H98 -> -3.025472236 | P98: =(SUM('1. LRAMVA Summary'!J$22:J$36)+SUM(0)*(MONTH($E98)-1)/12)*$H98 -> -30.13147995 | Q98: 404.3900794
E99: 2016-09-01 | F99: 2011-2016 | G99: Q3 | H99: 0.0009166666667 | I99: =(SUM('1. LRAMVA Summary'!C$22:C$36)+SUM(0)*(MONTH($E99)-1)/12)*$H99 -> 83.7327714 | J99: =(SUM('1. LRAMVA Summary'!D$22:D$36)+SUM(0)*(MONTH($E99)-1)/12)*$H99 -> 254.5270915 | K99: =(SUM('1. LRAMVA Summary'!E$22:E$36)+SUM(0)*(MONTH($E99)-1)/12)*$H99 -> 151.1413615 | L99: =(SUM('1. LRAMVA Summary'!F$22:F$36)+SUM(0)*(MONTH($E99)-1)/12)*$H99 -> -31.36860076 | M99: =(SUM('1. LRAMVA Summary'!G$22:G$36)+SUM(0)*(MONTH($E99)-1)/12)*$H99 -> -0.8427958 | N99: =(SUM('1. LRAMVA Summary'!H$22:H$36)+SUM(0)*(MONTH($E99)-1)/12)*$H99 -> -19.64279625 | O99: =(SUM('1. LRAMVA Summary'!I$22:I$36)+SUM(0)*(MONTH($E99)-1)/12)*$H99 -> -3.025472236 | P99: =(SUM('1. LRAMVA Summary'!J$22:J$36)+SUM(0)*(MONTH($E99)-1)/12)*$H99 -> -30.13147995 | Q99: 404.3900794
E100: 2016-10-01 | F100: 2011-2016 | G100: Q4 | H100: =$C$39/12 -> 0.0009166666667 | I100: =(SUM('1. LRAMVA Summary'!C$22:C$36)+SUM(0)*(MONTH($E100)-1)/12)*$H100 -> 83.7327714 | J100: =(SUM('1. LRAMVA Summary'!D$22:D$36)+SUM(0)*(MONTH($E100)-1)/12)*$H100 -> 254.5270915 | K100: =(SUM('1. LRAMVA Summary'!E$22:E$36)+SUM(0)*(MONTH($E100)-1)/12)*$H100 -> 151.1413615 | L100: =(SUM('1. LRAMVA Summary'!F$22:F$36)+SUM(0)*(MONTH($E100)-1)/12)*$H100 -> -31.36860076 | M100: =(SUM('1. LRAMVA Summary'!G$22:G$36)+SUM(0)*(MONTH($E100)-1)/12)*$H100 -> -0.8427958 | N100: =(SUM('1. LRAMVA Summary'!H$22:H$36)+SUM(0)*(MONTH($E100)-1)/12)*$H100 -> -19.64279625 | O100: =(SUM('1. LRAMVA Summary'!I$22:I$36)+SUM(0)*(MONTH($E100)-1)/12)*$H100 -> -3.025472236 | P100: =(SUM('1. LRAMVA Summary'!J$22:J$36)+SUM(0)*(MONTH($E100)-1)/12)*$H100 -> -30.13147995 | Q100: 404.3900794
E101: 2016-11-01 | F101: 2011-2016 | G101: Q4 | H101: =$C$39/12 -> 0.0009166666667 | I101: =(SUM('1. LRAMVA Summary'!C$22:C$36)+SUM(0)*(MONTH($E101)-1)/12)*$H101 -> 83.7327714 | J101: =(SUM('1. LRAMVA Summary'!D$22:D$36)+SUM(0)*(MONTH($E101)-1)/12)*$H101 -> 254.5270915 | K101: =(SUM('1. LRAMVA Summary'!E$22:E$36)+SUM(0)*(MONTH($E101)-1)/12)*$H101 -> 151.1413615 | L101: =(SUM('1. LRAMVA Summary'!F$22:F$36)+SUM(0)*(MONTH($E101)-1)/12)*$H101 -> -31.36860076 | M101: =(SUM('1. LRAMVA Summary'!G$22:G$36)+SUM(0)*(MONTH($E101)-1)/12)*$H101 -> -0.8427958 | N101: =(SUM('1. LRAMVA Summary'!H$22:H$36)+SUM(0)*(MONTH($E101)-1)/12)*$H101 -> -19.64279625 | O101: =(SUM('1. LRAMVA Summary'!I$22:I$36)+SUM(0)*(MONTH($E101)-1)/12)*$H101 -> -3.025472236 | P101: =(SUM('1. LRAMVA Summary'!J$22:J$36)+SUM(0)*(MONTH($E101)-1)/12)*$H101 -> -30.13147995 | Q101: 404.3900794
E102: 2016-12-01 | F102: 2011-2016 | G102: Q4 | H102: 0.0009166666667 | I102: =(SUM('1. LRAMVA Summary'!C$22:C$36)+SUM(0)*(MONTH($E102)-1)/12)*$H102 -> 83.7327714 | J102: =(SUM('1. LRAMVA Summary'!D$22:D$36)+SUM(0)*(MONTH($E102)-1)/12)*$H102 -> 254.5270915 | K102: =(SUM('1. LRAMVA Summary'!E$22:E$36)+SUM(0)*(MONTH($E102)-1)/12)*$H102 -> 151.1413615 | L102: =(SUM('1. LRAMVA Summary'!F$22:F$36)+SUM(0)*(MONTH($E102)-1)/12)*$H102 -> -31.36860076 | M102: =(SUM('1. LRAMVA Summary'!G$22:G$36)+SUM(0)*(MONTH($E102)-1)/12)*$H102 -> -0.8427958 | N102: =(SUM('1. LRAMVA Summary'!H$22:H$36)+SUM(0)*(MONTH($E102)-1)/12)*$H102 -> -19.64279625 | O102: =(SUM('1. LRAMVA Summary'!I$22:I$36)+SUM(0)*(MONTH($E102)-1)/12)*$H102 -> -3.025472236 | P102: =(SUM('1. LRAMVA Summary'!J$22:J$36)+SUM(0)*(MONTH($E102)-1)/12)*$H102 -> -30.13147995 | Q102: 404.3900794
E103: Total for fiscal year 2016 | I103: =SUM(I90:I102) -> -308.3222333 | J103: =SUM(J90:J102) -> 5447.377014 | K103: =SUM(K90:K102) -> 4288.856292 | L103: -1020.80623 | M103: -27.37521433 | N103: -636.3180975 | O103: -96.98374668 | P103: -987.1239214 | Q103: =SUM(Q90:Q102) -> 6659.303863
E104: Amount Cleared
E105: Opening Balance for fiscal year 2017 | I105: =I103+I104 -> -308.3222333 | J105: =J103+J104 -> 5447.377014 | K105: =K103+K104 -> 4288.856292 | L105: =L103+L104 -> -1020.80623 | M105: =M103+M104 -> -27.37521433 | N105: =N103+N104 -> -636.3180975 | O105: =O103+O104 -> -96.98374668 | P105: =P103+P104 -> -987.1239214 | Q105: =Q103+Q104 -> 6659.303863
E106: 2017-01-01 | F106: 2011-2017 | G106: Q1 | H106: =$C$40/12 -> 0.0009166666667 | I106: =(SUM('1. LRAMVA Summary'!C$22:C$36)+SUM(0)*(MONTH($E106)-1)/12)*$H106 -> 83.7327714 | J106: =(SUM('1. LRAMVA Summary'!D$22:D$36)+SUM(0)*(MONTH($E106)-1)/12)*$H106 -> 254.5270915 | K106: =(SUM('1. LRAMVA Summary'!E$22:E$36)+SUM(0)*(MONTH($E106)-1)/12)*$H106 -> 151.1413615 | L106: =(SUM('1. LRAMVA Summary'!F$22:F$36)+SUM(0)*(MONTH($E106)-1)/12)*$H106 -> -31.36860076 | M106: =(SUM('1. LRAMVA Summary'!G$22:G$36)+SUM(0)*(MONTH($E106)-1)/12)*$H106 -> -0.8427958 | N106: =(SUM('1. LRAMVA Summary'!H$22:H$36)+SUM(0)*(MONTH($E106)-1)/12)*$H106 -> -19.64279625 | O106: =(SUM('1. LRAMVA Summary'!I$22:I$36)+SUM(0)*(MONTH($E106)-1)/12)*$H106 -> -3.025472236 | P106: =(SUM('1. LRAMVA Summary'!J$22:J$36)+SUM(0)*(MONTH($E106)-1)/12)*$H106 -> -30.13147995 | Q106: =SUM(I106:P106) -> 404.3900794
E107: 2017-02-01 | F107: 2011-2017 | G107: Q1 | H107: =$C$40/12 -> 0.0009166666667 | I107: =(SUM('1. LRAMVA Summary'!C$22:C$36)+SUM(0)*(MONTH($E107)-1)/12)*$H107 -> 83.7327714 | J107: =(SUM('1. LRAMVA Summary'!D$22:D$36)+SUM(0)*(MONTH($E107)-1)/12)*$H107 -> 254.5270915 | K107: =(SUM('1. LRAMVA Summary'!E$22:E$36)+SUM(0)*(MONTH($E107)-1)/12)*$H107 -> 151.1413615 | L107: =(SUM('1. LRAMVA Summary'!F$22:F$36)+SUM(0)*(MONTH($E107)-1)/12)*$H107 -> -31.36860076 | M107: =(SUM('1. LRAMVA Summary'!G$22:G$36)+SUM(0)*(MONTH($E107)-1)/12)*$H107 -> -0.8427958 | N107: =(SUM('1. LRAMVA Summary'!H$22:H$36)+SUM(0)*(MONTH($E107)-1)/12)*$H107 -> -19.64279625 | O107: =(SUM('1. LRAMVA Summary'!I$22:I$36)+SUM(0)*(MONTH($E107)-1)/12)*$H107 -> -3.025472236 | P107: =(SUM('1. LRAMVA Summary'!J$22:J$36)+SUM(0)*(MONTH($E107)-1)/12)*$H107 -> -30.13147995 | Q107: =SUM(I107:P107) -> 404.3900794
E108: 2017-03-01 | F108: 2011-2017 | G108: Q1 | H108: 0.0009166666667 | I108: =(SUM('1. LRAMVA Summary'!C$22:C$36)+SUM(0)*(MONTH($E108)-1)/12)*$H108 -> 83.7327714 | J108: =(SUM('1. LRAMVA Summary'!D$22:D$36)+SUM(0)*(MONTH($E108)-1)/12)*$H108 -> 254.5270915 | K108: =(SUM('1. LRAMVA Summary'!E$22:E$36)+SUM(0)*(MONTH($E108)-1)/12)*$H108 -> 151.1413615 | L108: =(SUM('1. LRAMVA Summary'!F$22:F$36)+SUM(0)*(MONTH($E108)-1)/12)*$H108 -> -31.36860076 | M108: =(SUM('1. LRAMVA Summary'!G$22:G$36)+SUM(0)*(MONTH($E108)-1)/12)*$H108 -> -0.8427958 | N108: =(SUM('1. LRAMVA Summary'!H$22:H$36)+SUM(0)*(MONTH($E108)-1)/12)*$H108 -> -19.64279625 | O108: =(SUM('1. LRAMVA Summary'!I$22:I$36)+SUM(0)*(MONTH($E108)-1)/12)*$H108 -> -3.025472236 | P108: =(SUM('1. LRAMVA Summary'!J$22:J$36)+SUM(0)*(MONTH($E108)-1)/12)*$H108 -> -30.13147995 | Q108: 404.3900794
E109: 2017-04-01 | F109: 2011-2017 | G109: Q2 | H109: =$C$41/12 -> 0.0009166666667 | I109: =(SUM('1. LRAMVA Summary'!C$22:C$36)+SUM(0)*(MONTH($E109)-1)/12)*$H109 -> 83.7327714 | J109: =(SUM('1. LRAMVA Summary'!D$22:D$36)+SUM(0)*(MONTH($E109)-1)/12)*$H109 -> 254.5270915 | K109: =(SUM('1. LRAMVA Summary'!E$22:E$36)+SUM(0)*(MONTH($E109)-1)/12)*$H109 -> 151.1413615 | L109: =(SUM('1. LRAMVA Summary'!F$22:F$36)+SUM(0)*(MONTH($E109)-1)/12)*$H109 -> -31.36860076 | M109: =(SUM('1. LRAMVA Summary'!G$22:G$36)+SUM(0)*(MONTH($E109)-1)/12)*$H109 -> -0.8427958 | N109: =(SUM('1. LRAMVA Summary'!H$22:H$36)+SUM(0)*(MONTH($E109)-1)/12)*$H109 -> -19.64279625 | O109: =(SUM('1. LRAMVA Summary'!I$22:I$36)+SUM(0)*(MONTH($E109)-1)/12)*$H109 -> -3.025472236 | P109: =(SUM('1. LRAMVA Summary'!J$22:J$36)+SUM(0)*(MONTH($E109)-1)/12)*$H109 -> -30.13147995 | Q109: 404.3900794
E110: 2017-05-01 | F110: 2011-2017 | G110: Q2 | H110: =$C$41/12 -> 0.0009166666667 | I110: =(SUM('1. LRAMVA Summary'!C$22:C$36)+SUM(0)*(MONTH($E110)-1)/12)*$H110*0 -> 0 | J110: =(SUM('1. LRAMVA Summary'!D$22:D$36)+SUM(0)*(MONTH($E110)-1)/12)*$H110*0 -> 0 | K110: =(SUM('1. LRAMVA Summary'!E$22:E$36)+SUM(0)*(MONTH($E110)-1)/12)*$H110*0 -> 0 | L110: =(SUM('1. LRAMVA Summary'!F$22:F$36)+SUM(0)*(MONTH($E110)-1)/12)*$H110*0 -> 0 | M110: =(SUM('1. LRAMVA Summary'!G$22:G$36)+SUM(0)*(MONTH($E110)-1)/12)*$H110*0 -> 0 | N110: =(SUM('1. LRAMVA Summary'!H$22:H$36)+SUM(0)*(MONTH($E110)-1)/12)*$H110*0 -> 0 | O110: =(SUM('1. LRAMVA Summary'!I$22:I$36)+SUM(0)*(MONTH($E110)-1)/12)*$H110*0 -> 0 | P110: =(SUM('1. LRAMVA Summary'!J$22:J$36)+SUM(0)*(MONTH($E110)-1)/12)*$H110*0 -> 0 | Q110: 0
E111: 2017-06-01 | F111: 2011-2017 | G111: Q2 | H111: 0.0009166666667 | I111: =(SUM('1. LRAMVA Summary'!C$22:C$36)+SUM(0)*(MONTH($E111)-1)/12)*$H111*0 -> 0 | J111: =(SUM('1. LRAMVA Summary'!D$22:D$36)+SUM(0)*(MONTH($E111)-1)/12)*$H111*0 -> 0 | K111: =(SUM('1. LRAMVA Summary'!E$22:E$36)+SUM(0)*(MONTH($E111)-1)/12)*$H111*0 -> 0 | L111: =(SUM('1. LRAMVA Summary'!F$22:F$36)+SUM(0)*(MONTH($E111)-1)/12)*$H111*0 -> 0 | M111: =(SUM('1. LRAMVA Summary'!G$22:G$36)+SUM(0)*(MONTH($E111)-1)/12)*$H111*0 -> 0 | N111: =(SUM('1. LRAMVA Summary'!H$22:H$36)+SUM(0)*(MONTH($E111)-1)/12)*$H111*0 -> 0 | O111: =(SUM('1. LRAMVA Summary'!I$22:I$36)+SUM(0)*(MONTH($E111)-1)/12)*$H111*0 -> 0 | P111: =(SUM('1. LRAMVA Summary'!J$22:J$36)+SUM(0)*(MONTH($E111)-1)/12)*$H111*0 -> 0 | Q111: 0
E112: 2017-07-01 | F112: 2011-2017 | G112: Q3 | H112: =$C$42/12 -> 0 | I112: =(SUM('1. LRAMVA Summary'!C$22:C$36)+SUM(0)*(MONTH($E112)-1)/12)*$H112*0 -> 0 | J112: =(SUM('1. LRAMVA Summary'!D$22:D$36)+SUM(0)*(MONTH($E112)-1)/12)*$H112*0 -> 0 | K112: =(SUM('1. LRAMVA Summary'!E$22:E$36)+SUM(0)*(MONTH($E112)-1)/12)*$H112*0 -> 0 | L112: =(SUM('1. LRAMVA Summary'!F$22:F$36)+SUM(0)*(MONTH($E112)-1)/12)*$H112*0 -> 0 | M112: =(SUM('1. LRAMVA Summary'!G$22:G$36)+SUM(0)*(MONTH($E112)-1)/12)*$H112*0 -> 0 | N112: =(SUM('1. LRAMVA Summary'!H$22:H$36)+SUM(0)*(MONTH($E112)-1)/12)*$H112*0 -> 0 | O112: =(SUM('1. LRAMVA Summary'!I$22:I$36)+SUM(0)*(MONTH($E112)-1)/12)*$H112*0 -> 0 | P112: =(SUM('1. LRAMVA Summary'!J$22:J$36)+SUM(0)*(MONTH($E112)-1)/12)*$H112*0 -> 0 | Q112: 0
E113: 2017-08-01 | F113: 2011-2017 | G113: Q3 | H113: =$C$42/12 -> 0 | I113: =(SUM('1. LRAMVA Summary'!C$22:C$36)+SUM(0)*(MONTH($E113)-1)/12)*$H113*0 -> 0 | J113: =(SUM('1. LRAMVA Summary'!D$22:D$36)+SUM(0)*(MONTH($E113)-1)/12)*$H113*0 -> 0 | K113: =(SUM('1. LRAMVA Summary'!E$22:E$36)+SUM(0)*(MONTH($E113)-1)/12)*$H113*0 -> 0 | L113: =(SUM('1. LRAMVA Summary'!F$22:F$36)+SUM(0)*(MONTH($E113)-1)/12)*$H113*0 -> 0 | M113: =(SUM('1. LRAMVA Summary'!G$22:G$36)+SUM(0)*(MONTH($E113)-1)/12)*$H113*0 -> 0 | N113: =(SUM('1. LRAMVA Summary'!H$22:H$36)+SUM(0)*(MONTH($E113)-1)/12)*$H113*0 -> 0 | O113: =(SUM('1. LRAMVA Summary'!I$22:I$36)+SUM(0)*(MONTH($E113)-1)/12)*$H113*0 -> 0 | P113: =(SUM('1. LRAMVA Summary'!J$22:J$36)+SUM(0)*(MONTH($E113)-1)/12)*$H113*0 -> 0 | Q113: 0
E114: 2017-09-01 | F114: 2011-2017 | G114: Q3 | H114: 0 | I114: =(SUM('1. LRAMVA Summary'!C$22:C$36)+SUM(0)*(MONTH($E114)-1)/12)*$H114*0 -> 0 | J114: =(SUM('1. LRAMVA Summary'!D$22:D$36)+SUM(0)*(MONTH($E114)-1)/12)*$H114*0 -> 0 | K114: =(SUM('1. LRAMVA Summary'!E$22:E$36)+SUM(0)*(MONTH($E114)-1)/12)*$H114*0 -> 0 | L114: =(SUM('1. LRAMVA Summary'!F$22:F$36)+SUM(0)*(MONTH($E114)-1)/12)*$H114*0 -> 0 | M114: =(SUM('1. LRAMVA Summary'!G$22:G$36)+SUM(0)*(MONTH($E114)-1)/12)*$H114*0 -> 0 | N114: =(SUM('1. LRAMVA Summary'!H$22:H$36)+SUM(0)*(MONTH($E114)-1)/12)*$H114*0 -> 0 | O114: =(SUM('1. LRAMVA Summary'!I$22:I$36)+SUM(0)*(MONTH($E114)-1)/12)*$H114*0 -> 0 | P114: =(SUM('1. LRAMVA Summary'!J$22:J$36)+SUM(0)*(MONTH($E114)-1)/12)*$H114*0 -> 0 | Q114: 0
E115: 2017-10-01 | F115: 2011-2017 | G115: Q4 | H115: =$C$43/12 -> 0 | I115: =(SUM('1. LRAMVA Summary'!C$22:C$36)+SUM(0)*(MONTH($E115)-1)/12)*$H115*0 -> 0 | J115: =(SUM('1. LRAMVA Summary'!D$22:D$36)+SUM(0)*(MONTH($E115)-1)/12)*$H115*0 -> 0 | K115: =(SUM('1. LRAMVA Summary'!E$22:E$36)+SUM(0)*(MONTH($E115)-1)/12)*$H115*0 -> 0 | L115: =(SUM('1. LRAMVA Summary'!F$22:F$36)+SUM(0)*(MONTH($E115)-1)/12)*$H115*0 -> 0 | M115: =(SUM('1. LRAMVA Summary'!G$22:G$36)+SUM(0)*(MONTH($E115)-1)/12)*$H115*0 -> 0 | N115: =(SUM('1. LRAMVA Summary'!H$22:H$36)+SUM(0)*(MONTH($E115)-1)/12)*$H115*0 -> 0 | O115: =(SUM('1. LRAMVA Summary'!I$22:I$36)+SUM(0)*(MONTH($E115)-1)/12)*$H115*0 -> 0 | P115: =(SUM('1. LRAMVA Summary'!J$22:J$36)+SUM(0)*(MONTH($E115)-1)/12)*$H115*0 -> 0 | Q115: 0
E116: 2017-11-01 | F116: 2011-2017 | G116: Q4 | H116: =$C$43/12 -> 0 | I116: =(SUM('1. LRAMVA Summary'!C$22:C$36)+SUM(0)*(MONTH($E116)-1)/12)*$H116*0 -> 0 | J116: =(SUM('1. LRAMVA Summary'!D$22:D$36)+SUM(0)*(MONTH($E116)-1)/12)*$H116*0 -> 0 | K116: =(SUM('1. LRAMVA Summary'!E$22:E$36)+SUM(0)*(MONTH($E116)-1)/12)*$H116*0 -> 0 | L116: =(SUM('1. LRAMVA Summary'!F$22:F$36)+SUM(0)*(MONTH($E116)-1)/12)*$H116*0 -> 0 | M116: =(SUM('1. LRAMVA Summary'!G$22:G$36)+SUM(0)*(MONTH($E116)-1)/12)*$H116*0 -> 0 | N116: =(SUM('1. LRAMVA Summary'!H$22:H$36)+SUM(0)*(MONTH($E116)-1)/12)*$H116*0 -> 0 | O116: =(SUM('1. LRAMVA Summary'!I$22:I$36)+SUM(0)*(MONTH($E116)-1)/12)*$H116*0 -> 0 | P116: =(SUM('1. LRAMVA Summary'!J$22:J$36)+SUM(0)*(MONTH($E116)-1)/12)*$H116*0 -> 0 | Q116: 0
E117: 2017-12-01 | F117: 2011-2017 | G117: Q4 | H117: 0 | I117: =(SUM('1. LRAMVA Summary'!C$22:C$36)+SUM(0)*(MONTH($E117)-1)/12)*$H117*0 -> 0 | J117: =(SUM('1. LRAMVA Summary'!D$22:D$36)+SUM(0)*(MONTH($E117)-1)/12)*$H117*0 -> 0 | K117: =(SUM('1. LRAMVA Summary'!E$22:E$36)+SUM(0)*(MONTH($E117)-1)/12)*$H117*0 -> 0 | L117: =(SUM('1. LRAMVA Summary'!F$22:F$36)+SUM(0)*(MONTH($E117)-1)/12)*$H117*0 -> 0 | M117: =(SUM('1. LRAMVA Summary'!G$22:G$36)+SUM(0)*(MONTH($E117)-1)/12)*$H117*0 -> 0 | N117: =(SUM('1. LRAMVA Summary'!H$22:H$36)+SUM(0)*(MONTH($E117)-1)/12)*$H117*0 -> 0 | O117: =(SUM('1. LRAMVA Summary'!I$22:I$36)+SUM(0)*(MONTH($E117)-1)/12)*$H117*0 -> 0 | P117: =(SUM('1. LRAMVA Summary'!J$22:J$36)+SUM(0)*(MONTH($E117)-1)/12)*$H117*0 -> 0 | Q117: 0
E118: Total for fiscal year 2017 | I118: =SUM(I105:I117) -> 26.6088523 | J118: =SUM(J105:J117) -> 6465.48538 | K118: =SUM(K105:K117) -> 4893.421738 | L118: -1146.280633 | M118: -30.74639753 | N118: -714.8892825 | O118: -109.0856356 | P118: -1107.649841 | Q118: =SUM(Q105:Q117) -> 8276.864181
E119: Amount Cleared
E120: Opening Balance for fiscal year 2018 | I120: =I118+I119 -> 26.6088523 | J120: =J118+J119 -> 6465.48538 | K120: =K118+K119 -> 4893.421738 | L120: =L118+L119 -> -1146.280633 | M120: =M118+M119 -> -30.74639753 | N120: =N118+N119 -> -714.8892825 | O120: =O118+O119 -> -109.0856356 | P120: =P118+P119 -> -1107.649841 | Q120: =Q118+Q119 -> 8276.864181
E121: 2018-01-01 | F121: 2011-2018 | G121: Q1 | H121: =$C$44/12 -> 0 | I121: =(SUM('1. LRAMVA Summary'!C$22:C$36)+SUM('1. LRAMVA Summary'!#REF!)*(MONTH($E121)-1)/12)*$H121 ->  | J121: =(SUM('1. LRAMVA Summary'!D$22:D$36)+SUM('1. LRAMVA Summary'!#REF!)*(MONTH($E121)-1)/12)*$H121 ->  | K121: =(SUM('1. LRAMVA Summary'!E$22:E$36)+SUM('1. LRAMVA Summary'!#REF!)*(MONTH($E121)-1)/12)*$H121 ->  | L121: =(SUM('1. LRAMVA Summary'!F$22:F$36)+SUM('1. LRAMVA Summary'!#REF!)*(MONTH($E121)-1)/12)*$H121 ->  | M121: =(SUM('1. LRAMVA Summary'!G$22:G$36)+SUM('1. LRAMVA Summary'!#REF!)*(MONTH($E121)-1)/12)*$H121 ->  | N121: =(SUM('1. LRAMVA Summary'!H$22:H$36)+SUM('1. LRAMVA Summary'!#REF!)*(MONTH($E121)-1)/12)*$H121 ->  | O121: =(SUM('1. LRAMVA Summary'!I$22:I$36)+SUM('1. LRAMVA Summary'!#REF!)*(MONTH($E121)-1)/12)*$H121 ->  | Q121: =SUM(I121:P121) -> 
E122: 2018-02-01 | F122: 2011-2018 | G122: Q1 | H122: =$C$44/12 -> 0 | I122: =(SUM('1. LRAMVA Summary'!C$22:C$36)+SUM('1. LRAMVA Summary'!#REF!)*(MONTH($E122)-1)/12)*$H122 ->  | J122: =(SUM('1. LRAMVA Summary'!D$22:D$36)+SUM('1. LRAMVA Summary'!#REF!)*(MONTH($E122)-1)/12)*$H122 ->  | K122: =(SUM('1. LRAMVA Summary'!E$22:E$36)+SUM('1. LRAMVA Summary'!#REF!)*(MONTH($E122)-1)/12)*$H122 ->  | L122: =(SUM('1. LRAMVA Summary'!F$22:F$36)+SUM('1. LRAMVA Summary'!#REF!)*(MONTH($E122)-1)/12)*$H122 ->  | M122: =(SUM('1. LRAMVA Summary'!G$22:G$36)+SUM('1. LRAMVA Summary'!#REF!)*(MONTH($E122)-1)/12)*$H122 ->  | N122: =(SUM('1. LRAMVA Summary'!H$22:H$36)+SUM('1. LRAMVA Summary'!#REF!)*(MONTH($E122)-1)/12)*$H122 ->  | O122: =(SUM('1. LRAMVA Summary'!I$22:I$36)+SUM('1. LRAMVA Summary'!#REF!)*(MONTH($E122)-1)/12)*$H122 ->  | Q122: =SUM(I122:P122) -> 
E123: 2018-03-01 | F123: 2011-2018 | G123: Q1 | H123: 0 | I123: =(SUM('1. LRAMVA Summary'!C$22:C$36)+SUM('1. LRAMVA Summary'!#REF!)*(MONTH($E123)-1)/12)*$H123 ->  | J123: =(SUM('1. LRAMVA Summary'!D$22:D$36)+SUM('1. LRAMVA Summary'!#REF!)*(MONTH($E123)-1)/12)*$H123 ->  | K123: =(SUM('1. LRAMVA Summary'!E$22:E$36)+SUM('1. LRAMVA Summary'!#REF!)*(MONTH($E123)-1)/12)*$H123 ->  | L123: =(SUM('1. LRAMVA Summary'!F$22:F$36)+SUM('1. LRAMVA Summary'!#REF!)*(MONTH($E123)-1)/12)*$H123 ->  | M123: =(SUM('1. LRAMVA Summary'!G$22:G$36)+SUM('1. LRAMVA Summary'!#REF!)*(MONTH($E123)-1)/12)*$H123 ->  | N123: =(SUM('1. LRAMVA Summary'!H$22:H$36)+SUM('1. LRAMVA Summary'!#REF!)*(MONTH($E123)-1)/12)*$H123 ->  | O123: =(SUM('1. LRAMVA Summary'!I$22:I$36)+SUM('1. LRAMVA Summary'!#REF!)*(MONTH($E123)-1)/12)*$H123 -> 
E124: 2018-04-01 | F124: 2011-2018 | G124: Q2 | H124: =$C$45/12 -> 0 | I124: =(SUM('1. LRAMVA Summary'!C$22:C$36)+SUM('1. LRAMVA Summary'!#REF!)*(MONTH($E124)-1)/12)*$H124 ->  | J124: =(SUM('1. LRAMVA Summary'!D$22:D$36)+SUM('1. LRAMVA Summary'!#REF!)*(MONTH($E124)-1)/12)*$H124 ->  | K124: =(SUM('1. LRAMVA Summary'!E$22:E$36)+SUM('1. LRAMVA Summary'!#REF!)*(MONTH($E124)-1)/12)*$H124 ->  | L124: =(SUM('1. LRAMVA Summary'!F$22:F$36)+SUM('1. LRAMVA Summary'!#REF!)*(MONTH($E124)-1)/12)*$H124 ->  | M124: =(SUM('1. LRAMVA Summary'!G$22:G$36)+SUM('1. LRAMVA Summary'!#REF!)*(MONTH($E124)-1)/12)*$H124 ->  | N124: =(SUM('1. LRAMVA Summary'!H$22:H$36)+SUM('1. LRAMVA Summary'!#REF!)*(MONTH($E124)-1)/12)*$H124 ->  | O124: =(SUM('1. LRAMVA Summary'!I$22:I$36)+SUM('1. LRAMVA Summary'!#REF!)*(MONTH($E124)-1)/12)*$H124 -> 
E125: 2018-05-01 | F125: 2011-2018 | G125: Q2 | H125: =$C$45/12 -> 0 | I125: =(SUM('1. LRAMVA Summary'!C$22:C$36)+SUM('1. LRAMVA Summary'!#REF!)*(MONTH($E125)-1)/12)*$H125 ->  | J125: =(SUM('1. LRAMVA Summary'!D$22:D$36)+SUM('1. LRAMVA Summary'!#REF!)*(MONTH($E125)-1)/12)*$H125 ->  | K125: =(SUM('1. LRAMVA Summary'!E$22:E$36)+SUM('1. LRAMVA Summary'!#REF!)*(MONTH($E125)-1)/12)*$H125 ->  | L125: =(SUM('1. LRAMVA Summary'!F$22:F$36)+SUM('1. LRAMVA Summary'!#REF!)*(MONTH($E125)-1)/12)*$H125 ->  | M125: =(SUM('1. LRAMVA Summary'!G$22:G$36)+SUM('1. LRAMVA Summary'!#REF!)*(MONTH($E125)-1)/12)*$H125 ->  | N125: =(SUM('1. LRAMVA Summary'!H$22:H$36)+SUM('1. LRAMVA Summary'!#REF!)*(MONTH($E125)-1)/12)*$H125 ->  | O125: =(SUM('1. LRAMVA Summary'!I$22:I$36)+SUM('1. LRAMVA Summary'!#REF!)*(MONTH($E125)-1)/12)*$H125 -> 
E126: 2018-06-01 | F126: 2011-2018 | G126: Q2 | H126: 0 | I126: =(SUM('1. LRAMVA Summary'!C$22:C$36)+SUM('1. LRAMVA Summary'!#REF!)*(MONTH($E126)-1)/12)*$H126 ->  | J126: =(SUM('1. LRAMVA Summary'!D$22:D$36)+SUM('1. LRAMVA Summary'!#REF!)*(MONTH($E126)-1)/12)*$H126 ->  | K126: =(SUM('1. LRAMVA Summary'!E$22:E$36)+SUM('1. LRAMVA Summary'!#REF!)*(MONTH($E126)-1)/12)*$H126 ->  | L126: =(SUM('1. LRAMVA Summary'!F$22:F$36)+SUM('1. LRAMVA Summary'!#REF!)*(MONTH($E126)-1)/12)*$H126 ->  | M126: =(SUM('1. LRAMVA Summary'!G$22:G$36)+SUM('1. LRAMVA Summary'!#REF!)*(MONTH($E126)-1)/12)*$H126 ->  | N126: =(SUM('1. LRAMVA Summary'!H$22:H$36)+SUM('1. LRAMVA Summary'!#REF!)*(MONTH($E126)-1)/12)*$H126 ->  | O126: =(SUM('1. LRAMVA Summary'!I$22:I$36)+SUM('1. LRAMVA Summary'!#REF!)*(MONTH($E126)-1)/12)*$H126 -> 
E127: 2018-07-01 | F127: 2011-2018 | G127: Q3 | H127: =$C$46/12 -> 0 | I127: =(SUM('1. LRAMVA Summary'!C$22:C$36)+SUM('1. LRAMVA Summary'!#REF!)*(MONTH($E127)-1)/12)*$H127 ->  | J127: =(SUM('1. LRAMVA Summary'!D$22:D$36)+SUM('1. LRAMVA Summary'!#REF!)*(MONTH($E127)-1)/12)*$H127 ->  | K127: =(SUM('1. LRAMVA Summary'!E$22:E$36)+SUM('1. LRAMVA Summary'!#REF!)*(MONTH($E127)-1)/12)*$H127 ->  | L127: =(SUM('1. LRAMVA Summary'!F$22:F$36)+SUM('1. LRAMVA Summary'!#REF!)*(MONTH($E127)-1)/12)*$H127 ->  | M127: =(SUM('1. LRAMVA Summary'!G$22:G$36)+SUM('1. LRAMVA Summary'!#REF!)*(MONTH($E127)-1)/12)*$H127 ->  | N127: =(SUM('1. LRAMVA Summary'!H$22:H$36)+SUM('1. LRAMVA Summary'!#REF!)*(MONTH($E127)-1)/12)*$H127 ->  | O127: =(SUM('1. LRAMVA Summary'!I$22:I$36)+SUM('1. LRAMVA Summary'!#REF!)*(MONTH($E127)-1)/12)*$H127 -> 
E128: 2018-08-01 | F128: 2011-2018 | G128: Q3 | H128: =$C$46/12 -> 0 | I128: =(SUM('1. LRAMVA Summary'!C$22:C$36)+SUM('1. LRAMVA Summary'!#REF!)*(MONTH($E128)-1)/12)*$H128 ->  | J128: =(SUM('1. LRAMVA Summary'!D$22:D$36)+SUM('1. LRAMVA Summary'!#REF!)*(MONTH($E128)-1)/12)*$H128 ->  | K128: =(SUM('1. LRAMVA Summary'!E$22:E$36)+SUM('1. LRAMVA Summary'!#REF!)*(MONTH($E128)-1)/12)*$H128 ->  | L128: =(SUM('1. LRAMVA Summary'!F$22:F$36)+SUM('1. LRAMVA Summary'!#REF!)*(MONTH($E128)-1)/12)*$H128 ->  | M128: =(SUM('1. LRAMVA Summary'!G$22:G$36)+SUM('1. LRAMVA Summary'!#REF!)*(MONTH($E128)-1)/12)*$H128 ->  | N128: =(SUM('1. LRAMVA Summary'!H$22:H$36)+SUM('1. LRAMVA Summary'!#REF!)*(MONTH($E128)-1)/12)*$H128 ->  | O128: =(SUM('1. LRAMVA Summary'!I$22:I$36)+SUM('1. LRAMVA Summary'!#REF!)*(MONTH($E128)-1)/12)*$H128 -> 
E129: 2018-09-01 | F129: 2011-2018 | G129: Q3 | H129: 0 | I129: =(SUM('1. LRAMVA Summary'!C$22:C$36)+SUM('1. LRAMVA Summary'!#REF!)*(MONTH($E129)-1)/12)*$H129 ->  | J129: =(SUM('1. LRAMVA Summary'!D$22:D$36)+SUM('1. LRAMVA Summary'!#REF!)*(MONTH($E129)-1)/12)*$H129 ->  | K129: =(SUM('1. LRAMVA Summary'!E$22:E$36)+SUM('1. LRAMVA Summary'!#REF!)*(MONTH($E129)-1)/12)*$H129 ->  | L129: =(SUM('1. LRAMVA Summary'!F$22:F$36)+SUM('1. LRAMVA Summary'!#REF!)*(MONTH($E129)-1)/12)*$H129 ->  | M129: =(SUM('1. LRAMVA Summary'!G$22:G$36)+SUM('1. LRAMVA Summary'!#REF!)*(MONTH($E129)-1)/12)*$H129 ->  | N129: =(SUM('1. LRAMVA Summary'!H$22:H$36)+SUM('1. LRAMVA Summary'!#REF!)*(MONTH($E129)-1)/12)*$H129 ->  | O129: =(SUM('1. LRAMVA Summary'!I$22:I$36)+SUM('1. LRAMVA Summary'!#REF!)*(MONTH($E129)-1)/12)*$H129 -> 
E130: 2018-10-01 | F130: 2011-2018 | G130: Q4 | H130: =C47/12 -> 0 | I130: =(SUM('1. LRAMVA Summary'!C$22:C$36)+SUM('1. LRAMVA Summary'!#REF!)*(MONTH($E130)-1)/12)*$H130 ->  | J130: =(SUM('1. LRAMVA Summary'!D$22:D$36)+SUM('1. LRAMVA Summary'!#REF!)*(MONTH($E130)-1)/12)*$H130 ->  | K130: =(SUM('1. LRAMVA Summary'!E$22:E$36)+SUM('1. LRAMVA Summary'!#REF!)*(MONTH($E130)-1)/12)*$H130 ->  | L130: =(SUM('1. LRAMVA Summary'!F$22:F$36)+SUM('1. LRAMVA Summary'!#REF!)*(MONTH($E130)-1)/12)*$H130 ->  | M130: =(SUM('1. LRAMVA Summary'!G$22:G$36)+SUM('1. LRAMVA Summary'!#REF!)*(MONTH($E130)-1)/12)*$H130 ->  | N130: =(SUM('1. LRAMVA Summary'!H$22:H$36)+SUM('1. LRAMVA Summary'!#REF!)*(MONTH($E130)-1)/12)*$H130 ->  | O130: =(SUM('1. LRAMVA Summary'!I$22:I$36)+SUM('1. LRAMVA Summary'!#REF!)*(MONTH($E130)-1)/12)*$H130 -> 
E131: 2018-11-01 | F131: 2011-2018 | G131: Q4 | H131: =C48/12 -> 0 | I131: =(SUM('1. LRAMVA Summary'!C$22:C$36)+SUM('1. LRAMVA Summary'!#REF!)*(MONTH($E131)-1)/12)*$H131 ->  | J131: =(SUM('1. LRAMVA Summary'!D$22:D$36)+SUM('1. LRAMVA Summary'!#REF!)*(MONTH($E131)-1)/12)*$H131 ->  | K131: =(SUM('1. LRAMVA Summary'!E$22:E$36)+SUM('1. LRAMVA Summary'!#REF!)*(MONTH($E131)-1)/12)*$H131 ->  | L131: =(SUM('1. LRAMVA Summary'!F$22:F$36)+SUM('1. LRAMVA Summary'!#REF!)*(MONTH($E131)-1)/12)*$H131 ->  | M131: =(SUM('1. LRAMVA Summary'!G$22:G$36)+SUM('1. LRAMVA Summary'!#REF!)*(MONTH($E131)-1)/12)*$H131 ->  | N131: =(SUM('1. LRAMVA Summary'!H$22:H$36)+SUM('1. LRAMVA Summary'!#REF!)*(MONTH($E131)-1)/12)*$H131 ->  | O131: =(SUM('1. LRAMVA Summary'!I$22:I$36)+SUM('1. LRAMVA Summary'!#REF!)*(MONTH($E131)-1)/12)*$H131 -> 
E132: 2018-12-01 | F132: 2011-2018 | G132: Q4 | H132: 0 | I132: =(SUM('1. LRAMVA Summary'!C$22:C$36)+SUM('1. LRAMVA Summary'!#REF!)*(MONTH($E132)-1)/12)*$H132 ->  | J132: =(SUM('1. LRAMVA Summary'!D$22:D$36)+SUM('1. LRAMVA Summary'!#REF!)*(MONTH($E132)-1)/12)*$H132 ->  | K132: =(SUM('1. LRAMVA Summary'!E$22:E$36)+SUM('1. LRAMVA Summary'!#REF!)*(MONTH($E132)-1)/12)*$H132 ->  | L132: =(SUM('1. LRAMVA Summary'!F$22:F$36)+SUM('1. LRAMVA Summary'!#REF!)*(MONTH($E132)-1)/12)*$H132 ->  | M132: =(SUM('1. LRAMVA Summary'!G$22:G$36)+SUM('1. LRAMVA Summary'!#REF!)*(MONTH($E132)-1)/12)*$H132 ->  | N132: =(SUM('1. LRAMVA Summary'!H$22:H$36)+SUM('1. LRAMVA Summary'!#REF!)*(MONTH($E132)-1)/12)*$H132 ->  | O132: =(SUM('1. LRAMVA Summary'!I$22:I$36)+SUM('1. LRAMVA Summary'!#REF!)*(MONTH($E132)-1)/12)*$H132 -> 
E133: Total for fiscal year 2018 | I133: =SUM(I120:I132) ->  | J133: =SUM(J120:J132) ->  | K133: =SUM(K120:K132) ->  | P133: -1107.649841 | Q133: =SUM(Q120:Q132) -> 
E134: Amount Cleared
E135: Opening Balance for fiscal year 2019 | I135: =I133+I134 ->  | J135: =J133+J134 ->  | K135: =K133+K134 ->  | L135: =L133+L134 ->  | M135: =M133+M134 ->  | N135: =N133+N134 ->  | O135: =O133+O134 ->  | P135: =P133+P134 -> -1107.649841 | Q135: =Q133+Q134 -> 
E136: 2019-01-01 | F136: 2011-2019 | G136: Q1 | H136: =$C$48/12 -> 0 | I136: =(SUM('1. LRAMVA Summary'!C$22:C$36)+SUM('1. LRAMVA Summary'!#REF!)*(MONTH($E136)-1)/12)*$H136 ->  | J136: =(SUM('1. LRAMVA Summary'!D$22:D$36)+SUM('1. LRAMVA Summary'!#REF!)*(MONTH($E136)-1)/12)*$H136 ->  | K136: =(SUM('1. LRAMVA Summary'!E$22:E$36)+SUM('1. LRAMVA Summary'!#REF!)*(MONTH($E136)-1)/12)*$H136 ->  | L136: =(SUM('1. LRAMVA Summary'!F$22:F$36)+SUM('1. LRAMVA Summary'!#REF!)*(MONTH($E136)-1)/12)*$H136 ->  | M136: =(SUM('1. LRAMVA Summary'!G$22:G$36)+SUM('1. LRAMVA Summary'!#REF!)*(MONTH($E136)-1)/12)*$H136 ->  | N136: =(SUM('1. LRAMVA Summary'!H$22:H$36)+SUM('1. LRAMVA Summary'!#REF!)*(MONTH($E136)-1)/12)*$H136 ->  | O136: =(SUM('1. LRAMVA Summary'!I$22:I$36)+SUM('1. LRAMVA Summary'!#REF!)*(MONTH($E136)-1)/12)*$H136 ->  | Q136: =SUM(I136:P136) -> 
E137: 2019-02-01 | F137: 2011-2019 | G137: Q1 | H137: =$C$48/12 -> 0 | I137: =(SUM('1. LRAMVA Summary'!C$22:C$36)+SUM('1. LRAMVA Summary'!#REF!)*(MONTH($E137)-1)/12)*$H137 ->  | J137: =(SUM('1. LRAMVA Summary'!D$22:D$36)+SUM('1. LRAMVA Summary'!#REF!)*(MONTH($E137)-1)/12)*$H137 ->  | K137: =(SUM('1. LRAMVA Summary'!E$22:E$36)+SUM('1. LRAMVA Summary'!#REF!)*(MONTH($E137)-1)/12)*$H137 ->  | L137: =(SUM('1. LRAMVA Summary'!F$22:F$36)+SUM('1. LRAMVA Summary'!#REF!)*(MONTH($E137)-1)/12)*$H137 ->  | M137: =(SUM('1. LRAMVA Summary'!G$22:G$36)+SUM('1. LRAMVA Summary'!#REF!)*(MONTH($E137)-1)/12)*$H137 ->  | N137: =(SUM('1. LRAMVA Summary'!H$22:H$36)+SUM('1. LRAMVA Summary'!#REF!)*(MONTH($E137)-1)/12)*$H137 ->  | O137: =(SUM('1. LRAMVA Summary'!I$22:I$36)+SUM('1. LRAMVA Summary'!#REF!)*(MONTH($E137)-1)/12)*$H137 -> 
E138: 2019-03-01 | F138: 2011-2019 | G138: Q1 | H138: 0 | I138: =(SUM('1. LRAMVA Summary'!C$22:C$36)+SUM('1. LRAMVA Summary'!#REF!)*(MONTH($E138)-1)/12)*$H138 ->  | J138: =(SUM('1. LRAMVA Summary'!D$22:D$36)+SUM('1. LRAMVA Summary'!#REF!)*(MONTH($E138)-1)/12)*$H138 ->  | K138: =(SUM('1. LRAMVA Summary'!E$22:E$36)+SUM('1. LRAMVA Summary'!#REF!)*(MONTH($E138)-1)/12)*$H138 ->  | L138: =(SUM('1. LRAMVA Summary'!F$22:F$36)+SUM('1. LRAMVA Summary'!#REF!)*(MONTH($E138)-1)/12)*$H138 ->  | M138: =(SUM('1. LRAMVA Summary'!G$22:G$36)+SUM('1. LRAMVA Summary'!#REF!)*(MONTH($E138)-1)/12)*$H138 ->  | N138: =(SUM('1. LRAMVA Summary'!H$22:H$36)+SUM('1. LRAMVA Summary'!#REF!)*(MONTH($E138)-1)/12)*$H138 ->  | O138: =(SUM('1. LRAMVA Summary'!I$22:I$36)+SUM('1. LRAMVA Summary'!#REF!)*(MONTH($E138)-1)/12)*$H138 -> 
E139: 2019-04-01 | F139: 2011-2019 | G139: Q2 | H139: =$C$49/12 -> 0 | I139: =(SUM('1. LRAMVA Summary'!C$22:C$36)+SUM('1. LRAMVA Summary'!#REF!)*(MONTH($E139)-1)/12)*$H139 ->  | J139: =(SUM('1. LRAMVA Summary'!D$22:D$36)+SUM('1. LRAMVA Summary'!#REF!)*(MONTH($E139)-1)/12)*$H139 ->  | K139: =(SUM('1. LRAMVA Summary'!E$22:E$36)+SUM('1. LRAMVA Summary'!#REF!)*(MONTH($E139)-1)/12)*$H139 ->  | L139: =(SUM('1. LRAMVA Summary'!F$22:F$36)+SUM('1. LRAMVA Summary'!#REF!)*(MONTH($E139)-1)/12)*$H139 ->  | M139: =(SUM('1. LRAMVA Summary'!G$22:G$36)+SUM('1. LRAMVA Summary'!#REF!)*(MONTH($E139)-1)/12)*$H139 ->  | N139: =(SUM('1. LRAMVA Summary'!H$22:H$36)+SUM('1. LRAMVA Summary'!#REF!)*(MONTH($E139)-1)/12)*$H139 ->  | O139: =(SUM('1. LRAMVA Summary'!I$22:I$36)+SUM('1. LRAMVA Summary'!#REF!)*(MONTH($E139)-1)/12)*$H139 -> 
E140: 2019-05-01 | F140: 2011-2019 | G140: Q2 | H140: =$C$49/12 -> 0 | I140: =(SUM('1. LRAMVA Summary'!C$22:C$36)+SUM('1. LRAMVA Summary'!#REF!)*(MONTH($E140)-1)/12)*$H140 ->  | J140: =(SUM('1. LRAMVA Summary'!D$22:D$36)+SUM('1. LRAMVA Summary'!#REF!)*(MONTH($E140)-1)/12)*$H140 ->  | K140: =(SUM('1. LRAMVA Summary'!E$22:E$36)+SUM('1. LRAMVA Summary'!#REF!)*(MONTH($E140)-1)/12)*$H140 ->  | L140: =(SUM('1. LRAMVA Summary'!F$22:F$36)+SUM('1. LRAMVA Summary'!#REF!)*(MONTH($E140)-1)/12)*$H140 ->  | M140: =(SUM('1. LRAMVA Summary'!G$22:G$36)+SUM('1. LRAMVA Summary'!#REF!)*(MONTH($E140)-1)/12)*$H140 ->  | N140: =(SUM('1. LRAMVA Summary'!H$22:H$36)+SUM('1. LRAMVA Summary'!#REF!)*(MONTH($E140)-1)/12)*$H140 ->  | O140: =(SUM('1. LRAMVA Summary'!I$22:I$36)+SUM('1. LRAMVA Summary'!#REF!)*(MONTH($E140)-1)/12)*$H140 -> 
E141: 2019-06-01 | F141: 2011-2019 | G141: Q2 | H141: 0 | I141: =(SUM('1. LRAMVA Summary'!C$22:C$36)+SUM('1. LRAMVA Summary'!#REF!)*(MONTH($E141)-1)/12)*$H141 ->  | J141: =(SUM('1. LRAMVA Summary'!D$22:D$36)+SUM('1. LRAMVA Summary'!#REF!)*(MONTH($E141)-1)/12)*$H141 ->  | K141: =(SUM('1. LRAMVA Summary'!E$22:E$36)+SUM('1. LRAMVA Summary'!#REF!)*(MONTH($E141)-1)/12)*$H141 ->  | L141: =(SUM('1. LRAMVA Summary'!F$22:F$36)+SUM('1. LRAMVA Summary'!#REF!)*(MONTH($E141)-1)/12)*$H141 ->  | M141: =(SUM('1. LRAMVA Summary'!G$22:G$36)+SUM('1. LRAMVA Summary'!#REF!)*(MONTH($E141)-1)/12)*$H141 ->  | N141: =(SUM('1. LRAMVA Summary'!H$22:H$36)+SUM('1. LRAMVA Summary'!#REF!)*(MONTH($E141)-1)/12)*$H141 ->  | O141: =(SUM('1. LRAMVA Summary'!I$22:I$36)+SUM('1. LRAMVA Summary'!#REF!)*(MONTH($E141)-1)/12)*$H141 -> 
E142: 2019-07-01 | F142: 2011-2019 | G142: Q3 | H142: =$C$50/12 -> 0 | I142: =(SUM('1. LRAMVA Summary'!C$22:C$36)+SUM('1. LRAMVA Summary'!#REF!)*(MONTH($E142)-1)/12)*$H142 ->  | J142: =(SUM('1. LRAMVA Summary'!D$22:D$36)+SUM('1. LRAMVA Summary'!#REF!)*(MONTH($E142)-1)/12)*$H142 ->  | K142: =(SUM('1. LRAMVA Summary'!E$22:E$36)+SUM('1. LRAMVA Summary'!#REF!)*(MONTH($E142)-1)/12)*$H142 ->  | L142: =(SUM('1. LRAMVA Summary'!F$22:F$36)+SUM('1. LRAMVA Summary'!#REF!)*(MONTH($E142)-1)/12)*$H142 ->  | M142: =(SUM('1. LRAMVA Summary'!G$22:G$36)+SUM('1. LRAMVA Summary'!#REF!)*(MONTH($E142)-1)/12)*$H142 ->  | N142: =(SUM('1. LRAMVA Summary'!H$22:H$36)+SUM('1. LRAMVA Summary'!#REF!)*(MONTH($E142)-1)/12)*$H142 ->  | O142: =(SUM('1. LRAMVA Summary'!I$22:I$36)+SUM('1. LRAMVA Summary'!#REF!)*(MONTH($E142)-1)/12)*$H142 -> 
E143: 2019-08-01 | F143: 2011-2019 | G143: Q3 | H143: =$C$50/12 -> 0 | I143: =(SUM('1. LRAMVA Summary'!C$22:C$36)+SUM('1. LRAMVA Summary'!#REF!)*(MONTH($E143)-1)/12)*$H143 ->  | J143: =(SUM('1. LRAMVA Summary'!D$22:D$36)+SUM('1. LRAMVA Summary'!#REF!)*(MONTH($E143)-1)/12)*$H143 ->  | K143: =(SUM('1. LRAMVA Summary'!E$22:E$36)+SUM('1. LRAMVA Summary'!#REF!)*(MONTH($E143)-1)/12)*$H143 ->  | L143: =(SUM('1. LRAMVA Summary'!F$22:F$36)+SUM('1. LRAMVA Summary'!#REF!)*(MONTH($E143)-1)/12)*$H143 ->  | M143: =(SUM('1. LRAMVA Summary'!G$22:G$36)+SUM('1. LRAMVA Summary'!#REF!)*(MONTH($E143)-1)/12)*$H143 ->  | N143: =(SUM('1. LRAMVA Summary'!H$22:H$36)+SUM('1. LRAMVA Summary'!#REF!)*(MONTH($E143)-1)/12)*$H143 ->  | O143: =(SUM('1. LRAMVA Summary'!I$22:I$36)+SUM('1. LRAMVA Summary'!#REF!)*(MONTH($E143)-1)/12)*$H143 -> 
E144: 2019-09-01 | F144: 2011-2019 | G144: Q3 | H144: 0 | I144: =(SUM('1. LRAMVA Summary'!C$22:C$36)+SUM('1. LRAMVA Summary'!#REF!)*(MONTH($E144)-1)/12)*$H144 ->  | J144: =(SUM('1. LRAMVA Summary'!D$22:D$36)+SUM('1. LRAMVA Summary'!#REF!)*(MONTH($E144)-1)/12)*$H144 ->  | K144: =(SUM('1. LRAMVA Summary'!E$22:E$36)+SUM('1. LRAMVA Summary'!#REF!)*(MONTH($E144)-1)/12)*$H144 ->  | L144: =(SUM('1. LRAMVA Summary'!F$22:F$36)+SUM('1. LRAMVA Summary'!#REF!)*(MONTH($E144)-1)/12)*$H144 ->  | M144: =(SUM('1. LRAMVA Summary'!G$22:G$36)+SUM('1. LRAMVA Summary'!#REF!)*(MONTH($E144)-1)/12)*$H144 ->  | N144: =(SUM('1. LRAMVA Summary'!H$22:H$36)+SUM('1. LRAMVA Summary'!#REF!)*(MONTH($E144)-1)/12)*$H144 ->  | O144: =(SUM('1. LRAMVA Summary'!I$22:I$36)+SUM('1. LRAMVA Summary'!#REF!)*(MONTH($E144)-1)/12)*$H144 -> 
E145: 2019-10-01 | F145: 2011-2019 | G145: Q4 | H145: =$C$51/12 -> 0 | I145: =(SUM('1. LRAMVA Summary'!C$22:C$36)+SUM('1. LRAMVA Summary'!#REF!)*(MONTH($E145)-1)/12)*$H145 ->  | J145: =(SUM('1. LRAMVA Summary'!D$22:D$36)+SUM('1. LRAMVA Summary'!#REF!)*(MONTH($E145)-1)/12)*$H145 ->  | K145: =(SUM('1. LRAMVA Summary'!E$22:E$36)+SUM('1. LRAMVA Summary'!#REF!)*(MONTH($E145)-1)/12)*$H145 ->  | L145: =(SUM('1. LRAMVA Summary'!F$22:F$36)+SUM('1. LRAMVA Summary'!#REF!)*(MONTH($E145)-1)/12)*$H145 ->  | M145: =(SUM('1. LRAMVA Summary'!G$22:G$36)+SUM('1. LRAMVA Summary'!#REF!)*(MONTH($E145)-1)/12)*$H145 ->  | N145: =(SUM('1. LRAMVA Summary'!H$22:H$36)+SUM('1. LRAMVA Summary'!#REF!)*(MONTH($E145)-1)/12)*$H145 ->  | O145: =(SUM('1. LRAMVA Summary'!I$22:I$36)+SUM('1. LRAMVA Summary'!#REF!)*(MONTH($E145)-1)/12)*$H145 -> 
E146: 2019-11-01 | F146: 2011-2019 | G146: Q4 | H146: =$C$51/12 -> 0 | I146: =(SUM('1. LRAMVA Summary'!C$22:C$36)+SUM('1. LRAMVA Summary'!#REF!)*(MONTH($E146)-1)/12)*$H146 ->  | J146: =(SUM('1. LRAMVA Summary'!D$22:D$36)+SUM('1. LRAMVA Summary'!#REF!)*(MONTH($E146)-1)/12)*$H146 ->  | K146: =(SUM('1. LRAMVA Summary'!E$22:E$36)+SUM('1. LRAMVA Summary'!#REF!)*(MONTH($E146)-1)/12)*$H146 ->  | L146: =(SUM('1. LRAMVA Summary'!F$22:F$36)+SUM('1. LRAMVA Summary'!#REF!)*(MONTH($E146)-1)/12)*$H146 ->  | M146: =(SUM('1. LRAMVA Summary'!G$22:G$36)+SUM('1. LRAMVA Summary'!#REF!)*(MONTH($E146)-1)/12)*$H146 ->  | N146: =(SUM('1. LRAMVA Summary'!H$22:H$36)+SUM('1. LRAMVA Summary'!#REF!)*(MONTH($E146)-1)/12)*$H146 ->  | O146: =(SUM('1. LRAMVA Summary'!I$22:I$36)+SUM('1. LRAMVA Summary'!#REF!)*(MONTH($E146)-1)/12)*$H146 -> 
E147: 2019-12-01 | F147: 2011-2019 | G147: Q4 | H147: 0 | I147: =(SUM('1. LRAMVA Summary'!C$22:C$36)+SUM('1. LRAMVA Summary'!#REF!)*(MONTH($E147)-1)/12)*$H147 ->  | J147: =(SUM('1. LRAMVA Summary'!D$22:D$36)+SUM('1. LRAMVA Summary'!#REF!)*(MONTH($E147)-1)/12)*$H147 ->  | K147: =(SUM('1. LRAMVA Summary'!E$22:E$36)+SUM('1. LRAMVA Summary'!#REF!)*(MONTH($E147)-1)/12)*$H147 ->  | L147: =(SUM('1. LRAMVA Summary'!F$22:F$36)+SUM('1. LRAMVA Summary'!#REF!)*(MONTH($E147)-1)/12)*$H147 ->  | M147: =(SUM('1. LRAMVA Summary'!G$22:G$36)+SUM('1. LRAMVA Summary'!#REF!)*(MONTH($E147)-1)/12)*$H147 ->  | N147: =(SUM('1. LRAMVA Summary'!H$22:H$36)+SUM('1. LRAMVA Summary'!#REF!)*(MONTH($E147)-1)/12)*$H147 ->  | O147: =(SUM('1. LRAMVA Summary'!I$22:I$36)+SUM('1. LRAMVA Summary'!#REF!)*(MONTH($E147)-1)/12)*$H147 -> 
E148: Total for fiscal year 2019 | I148: =SUM(I135:I147) ->  | J148: =SUM(J135:J147) ->  | K148: =SUM(K135:K147) ->  | P148: -1107.649841 | Q148: =SUM(Q135:Q147) -> 
E149: Amount Cleared
E150: Opening Balance for fiscal year 2020 | I150: =I148+I149 ->  | J150: =J148+J149 ->  | K150: =K148+K149 ->  | L150: =L148+L149 ->  | M150: =M148+M149 ->  | N150: =N148+N149 ->  | O150: =O148+O149 ->  | P150: =P148+P149 -> -1107.649841 | Q150: =Q148+Q149 -> 
E151: 2020-01-01 | F151: 2011-2020 | G151: Q1 | H151: =$C$52/12 -> 0 | I151: =(SUM('1. LRAMVA Summary'!C$22:C$36)*(MONTH($E151)-1)/12)*$H151 -> 0 | J151: =(SUM('1. LRAMVA Summary'!D$22:D$36)*(MONTH($E151)-1)/12)*$H151 -> 0 | K151: =(SUM('1. LRAMVA Summary'!E$22:E$36)*(MONTH($E151)-1)/12)*$H151 -> 0 | L151: =(SUM('1. LRAMVA Summary'!F$22:F$36)*(MONTH($E151)-1)/12)*$H151 -> 0 | M151: =(SUM('1. LRAMVA Summary'!G$22:G$36)*(MONTH($E151)-1)/12)*$H151 -> 0 | N151: =(SUM('1. LRAMVA Summary'!H$22:H$36)*(MONTH($E151)-1)/12)*$H151 -> 0 | O151: =(SUM('1. LRAMVA Summary'!I$22:I$36)*(MONTH($E151)-1)/12)*$H151 -> 0 | Q151: =SUM(I151:P151) -> 0
E152: 2020-02-01 | F152: 2011-2020 | G152: Q1 | H152: =$C$52/12 -> 0 | I152: =(SUM('1. LRAMVA Summary'!C$22:C$36)*(MONTH($E152)-1)/12)*$H152 -> 0 | J152: =(SUM('1. LRAMVA Summary'!D$22:D$36)*(MONTH($E152)-1)/12)*$H152 -> 0 | K152: =(SUM('1. LRAMVA Summary'!E$22:E$36)*(MONTH($E152)-1)/12)*$H152 -> 0 | L152: =(SUM('1. LRAMVA Summary'!F$22:F$36)*(MONTH($E152)-1)/12)*$H152 -> 0 | M152: =(SUM('1. LRAMVA Summary'!G$22:G$36)*(MONTH($E152)-1)/12)*$H152 -> 0 | N152: =(SUM('1. LRAMVA Summary'!H$22:H$36)*(MONTH($E152)-1)/12)*$H152 -> 0 | O152: =(SUM('1. LRAMVA Summary'!I$22:I$36)*(MONTH($E152)-1)/12)*$H152 -> 0 | Q152: =SUM(I152:P152) -> 0
E153: 2020-03-01 | F153: 2011-2020 | G153: Q1 | H153: 0 | I153: =(SUM('1. LRAMVA Summary'!C$22:C$36)*(MONTH($E153)-1)/12)*$H153 -> 0 | J153: =(SUM('1. LRAMVA Summary'!D$22:D$36)*(MONTH($E153)-1)/12)*$H153 -> 0 | K153: =(SUM('1. LRAMVA Summary'!E$22:E$36)*(MONTH($E153)-1)/12)*$H153 -> 0 | L153: =(SUM('1. LRAMVA Summary'!F$22:F$36)*(MONTH($E153)-1)/12)*$H153 -> 0 | M153: =(SUM('1. LRAMVA Summary'!G$22:G$36)*(MONTH($E153)-1)/12)*$H153 -> 0 | N153: =(SUM('1. LRAMVA Summary'!H$22:H$36)*(MONTH($E153)-1)/12)*$H153 -> 0 | O153: =(SUM('1. LRAMVA Summary'!I$22:I$36)*(MONTH($E153)-1)/12)*$H153 -> 0 | Q153: =SUM(I153:P153) -> 0
E154: 2020-04-01 | F154: 2011-2020 | G154: Q2 | H154: =$C$53/12 -> 0 | I154: =(SUM('1. LRAMVA Summary'!C$22:C$36)*(MONTH($E154)-1)/12)*$H154 -> 0 | J154: =(SUM('1. LRAMVA Summary'!D$22:D$36)*(MONTH($E154)-1)/12)*$H154 -> 0 | K154: =(SUM('1. LRAMVA Summary'!E$22:E$36)*(MONTH($E154)-1)/12)*$H154 -> 0 | L154: =(SUM('1. LRAMVA Summary'!F$22:F$36)*(MONTH($E154)-1)/12)*$H154 -> 0 | M154: =(SUM('1. LRAMVA Summary'!G$22:G$36)*(MONTH($E154)-1)/12)*$H154 -> 0 | N154: =(SUM('1. LRAMVA Summary'!H$22:H$36)*(MONTH($E154)-1)/12)*$H154 -> 0 | O154: =(SUM('1. LRAMVA Summary'!I$22:I$36)*(MONTH($E154)-1)/12)*$H154 -> 0 | Q154: 0
E155: 2020-05-01 | F155: 2011-2020 | G155: Q2 | H155: =$C$53/12 -> 0 | I155: =(SUM('1. LRAMVA Summary'!C$22:C$36)*(MONTH($E155)-1)/12)*$H155 -> 0 | J155: =(SUM('1. LRAMVA Summary'!D$22:D$36)*(MONTH($E155)-1)/12)*$H155 -> 0 | K155: =(SUM('1. LRAMVA Summary'!E$22:E$36)*(MONTH($E155)-1)/12)*$H155 -> 0 | L155: =(SUM('1. LRAMVA Summary'!F$22:F$36)*(MONTH($E155)-1)/12)*$H155 -> 0 | M155: =(SUM('1. LRAMVA Summary'!G$22:G$36)*(MONTH($E155)-1)/12)*$H155 -> 0 | N155: =(SUM('1. LRAMVA Summary'!H$22:H$36)*(MONTH($E155)-1)/12)*$H155 -> 0 | O155: =(SUM('1. LRAMVA Summary'!I$22:I$36)*(MONTH($E155)-1)/12)*$H155 -> 0 | Q155: 0
E156: 2020-06-01 | F156: 2011-2020 | G156: Q2 | H156: 0 | I156: =(SUM('1. LRAMVA Summary'!C$22:C$36)*(MONTH($E156)-1)/12)*$H156 -> 0 | J156: =(SUM('1. LRAMVA Summary'!D$22:D$36)*(MONTH($E156)-1)/12)*$H156 -> 0 | K156: =(SUM('1. LRAMVA Summary'!E$22:E$36)*(MONTH($E156)-1)/12)*$H156 -> 0 | L156: =(SUM('1. LRAMVA Summary'!F$22:F$36)*(MONTH($E156)-1)/12)*$H156 -> 0 | M156: =(SUM('1. LRAMVA Summary'!G$22:G$36)*(MONTH($E156)-1)/12)*$H156 -> 0 | N156: =(SUM('1. LRAMVA Summary'!H$22:H$36)*(MONTH($E156)-1)/12)*$H156 -> 0 | O156: =(SUM('1. LRAMVA Summary'!I$22:I$36)*(MONTH($E156)-1)/12)*$H156 -> 0 | Q156: 0
E157: 2020-07-01 | F157: 2011-2020 | G157: Q3 | H157: =$C$54/12 -> 0 | I157: =(SUM('1. LRAMVA Summary'!C$22:C$36)*(MONTH($E157)-1)/12)*$H157 -> 0 | J157: =(SUM('1. LRAMVA Summary'!D$22:D$36)*(MONTH($E157)-1)/12)*$H157 -> 0 | K157: =(SUM('1. LRAMVA Summary'!E$22:E$36)*(MONTH($E157)-1)/12)*$H157 -> 0 | L157: =(SUM('1. LRAMVA Summary'!F$22:F$36)*(MONTH($E157)-1)/12)*$H157 -> 0 | M157: =(SUM('1. LRAMVA Summary'!G$22:G$36)*(MONTH($E157)-1)/12)*$H157 -> 0 | N157: =(SUM('1. LRAMVA Summary'!H$22:H$36)*(MONTH($E157)-1)/12)*$H157 -> 0 | O157: =(SUM('1. LRAMVA Summary'!I$22:I$36)*(MONTH($E157)-1)/12)*$H157 -> 0 | Q157: 0
E158: 2020-08-01 | F158: 2011-2020 | G158: Q3 | H158: =$C$54/12 -> 0 | I158: =(SUM('1. LRAMVA Summary'!C$22:C$36)*(MONTH($E158)-1)/12)*$H158 -> 0 | J158: =(SUM('1. LRAMVA Summary'!D$22:D$36)*(MONTH($E158)-1)/12)*$H158 -> 0 | K158: =(SUM('1. LRAMVA Summary'!E$22:E$36)*(MONTH($E158)-1)/12)*$H158 -> 0 | L158: =(SUM('1. LRAMVA Summary'!F$22:F$36)*(MONTH($E158)-1)/12)*$H158 -> 0 | M158: =(SUM('1. LRAMVA Summary'!G$22:G$36)*(MONTH($E158)-1)/12)*$H158 -> 0 | N158: =(SUM('1. LRAMVA Summary'!H$22:H$36)*(MONTH($E158)-1)/12)*$H158 -> 0 | O158: =(SUM('1. LRAMVA Summary'!I$22:I$36)*(MONTH($E158)-1)/12)*$H158 -> 0 | Q158: 0
E159: 2020-09-01 | F159: 2011-2020 | G159: Q3 | H159: 0 | I159: =(SUM('1. LRAMVA Summary'!C$22:C$36)*(MONTH($E159)-1)/12)*$H159 -> 0 | J159: =(SUM('1. LRAMVA Summary'!D$22:D$36)*(MONTH($E159)-1)/12)*$H159 -> 0 | K159: =(SUM('1. LRAMVA Summary'!E$22:E$36)*(MONTH($E159)-1)/12)*$H159 -> 0 | L159: =(SUM('1. LRAMVA Summary'!F$22:F$36)*(MONTH($E159)-1)/12)*$H159 -> 0 | M159: =(SUM('1. LRAMVA Summary'!G$22:G$36)*(MONTH($E159)-1)/12)*$H159 -> 0 | N159: =(SUM('1. LRAMVA Summary'!H$22:H$36)*(MONTH($E159)-1)/12)*$H159 -> 0 | O159: =(SUM('1. LRAMVA Summary'!I$22:I$36)*(MONTH($E159)-1)/12)*$H159 -> 0 | Q159: 0
E160: 2020-10-01 | F160: 2011-2020 | G160: Q4 | H160: =$C$55/12 -> 0 | I160: =(SUM('1. LRAMVA Summary'!C$22:C$36)*(MONTH($E160)-1)/12)*$H160 -> 0 | J160: =(SUM('1. LRAMVA Summary'!D$22:D$36)*(MONTH($E160)-1)/12)*$H160 -> 0 | K160: =(SUM('1. LRAMVA Summary'!E$22:E$36)*(MONTH($E160)-1)/12)*$H160 -> 0 | L160: =(SUM('1. LRAMVA Summary'!F$22:F$36)*(MONTH($E160)-1)/12)*$H160 -> 0 | M160: =(SUM('1. LRAMVA Summary'!G$22:G$36)*(MONTH($E160)-1)/12)*$H160 -> 0 | N160: =(SUM('1. LRAMVA Summary'!H$22:H$36)*(MONTH($E160)-1)/12)*$H160 -> 0 | O160: =(SUM('1. LRAMVA Summary'!I$22:I$36)*(MONTH($E160)-1)/12)*$H160 -> 0 | Q160: 0
E161: 2020-11-01 | F161: 2011-2020 | G161: Q4 | H161: =$C$55/12 -> 0 | I161: =(SUM('1. LRAMVA Summary'!C$22:C$36)*(MONTH($E161)-1)/12)*$H161 -> 0 | J161: =(SUM('1. LRAMVA Summary'!D$22:D$36)*(MONTH($E161)-1)/12)*$H161 -> 0 | K161: =(SUM('1. LRAMVA Summary'!E$22:E$36)*(MONTH($E161)-1)/12)*$H161 -> 0 | L161: =(SUM('1. LRAMVA Summary'!F$22:F$36)*(MONTH($E161)-1)/12)*$H161 -> 0 | M161: =(SUM('1. LRAMVA Summary'!G$22:G$36)*(MONTH($E161)-1)/12)*$H161 -> 0 | N161: =(SUM('1. LRAMVA Summary'!H$22:H$36)*(MONTH($E161)-1)/12)*$H161 -> 0 | O161: =(SUM('1. LRAMVA Summary'!I$22:I$36)*(MONTH($E161)-1)/12)*$H161 -> 0 | Q161: 0
E162: 2020-12-01 | F162: 2011-2020 | G162: Q4 | H162: 0 | I162: =(SUM('1. LRAMVA Summary'!C$22:C$36)*(MONTH($E162)-1)/12)*$H162 -> 0 | J162: =(SUM('1. LRAMVA Summary'!D$22:D$36)*(MONTH($E162)-1)/12)*$H162 -> 0 | K162: =(SUM('1. LRAMVA Summary'!E$22:E$36)*(MONTH($E162)-1)/12)*$H162 -> 0 | L162: =(SUM('1. LRAMVA Summary'!F$22:F$36)*(MONTH($E162)-1)/12)*$H162 -> 0 | M162: =(SUM('1. LRAMVA Summary'!G$22:G$36)*(MONTH($E162)-1)/12)*$H162 -> 0 | N162: =(SUM('1. LRAMVA Summary'!H$22:H$36)*(MONTH($E162)-1)/12)*$H162 -> 0 | O162: =(SUM('1. LRAMVA Summary'!I$22:I$36)*(MONTH($E162)-1)/12)*$H162 -> 0 | Q162: 0
E163: Total for fiscal year 2020 | I163: =SUM(I150:I162) ->  | J163: =SUM(J150:J162) ->  | K163: =SUM(K150:K162) ->  | P163: -1107.649841 | Q163: =SUM(Q150:Q162) -> 
E164: Amount Cleared

Sheet Sheet1
